{"text_format":"3","workbook":"xlsx","n_sheets":25,"sheets":["Титульный лист","Раздел 1","Раздел 2","Раздел 3","Раздел 4","Раздел 5","Раздел 6","Раздел 7","Раздел 8","Раздел 9","Раздел 10","Раздел 11","Раздел 12","Раздел 13","Раздел 14","Раздел 15","Раздел 16","Раздел 17","Раздел 18","Раздел 19","Раздел 20","Раздел 21","Раздел 22","Флак","Spravochnik"],"not_rendered":{"images":1,"defined_names":61},"read":"whole","date_system":"1900"}

{"sheet":"Титульный лист","index":0,"n_rows":38,"n_cols":71,"rows_kept":38,"merged":[[9,7,9,75],[11,7,11,75],[13,4,13,78],[15,7,15,75],[17,10,17,72],[18,10,18,72],[19,10,19,37],[19,38,19,40],[19,42,19,44],[19,45,19,72],[20,10,20,72],[22,0,22,49],[22,50,22,64],[22,68,22,80],[23,0,23,49],[23,50,23,64],[23,66,25,82],[24,0,24,49],[25,0,25,49],[26,0,26,49],[26,70,26,78],[28,0,28,22],[28,23,28,83],[29,0,29,22],[29,23,29,83],[30,0,35,15],[30,16,30,83],[31,16,35,32],[31,33,35,49],[31,50,35,66],[31,67,35,83],[36,0,36,15],[36,16,36,32],[36,33,36,49],[36,50,36,66],[36,67,36,83],[37,0,37,15],[37,16,37,32],[37,33,37,49],[37,50,37,66],[37,67,37,83]]}
{"$rows_empty":9}
[{"$nulls":7},"ФЕДЕРАЛЬНОЕ СТАТИСТИЧЕСКОЕ НАБЛЮДЕНИЕ"]
[]
[{"$nulls":7},"КОНФИДЕНЦИАЛЬНОСТЬ ГАРАНТИРУЕТСЯ ПОЛУЧАТЕЛЕМ ИНФОРМАЦИИ"]
[]
[{"$nulls":4},"Нарушение порядка представления статистической информации, а равно представление недостоверной статистической информации влечет ответственность, установленную статьей 13.19 Кодекса Российской Федерации об административных правонарушениях от 30.12.2001 № 195-ФЗ, а также статьей 3 Закона Российской Федерации от 13.05.92 № 2761-1 “Об ответственности за нарушение порядка представления государственной статистической отчетности”"]
[]
[{"$nulls":7},"ВОЗМОЖНО ПРЕДОСТАВЛЕНИЕ В ЭЛЕКТРОННОМ ВИДЕ"]
[]
[{"$nulls":10},"СВЕДЕНИЯ ОБ УЧРЕЖДЕНИИ, РЕАЛИЗУЮЩЕМ ПРОГРАММЫ ОБЩЕГО ОБРАЗОВАНИЯ"]
[{"$nulls":10},"(кроме вечерних (сменных) общеобразовательных учреждений)"]
[{"$nulls":10},"на начало",{"$nulls":27},2015,null,null,"/",{"$f":"Year+1","v":2016},null,null,"учебного года"]
[{"$nulls":10},"(по состоянию на 20 сентября)"]
[]
["Предоставляют:",{"$nulls":49},"Сроки предоставления",{"$nulls":17},"Форма № ОШ-1"]
["юридические лица – образовательные учреждения, реализующие программы общего образования:",{"$nulls":49},"22 сентября",{"$nulls":15},"Приказ Росстата:\nОб утверждении формы\nот  27.08.2012 № 466\nО внесении изменений\n(при наличии)\nот  __________ № ___\nот  __________ № ___"]
["     - органу местного самоуправления, органу исполнительной власти субъекта Российской Федерации,\n       федеральному органу исполнительной власти, на которые возложены функции по управлению\n       учреждениями, реализующими программы общего образования (по принадлежности)"]
[]
[{"$nulls":70},"1 раз в год"]
[]
["Наименование отчитывающейся организации",{"$nulls":22},"МКУ \"Отдел образования Алексеевского муниципального района\""]
["Почтовый адрес",{"$nulls":22},"Респ. Татарстан, Алексеевский район, пгт. Алексеевское, ул. Казакова, д. 9 Б"]
["Код \nформы \nпо ОКУД",{"$nulls":15},"Код"]
[{"$nulls":16},"отчитывающейся организации по ОКПО",{"$nulls":16},"учреждения-локальный (самостоятельное учреждение – 1, обособленное структурное подразделение (филиал и т.п.) – 2)"]
[]
[]
[]
[]
[1,{"$nulls":15},2,{"$nulls":16},3,{"$nulls":16},4,{"$nulls":16},5]
[{"v":609535,"d":"0609535"}]

{"sheet":"Раздел 1","index":1,"n_rows":32,"n_cols":23,"rows_kept":32,"merged":[[15,0,15,22],[16,0,16,22],[17,0,18,11],[17,12,18,12],[17,13,18,13],[17,14,18,14],[17,15,17,21],[17,22,18,22],[19,0,19,11],[20,0,25,0],[20,14,21,14],[22,14,23,14],[24,14,25,14],[26,0,30,0],[31,0,31,11]]}
{"$rows_empty":15}
["Раздел 1. Распределение обучающихся по  языку обучения\n(указать языки народов Российской Федерации, изучаемые как предмет, факультативно или в кружках)"]
["Код по ОКЕИ: человек – 792"]
["Наименование",{"$nulls":11},"Data Lang","Код по ОКИН","№\nстроки","численность обучающихся по классам",{"$nulls":6},"Всего (сумма граф 3-9)"]
[{"$nulls":15},"подготови-тельный класс","1 класс","2 класс","3 класс","4 класс","5 - 9 класс","10 - 11 (12) класс"]
[1,{"$nulls":13},2,3,4,5,6,7,8,9,10]
["Язык обучения",{"$nulls":11},{"$f":"IF(ISBLANK(L21),0,VLOOKUP(L21,Spravochnik!$A$1:$B$85,2,FALSE))","v":0},{"$f":"IF(ISBLANK(L21),0,VLOOKUP(L21,Spravochnik!$A$1:$C$85,3,FALSE))","v":0},{"v":1,"d":"01"},0,{"$nulls":3},201,{"v":1263,"d":"1,263"},201,{"v":2429,"d":"2,429"}]
[{"$nulls":12},{"$f":"M21","v":0},{"$f":"N21","v":0},null,null,252,262,250]
[{"$nulls":12},{"$f":"IF(ISBLANK(L23),0,VLOOKUP(L23,Spravochnik!$A$1:$B$85,2,FALSE))","v":0},{"$f":"IF(ISBLANK(L23),0,VLOOKUP(L23,Spravochnik!$A$1:$C$85,3,FALSE))","v":0},{"v":2,"d":"02"},0,{"$nulls":3},37,118,13,273]
[{"$nulls":12},{"$f":"M23","v":0},{"$f":"N23","v":0},null,null,46,20,39]
[{"$nulls":12},{"$f":"IF(ISBLANK(L25),0,VLOOKUP(L25,Spravochnik!$A$1:$B$85,2,FALSE))","v":0},{"$f":"IF(ISBLANK(L25),0,VLOOKUP(L25,Spravochnik!$A$1:$C$85,3,FALSE))","v":0},{"v":3,"d":"03"},0,{"$nulls":3},3,0,0,21]
[{"$nulls":12},{"$f":"M25","v":0},{"$f":"N25","v":0},null,null,5,8,5]
["Язык, изучаемый как самостоятельный предмет",{"$nulls":11},{"$f":"IF(ISBLANK(L27),0,VLOOKUP(L27,Spravochnik!$A$1:$B$85,2,FALSE))","v":0},{"$f":"IF(ISBLANK(L27),0,VLOOKUP(L27,Spravochnik!$A$1:$C$85,3,FALSE))","v":0},{"v":4,"d":"04"},0,252,262,250,201,{"v":1235,"d":"1,235"},199,{"v":2399,"d":"2,399"}]
[{"$nulls":12},{"$f":"IF(ISBLANK(L28),0,VLOOKUP(L28,Spravochnik!$A$1:$B$85,2,FALSE))","v":0},{"$f":"IF(ISBLANK(L28),0,VLOOKUP(L28,Spravochnik!$A$1:$C$85,3,FALSE))","v":0},{"v":5,"d":"05"},0,1,1,1,2,28,2,35]
[{"$nulls":12},{"$f":"IF(ISBLANK(L29),0,VLOOKUP(L29,Spravochnik!$A$1:$B$85,2,FALSE))","v":0},{"$f":"IF(ISBLANK(L29),0,VLOOKUP(L29,Spravochnik!$A$1:$C$85,3,FALSE))","v":0},{"v":6,"d":"06"},0,4,1,4,3,0,0,12]
[{"$nulls":12},{"$f":"IF(ISBLANK(L30),0,VLOOKUP(L30,Spravochnik!$A$1:$B$85,2,FALSE))","v":0},{"$f":"IF(ISBLANK(L30),0,VLOOKUP(L30,Spravochnik!$A$1:$C$85,3,FALSE))","v":0},{"v":7,"d":"07"},0,0,0,0,0,0,0,0]
[{"$nulls":12},{"$f":"IF(ISBLANK(L31),0,VLOOKUP(L31,Spravochnik!$A$1:$B$85,2,FALSE))","v":0},{"$f":"IF(ISBLANK(L31),0,VLOOKUP(L31,Spravochnik!$A$1:$C$85,3,FALSE))","v":0},{"v":8,"d":"08"},0,0,0,0,0,0,0,0]
["Языки, изучаемые факультативно или в кружках",{"$nulls":13},{"v":9,"d":"09"},{"$nulls":7},0]

{"sheet":"Раздел 2","index":2,"n_rows":53,"n_cols":16,"rows_kept":53,"merged":[[16,0,16,15],[17,0,17,15],[52,0,52,15]]}
{"$rows_empty":16}
["Раздел 2. Сведения об обучающихся, окончивших данный класс, переведенных в следующий класс весной или осенью, и выпускных экзаменах в 2015 году"]
["Код по ОКЕИ: человек – 792"]
["Наименование",{"$nulls":13},"№\nстроки","Численность обуча-ющихся"]
[1,{"$nulls":13},2,3]
["Подготовительный класс",{"$nulls":13},"01",0]
["1-й класс",{"$nulls":13},"02",288]
["2-й класс",{"$nulls":13},"03",293]
["3-й класс",{"$nulls":13},"04",236]
["4-й класс",{"$nulls":13},"05",270]
["5-й класс",{"$nulls":13},"06",289]
["6-й класс",{"$nulls":13},"07",280]
["7-й класс",{"$nulls":13},"08",268]
["8-й класс",{"$nulls":13},"09",275]
["9-й класс",{"$nulls":13},10,307]
["10-й класс",{"$nulls":13},11,138]
["11-й класс (окончили с аттестатом о среднем (полном) общем образовании)",{"$nulls":13},12,119]
["11-й класс (переведенные в 12 класс)",{"$nulls":13},13,0]
["12-й класс",{"$nulls":13},14,0]
["Численность обучающихся, продолжающих обучение в педагогических классах",{"$nulls":13},15,0]
["Численность обучающихся выпускного класса, не получивших аттестат о среднем (полном) общем образовании",{"$nulls":13},16,0]
["Численность обучающихся, выдержавших экзамены экстерном за курс основной школы и получивших аттестат об общем образовании",{"$nulls":13},17,0]
["Численность обучающихся, выдержавших экзамены экстерном за курс средней (полной) школы и получивших аттестат о среднем (полном) общем образовании",{"$nulls":13},18,0]
["Численность обучающихся, получивших образование в форме экстерната по всем классам (кроме 9, 11 и 12)",{"$nulls":13},19,0]
["Численность выпускников, допущенных к выпускным экзаменам в 11 (12) классах",{"$nulls":13},20,119]
["   из них (из стр.20)\n      участвовавшие в едином государственном экзамене (ЕГЭ)",{"$nulls":13},21,119]
["         из них (из стр.21)\n            численность выпускников, участвовавших в ЕГЭ по русскому языку",{"$nulls":13},22,119]
["               из них (из стр.22) сдавшие ЕГЭ",{"$nulls":13},23,119]
["            численность выпускников, участвовавших в ЕГЭ по математике",{"$nulls":13},24,119]
["               из них (из стр.24) сдавшие ЕГЭ",{"$nulls":13},25,119]
["Из численности обучающихся, получивших аттестат о среднем (полном) общем образовании,  награждены:\n   золотой медалью «За особые успехи в учении»",{"$nulls":13},26,20]
["   серебряной медалью «За особые успехи в учении»",{"$nulls":13},27,2]
["Выпуск специальных (коррекционных) образовательных учреждений для детей с ограниченными возможностями здоровья",{"$nulls":13},28,0]
["   из них (из стр.28) участвовавшие в едином государственном экзамене (ЕГЭ)",{"$nulls":13},29,0]
["Выпуск специальных (коррекционных) классов для детей с ограниченными возможностями здоровья, организованных при образовательных учреждениях",{"$nulls":13},30,0]
["   из них (из стр.30) участвовавшие в едином государственном экзамене (ЕГЭ)",{"$nulls":13},31,0]
[]
["Примечание: в строках 01 - 14 приводятся  сведения о численности обучающихся, окончивших данный класс и переведенных  в следующий класс весной или осенью."]

{"sheet":"Раздел 3","index":3,"n_rows":25,"n_cols":17,"rows_kept":25,"merged":[[16,0,16,16],[17,0,17,16]]}
{"$rows_empty":16}
["Раздел 3. Сведения о классах, классах-комплектах"]
["Код по ОКЕИ: единица – 642"]
["Наименование",{"$nulls":13},"№\nстроки","Всего в образовательных учреждениях","кроме того, специальные (коррекционные) классы (классы-комплекты) для детей с ограниченными возможностями здоровья , организованные при общеобразовательных учреждениях"]
[1,{"$nulls":13},2,3,4]
["Число 1-4 и подготовительных классов и классов-комплектов (включая 1 классы, организованные в дошкольном учреждении)",{"$nulls":13},{"v":1,"d":"01"},106,0]
["Число 5-9 классов и классов-комплектов",{"$nulls":13},{"v":2,"d":"02"},125,0]
["Число 10-12 классов и классов-комплектов ",{"$nulls":13},{"v":3,"d":"03"},31,0]
["Число 1-11 (12) классов и классов-комплектов (сумма строк 01-03)",{"$nulls":13},{"v":4,"d":"04"},262,0]
["Из них (из стр.04) число 1-11 (12) классов и классов-комплектов с численностью обучающихся менее 25 человек в городе или менее 14 человек  в сельской местности",{"$nulls":13},{"v":5,"d":"05"},143]

{"sheet":"Раздел 4","index":4,"n_rows":53,"n_cols":36,"rows_kept":53,"merged":[[14,0,14,35],[15,0,15,35],[16,0,18,0],[16,14,18,14],[16,15,18,15],[16,16,18,16],[16,17,16,19],[16,20,16,35],[17,17,18,17],[17,18,18,18],[17,19,18,19],[17,20,17,21],[17,22,17,23],[17,24,17,25],[17,26,17,27],[17,28,17,29],[17,30,17,31],[17,32,17,33],[17,34,17,35],[52,0,52,35]]}
{"$rows_empty":14}
["Раздел 4. Состав обучающихся по классам"]
["Коды по ОКЕИ: человек – 792; единица – 642"]
["Классы",{"$nulls":13},"№\nстроки","Число классов (ед.)","Всего обучаю-щихся по спискам вместе с новым приемом (чел.)","в том числе (из гр. 4)",null,null,"кроме того, обучающихся в специальных (коррекционных) классах для детей с ограниченными возможностями здоровья"]
[{"$nulls":17},"приходя-щих","второгод-ников","девочек","для неслышащих",null,"для слабослышащих и позднооглохших",null,"для незрячих",null,"для слабовидящих и поздноослепших",null,"с тяжелой речевой патологией",null,"с нарушениями опорно-двигатель-ного аппарата",null,"с задержкой психического развития",null,"с умственной отсталостью"]
[{"$nulls":20},"число классов (ед)","числен-ность обуча-ющихся (чел)","число классов (ед)","числен-ность обуча-ющихся (чел)","число классов (ед)","числен-ность обуча-ющихся (чел)","число классов (ед)","числен-ность обуча-ющихся (чел)","число классов (ед)","числен-ность обуча-ющихся (чел)","число классов (ед)","числен-ность обуча-ющихся (чел)","число классов (ед)","числен-ность обуча-ющихся (чел)","число классов (ед)","числен-ность обуча-ющихся (чел)"]
[1,{"$nulls":13},2,3,4,5,6,7,8,9,10,11,12,13,14,15,16,17,18,19,20,21,22,23]
[" Подготовительный класс",{"$nulls":13},{"v":1,"d":"01"},0,0,0,0,0,0,0,0,0,0,0,0,0,0,0,0,0,0,0,0,0]
[" 1-й класс",{"$nulls":13},{"v":2,"d":"02"},29,303,0,0,154,0,0,0,0,0,0,0,0,0,0,0,0,0,0,0,0]
[" 1-й класс, организованный в дошкольном учреждении",{"$nulls":13},{"v":3,"d":"03"},0,0,0,0,0,0,0,0,0,0,0,0,0,0,0,0,0,0,0,0,0]
[" 2-й класс",{"$nulls":13},{"v":4,"d":"04"},29,290,0,0,139,0,0,0,0,0,0,0,0,0,0,0,0,0,0,0,0]
[" 3-й класс",{"$nulls":13},{"v":5,"d":"05"},30,294,0,0,155,0,0,0,0,0,0,0,0,0,0,0,0,0,0,0,0]
[" 4-й класс",{"$nulls":13},{"v":6,"d":"06"},25,241,0,0,126,0,0,0,0,0,0,0,0,0,0,0,0,0,0,0,0]
[" 5-й класс",{"$nulls":13},{"v":7,"d":"07"},26,269,0,0,138,0,0,0,0,0,0,0,0,0,0,0,0,0,0,0,0]
[" 6-й класс",{"$nulls":13},{"v":8,"d":"08"},25,290,0,0,131,0,0,0,0,0,0,0,0,0,0,0,0,0,0,0,0]
[" 7-й класс",{"$nulls":13},{"v":9,"d":"09"},25,281,0,0,144,0,0,0,0,0,0,0,0,0,0,0,0,0,0,0,0]
[" 8-й класс",{"$nulls":13},10,25,266,0,0,120,0,0,0,0,0,0,0,0,0,0,0,0,0,0,0,0]
[" 9-й класс",{"$nulls":13},11,24,275,0,0,144,0,0,0,0,0,0,0,0,0,0,0,0,0,0,0,0]
[" 10-й класс",{"$nulls":13},12,15,105,0,0,65,0,0,0,0,0,0,0,0,0,0,0,0,0,0,0,0]
[" 11-й класс",{"$nulls":13},13,16,109,0,0,64,0,0,0,0,0,0,0,0,0,0,0,0,0,0,0,0]
[" 12-й класс",{"$nulls":13},14,0,0,0,0,0,0,0,0,0,0,0,0,0,0,0,0,0,0,0,0,0]
[" Всего сумма строк (01-14)",{"$nulls":13},15,269,{"v":2723,"d":"2,723"},0,0,{"v":1380,"d":"1,380"},0,0,0,0,0,0,0,0,0,0,0,0,0,0,0,0]
["Кроме того, дошкольная группа",{"$nulls":13},16,25,318]
["Численность детей-сирот и детей, оставшихся без попечения родите-лей (устроенные под надзор в образовательных организациях) (чел)",{"$nulls":13},17,0]
["Численность детей с умственной отсталостью (заполняет специальное (коррекционное) учреждение для детей с ограниченными возможностями здоровья) (чел)",{"$nulls":13},18,0]
["   из них (из стр.18) численность воспитанников (без приходящих)\n   с умственной отсталостью (заполняет школа-интернат) (чел)",{"$nulls":13},19,0]
["Численность детей, обучающихся индивидуально на дому по программам специальных (коррекционных) образовательных учреждений I-VIII видов (чел)",{"$nulls":13},20,0]
["   из них (из стр.20) обучающихся с использованием\n   дистанционных технологий (чел)",{"$nulls":13},21,0]
["Численность обучающихся на дому по общеобразовательным программам (чел)",{"$nulls":13},22,12]
["   из них (из стр.22) обучающихся с использованием\n   дистанционных технологий (чел)",{"$nulls":13},23,1]
["Численность обучающихся на дому по индивидуальным учебным планам (из суммы строк 20 и 22) (чел)",{"$nulls":13},24,11]
["   из них (из стр.24) обучающихся с использованием\n   дистанционных технологий (чел)",{"$nulls":13},25,1]
["Численность детей, занимающихся в классах компенсирующего обучения (чел)",{"$nulls":13},26,0]
["Численность обучающихся, воспитанников с ограниченными возможностями здоровья (без обучающихся в специальных (коррекционных) классах, организованных при общеобразовательном учреждении) (чел)",{"$nulls":13},27,32]
["Численность детей-инвалидов (без обучающихся в специальных (коррекционных) классах, организованных при общеобразовательном учреждении) (чел)",{"$nulls":13},28,29]
["Численность детей, обучающихся в форме семейного образования (чел)",{"$nulls":13},29,1]
["Численность слабовидящих детей, обучающихся в учреждениях для незрячих детей (чел)",{"$nulls":13},30,0]
["Численность незрячих детей, обучающихся в учреждениях для слабовидящих детей (чел)",{"$nulls":13},31,0]
[]
["Примечание: графу 5 по всем строкам заполняет школа-интернат и другие учреждения, где дети не только проживают, но и обучаются. В графе 6 показывают второгодников и поступивших из числа выбывших в прошлом учебном году и ранее. В строке 16 графе 3 показывают число дошкольных групп."]

{"sheet":"Раздел 5","index":5,"n_rows":41,"n_cols":22,"rows_kept":41,"merged":[[14,0,14,21],[15,0,15,21],[16,0,16,21],[17,0,18,3],[17,14,18,14],[17,15,17,16],[17,17,17,21],[19,0,19,3],[39,0,39,3],[40,0,40,3]]}
{"$rows_empty":14}
["Раздел 5. Возрастной состав обучающихся"]
["(без обучающихся в специальных (коррекционных) классах для детей с ограниченными возможностями здоровья;\nсоставляется на основании документов о рождении)"]
["Код по ОКЕИ: человек - 792"]
["Наименование",{"$nulls":13},"№\nстроки","Численность обучающихся",null,"Из общей численности  (из гр.3) обучающиеся"]
[{"$nulls":15},"всего","из них девочек","подготови-тельных классов","1 классов","9 классов","10-11 (12) классов","в том числе (из графы 8) выпускных классов"]
[1,{"$nulls":13},2,3,4,5,6,7,8,9]
[null,"5 лет",null,"2010 г.",{"$nulls":10},{"v":1,"d":"01"},0,0,0,0,0,0,0]
[null,"6 лет",null,"2009 г.",{"$nulls":10},{"v":2,"d":"02"},44,26,0,42,0,0,0]
["Число","7 лет",null,"2008 г.",{"$nulls":10},{"v":3,"d":"03"},311,151,0,253,0,0,0]
[null,"8 лет","Г","2007 г.",{"$nulls":10},{"v":4,"d":"04"},290,143,0,8,0,0,0]
["полных","9 лет","о","2006 г.",{"$nulls":10},{"v":5,"d":"05"},278,145,0,0,0,0,0]
[null,"10 лет","д","2005 г.",{"$nulls":10},{"v":6,"d":"06"},239,130,0,0,0,0,0]
["лет","11 лет",null,"2004 г.",{"$nulls":10},{"v":7,"d":"07"},280,137,0,0,0,0,0]
[null,"12 лет",null,"2003 г.",{"$nulls":10},{"v":8,"d":"08"},275,128,0,0,0,0,0]
["на","13 лет","р","2002 г.",{"$nulls":10},{"v":9,"d":"09"},286,142,0,0,0,0,0]
[null,"14 лет","о","2001 г.",{"$nulls":10},10,288,141,0,0,68,0,0]
[1,"15 лет","ж","2000 г.",{"$nulls":10},11,222,111,0,0,192,19,0]
[null,"16 лет","д","1999 г.",{"$nulls":10},12,113,65,0,0,15,98,17]
["января","17 лет","е","1998 г.",{"$nulls":10},13,90,56,0,0,0,90,85]
[null,"18 лет ","н","1997 г.",{"$nulls":10},14,7,5,0,0,0,7,7]
[{"$f":"Year+1","v":2016},"19 лет","и","1996 г.",{"$nulls":10},15,0,0,0,0,0,0,0]
[null,"20 лет","я","1995 г.",{"$nulls":10},16,0,0,0,0,0,0,0]
["года","21 год",null,"1994 г.",{"$nulls":10},17,0,0,0,0,0,0,0]
[null,"22 года",null,"1993 г.",{"$nulls":10},18,0,0,0,0,0,0,0]
[null,"23 года и старше",null,"1992 г. и ранее",{"$nulls":10},19,0,0,0,0,0,0,0]
["Итого (сумма строк 01-19)",{"$nulls":13},20,{"v":2723,"d":"2,723"},{"v":1380,"d":"1,380"},0,303,275,214,109]
["Численность обучающихся в специальных (коррекционных) классах для детей с ограниченными возможностями здоровья в возрасте 16 лет и старше (чел)",{"$nulls":13},{"v":21,"d":"(21)"},0]

{"sheet":"Раздел 6","index":6,"n_rows":32,"n_cols":16,"rows_kept":32,"merged":[[16,0,16,16],[17,0,17,16],[18,15,18,16],[19,15,19,16],[20,15,20,16],[21,15,21,16],[22,15,22,16],[23,15,23,16],[24,15,24,16],[25,15,25,16],[26,15,26,16],[27,15,27,16],[28,15,28,16],[29,15,29,16],[30,15,30,16],[31,15,31,16]]}
{"$rows_empty":16}
["Раздел 6. Сведения о педагогических и медицинских работниках"]
["Код по ОКЕИ: человек – 792"]
["Наименование",{"$nulls":13},"№\nстроки","Численность"]
[1,{"$nulls":13},2,3]
["Учителя",{"$nulls":13},{"v":1,"d":"01"},465]
["Учителя в специальных (коррекционных) классах для детей с ограниченными возможностями здоровья при общеобразовательных учреждениях (сумма строк 03-10)",{"$nulls":13},{"v":2,"d":"02"},0]
["   классы для неслышащих детей",{"$nulls":13},{"v":3,"d":"03"},0]
["   классы для слабослышащих и позднооглохших детей",{"$nulls":13},{"v":4,"d":"04"},0]
["   классы для незрячих детей ",{"$nulls":13},{"v":5,"d":"05"},0]
["   классы для слабовидящих и поздноослепших детей",{"$nulls":13},{"v":6,"d":"06"},0]
["   классы для детей с тяжелой речевой патологией",{"$nulls":13},{"v":7,"d":"07"},0]
["   классы для детей с нарушениями опорно-двигательного аппарата",{"$nulls":13},{"v":8,"d":"08"},0]
["   классы для детей с задержкой психического развития",{"$nulls":13},{"v":9,"d":"09"},0]
["   классы для детей с умственной отсталостью",{"$nulls":13},10,0]
["Медицинские работники:\n   врачи всех специальностей",{"$nulls":13},11,0]
["   медицинские сестры",{"$nulls":13},12,2]

{"sheet":"Раздел 7","index":7,"n_rows":21,"n_cols":19,"rows_kept":21,"merged":[[14,0,14,18],[15,0,15,18],[16,0,18,0],[16,14,18,14],[16,15,16,18],[17,15,17,16],[17,17,17,18]]}
{"$rows_empty":14}
["Раздел 7. Сведения о сменности занятий"]
["Коды по ОКЕИ: человек – 792; единица – 642"]
["Наименование",{"$nulls":13},"№\nстроки","Число классов и классов-комплектов и численность обучающихся в них, занимающихся"]
[{"$nulls":15},"во 2-ю смену",null,"в 3-ю смену"]
[{"$nulls":15},"классов (ед)","обучающихся (чел)","классов (ед)","обучающихся (чел)"]
[1,{"$nulls":13},2,3,4,5,6]
["Всего",{"$nulls":13},{"v":1,"d":"01"},0,0,0,0]

{"sheet":"Раздел 8","index":8,"n_rows":28,"n_cols":16,"rows_kept":28,"merged":[[16,0,16,15],[17,0,17,15],[27,0,27,15]]}
{"$rows_empty":16}
["Раздел 8. Сведения о группах продленного дня и интернатах"]
["Коды по ОКЕИ:  человек – 792; единица – 642"]
["Наименование",{"$nulls":13},"№\nстроки"]
[1,{"$nulls":13},2,3]
["Число групп продленного дня (ед)",{"$nulls":13},{"v":1,"d":"01"},29]
["   в том числе для обучающихся 1-4 классов",{"$nulls":13},{"v":2,"d":"02"},25]
["Численность обучающихся в группах продленного дня (чел)",{"$nulls":13},{"v":3,"d":"03"},680]
["   в том числе обучающихся 1-4  классов ",{"$nulls":13},{"v":4,"d":"04"},542]
["Имеется ли интернат при школе (да-1, нет-0)",{"$nulls":13},{"v":5,"d":"05"},"1; 0; 1; 0; 0; 0; 0; 0; 0; 0; 0; 0; 0"]
["Численность воспитанников в интернате при школе (чел)",{"$nulls":13},{"v":6,"d":"06"},32]
[]
["Примечание: строки 05, 06 заполняют образовательные учреждения, не имеющие статуса детского дома-школы, школы-интерната"]

{"sheet":"Раздел 9","index":9,"n_rows":21,"n_cols":16,"rows_kept":21,"merged":[[16,0,16,15],[17,0,17,15]]}
{"$rows_empty":16}
["Раздел 9. Сведения о числе групп"]
["Код по ОКЕИ:  единица – 642"]
["Наименование",{"$nulls":13},"№\nстроки","Значение"]
[1,{"$nulls":13},2,3]
["Число групп (заполняет детский дом, детский дом-школа и школа-интернат для детей с ограниченными возможностями здоровья; образовательные учреждения санаторного типа для детей, нуждающихся в длительном лечении)",{"$nulls":13},{"v":1,"d":"01"},0]

{"sheet":"Раздел 10","index":10,"n_rows":26,"n_cols":16,"rows_kept":26,"merged":[[16,0,16,15],[17,0,17,15]]}
{"$rows_empty":16}
["Раздел 10. Сведения о логопедическом пункте, кабинете"]
["Коды по ОКЕИ: единица - 642; человек - 792"]
["Наименование",{"$nulls":13},"№\nстроки"]
[1,{"$nulls":13},2,3]
["Имеется ли в учреждении логопедический пункт (да, нет)",{"$nulls":13},{"v":1,"d":"01"}]
["Имеется ли в учреждении логопедический кабинет (да, нет)",{"$nulls":13},{"v":2,"d":"02"}]
["Численность обучающихся, занимающихся в собственном логопедическом пункте (чел)",{"$nulls":13},{"v":3,"d":"03"},0]
["Численность обучающихся, занимающихся в собственном логопедическом кабинете (чел)",{"$nulls":13},{"v":4,"d":"04"},0]
["Численность обучающихся в учреждении, посещающих занятия в логопедических пунктах, организованных в других образовательных учреждениях (чел)",{"$nulls":13},{"v":5,"d":"05"},0]
["Численность обучающихся в учреждении, посещающих занятия в логопедических кабинетах, организованных в других образовательных учреждениях (чел)",{"$nulls":13},{"v":6,"d":"06"},0]

{"sheet":"Раздел 11","index":11,"n_rows":23,"n_cols":16,"rows_kept":23,"merged":[[16,0,16,15]]}
{"$rows_empty":16}
["Раздел 11. Сведения об органах самоуправления"]
[]
["Наименование",{"$nulls":13},"№\nстроки"]
[1,{"$nulls":13},2,3]
["Имеется ли в учреждении, реализующем программы общего образования, орган общественного самоуправления (да-1, нет-0)",{"$nulls":13},{"v":1,"d":"01"}]
["   в том числе попечительский совет (да-1, нет-0)",{"$nulls":13},{"v":2,"d":"02"}]
["Орган коллегиального управления  с участием общественности (да-1, нет-0)",{"$nulls":13},{"v":3,"d":"03"}]

{"sheet":"Раздел 12","index":12,"n_rows":23,"n_cols":16,"rows_kept":23,"merged":[[16,0,16,15],[17,0,17,15]]}
{"$rows_empty":16}
["Раздел 12. Сведения о платных дополнительных образовательных услугах\nза 2014/2015 учебный год"]
["Коды по ОКЕИ: единица - 642; человек - 792"]
["Наименование",{"$nulls":13},"№\nстроки"]
[1,{"$nulls":13},2,3]
["Предоставляет ли учреждение, реализующее программы общего образования, платные дополнительные образовательные услуги (да, нет)",{"$nulls":13},{"v":1,"d":"01"}]
["Численность обучающихся данного учреждения, пользующихся платными дополнительными образовательными услугами (чел)",{"$nulls":13},{"v":2,"d":"02"},0]
["Кроме того (стр.02), численность пользующихся платными дополнительными образовательными услугами, не обучающихся в данном учреждении (чел)",{"$nulls":13},{"v":3,"d":"03"},0]

{"sheet":"Раздел 13","index":13,"n_rows":86,"n_cols":16,"rows_kept":86,"merged":[[16,0,16,15],[17,0,17,15],[86,0,86,15]]}
{"$rows_empty":16}
["Раздел 13. Сведения о материально-технической базе учреждения"]
["Коды по ОКЕИ: квадратный метр - 055; единица - 642; место - 698; человек - 792"]
["Наименование",{"$nulls":13},"№\nстроки"]
[1,{"$nulls":13},2,3]
["Число зданий и сооружений (ед)",{"$nulls":13},{"v":1,"d":"01"},43]
["Общая площадь всех помещений (м2)",{"$nulls":13},{"v":2,"d":"02"},{"v":50888,"d":"50,888"}]
["Число классных комнат (включая учебные кабинеты и лаборатории) (ед)",{"$nulls":13},{"v":3,"d":"03"},433]
["Их площадь (м2)",{"$nulls":13},{"v":4,"d":"04"},{"v":18159,"d":"18,159"}]
["Число мастерских (ед)",{"$nulls":13},{"v":5,"d":"05"},18]
["   в них мест (место)",{"$nulls":13},{"v":6,"d":"06"},230]
["Число тракторов для учебных целей (ед)",{"$nulls":13},{"v":7,"d":"07"},0]
["Имеет ли учреждение физкультурный зал (да, нет)",{"$nulls":13},{"v":8,"d":"08"}]
["Имеет ли учреждение плавательный бассейн (да, нет)",{"$nulls":13},{"v":9,"d":"09"}]
["Имеет ли учреждение актовый или лекционный зал (да, нет)",{"$nulls":13},10]
["Имеет ли учреждение музей (да, нет)",{"$nulls":13},11]
["Размер учебно-опытного земельного участка (при отсутствии участка поставить \"0\") (м2)",{"$nulls":13},12,{"v":138300,"d":"138,300"}]
["Размер подсобного сельского хозяйства (при отсутствии поставить \"0\") (м2)",{"$nulls":13},13,{"v":48600,"d":"48,600"}]
["Имеется ли столовая или буфет с горячим питанием (да, нет)",{"$nulls":13},14]
["   в т. ч. в приспособленных помещениях",{"$nulls":13},15]
["Число посадочных мест в столовых, буфетах – всего (мест)",{"$nulls":13},16,{"v":1574,"d":"1,574"}]
["   в т. ч. посадочных мест в приспособленных помещениях",{"$nulls":13},17,70]
["Численность обучающихся, пользующихся горячим питанием (чел)",{"$nulls":13},18,{"v":2703,"d":"2,703"}]
["Численность обучающихся, имеющих льготное обеспечение горячим питанием (чел)",{"$nulls":13},19,{"v":2333,"d":"2,333"}]
["Число книг в библиотеке (книжном фонде) (включая школьные учебники), брошюр, журналов\n(при отсутствии библиотеки поставить \"0\") (ед)",{"$nulls":13},20,{"v":191218,"d":"191,218"}]
["   в т. ч. школьных учебников (ед)",{"$nulls":13},21,{"v":53184,"d":"53,184"}]
["Техническое состояние общеобразовательного учреждения:\n   требует ли капитального ремонта (да, нет)",{"$nulls":13},22]
["      в них зданий (ед)",{"$nulls":13},23,4]
["   находится ли в аварийном состоянии (да, нет)",{"$nulls":13},24]
["      в них зданий (ед)",{"$nulls":13},25,0]
["   имеют все виды благоустройства (да, нет)",{"$nulls":13},26]
["Наличие:\n   водопровода (да, нет)",{"$nulls":13},27]
["   центрального отопления (да, нет)",{"$nulls":13},28]
["   канализации (да, нет)",{"$nulls":13},29]
["Число автомобилей для учебных целей (при отсутствии автомобилей поставить \"0\") (ед)",{"$nulls":13},30,1]
["Число автотранспортных средств, предназначенных для перевозки обучающихся (при отсутствии автотранспортных средств поставить \"0\") (ед)",{"$nulls":13},31,14]
["   в них пассажирских мест (мест)",{"$nulls":13},32,256]
["Число автотранспортных средств, предназначенных для хозяйственных нужд (при отсутствии автотранспортных средств поставить \"0\") (ед)",{"$nulls":13},33,7]
["Число кабинетов основ информатики и вычислительной техники (при отсутствии таких кабинетов поставить \"0\") (ед)",{"$nulls":13},34,27]
["   в них рабочих мест с ЭВМ (мест)",{"$nulls":13},35,211]
["Число персональных ЭВМ (ед)",{"$nulls":13},36,963]
["   из них:\n      приобретенных за последний год",{"$nulls":13},37,14]
["      используются в учебных целях",{"$nulls":13},38,941]
["Число персональных ЭВМ в составе локальных вычислительных сетей (из стр.36) (ед)",{"$nulls":13},39,839]
["   из них (из стр.39):\n      используются в учебных целях",{"$nulls":13},40,821]
["Число переносных компьютеров (ноутбуков, планшетов) (из стр.36) (ед)",{"$nulls":13},41,645]
["   из них (из стр.41):\n      используются в учебных целях",{"$nulls":13},42,645]
["Подключено ли учреждение к сети Интернет (да, нет)",{"$nulls":13},43]
["Тип подключения к сети Интернет:\n   модем",{"$nulls":13},44]
["   выделенная линия",{"$nulls":13},45]
["   спутниковое",{"$nulls":13},46]
["Скорость подключения к сети Интернет:\n   от 128 кбит/с до 256 кбит/с (да, нет)",{"$nulls":13},47]
["   от 256 кбит/с до 1 мбит/с (да, нет)",{"$nulls":13},48]
["   от 1 мбит/с до 5 мбит/с (да, нет)",{"$nulls":13},49]
["   от 5 мбит/с и выше (да, нет)",{"$nulls":13},50]
["Число персональных ЭВМ, подключенных к сети Интернет (из стр.36) (ед)",{"$nulls":13},51,917]
["   из них (из стр.51):\n      используются в учебных целях",{"$nulls":13},52,901]
["Имеет ли учреждение адрес электронной почты (да, нет)",{"$nulls":13},53]
["Имеет ли учреждение собственный сайт в сети Интернет (да, нет)",{"$nulls":13},54]
["Ведется ли в учреждении электронный дневник, электронный журнал успеваемости (да, нет)",{"$nulls":13},55]
["Имеет ли учреждение электронную библиотеку (да, нет)",{"$nulls":13},56]
["Реализуются ли в учреждении образовательные программы с использованием\nдистанционных технологий (да, нет)",{"$nulls":13},57]
["Имеет ли учреждение пожарную сигнализацию (да, нет)",{"$nulls":13},58]
["Имеет ли учреждение дымовые извещатели (да, нет)",{"$nulls":13},59]
["Имеет ли учреждение пожарные краны и рукава (да, нет)",{"$nulls":13},60]
["Число огнетушителей (ед)",{"$nulls":13},61,323]
["Число сотрудников охраны (при отсутствии охраны поставить \"0\") (чел)",{"$nulls":13},62,58]
["Имеет ли учреждение системы видеонаблюдения (да, нет)",{"$nulls":13},63]
["Имеет ли учреждение «тревожную кнопку» (да, нет)",{"$nulls":13},64]
["Имеет ли учреждение условия для беспрепятственного доступа инвалидов (да, нет)",{"$nulls":13},65]
["Имеет ли учреждение на сайте нормативно закрепленный перечень сведений о своей деятельности (да, нет)",{"$nulls":13},66]

{"sheet":"Раздел 14","index":14,"n_rows":28,"n_cols":19,"rows_kept":28,"merged":[[15,0,15,18],[16,0,16,18],[17,0,18,0],[17,14,18,14],[17,15,17,16],[17,17,17,18]]}
{"$rows_empty":15}
["Раздел 14. Кружковая работа обучающихся за 2014/2015 учебный год"]
["Коды по ОКЕИ: человек – 792; единица – 642"]
["Наименование кружков",{"$nulls":13},"№\nстроки","Число кружков, ед",null,"в них обучающихся, чел"]
[{"$nulls":15},"всего","в том числе платные","всего","в том числе платных"]
[1,{"$nulls":13},2,3,4,5,6]
["Технические",{"$nulls":13},{"v":1,"d":"01"},21,0,321,0]
["Эколого-биологические",{"$nulls":13},{"v":2,"d":"02"},3,0,42,0]
["Туристско-краеведческие",{"$nulls":13},{"v":3,"d":"03"},4,0,57,0]
["Спортивные",{"$nulls":13},{"v":4,"d":"04"},25,0,400,0]
["Художественного творчества",{"$nulls":13},{"v":5,"d":"05"},13,0,231,0]
["Другие",{"$nulls":13},{"v":6,"d":"06"},82,0,{"v":1365,"d":"1,365"},0]
["Всего (сумма строк 01-06)",{"$nulls":13},{"v":7,"d":"07"},148,0,{"v":2416,"d":"2,416"},0]
["из них численность занимающихся в 2 и более кружках",{"$nulls":13},{"v":8,"d":"08"},null,null,440,0]

{"sheet":"Раздел 15","index":15,"n_rows":36,"n_cols":18,"rows_kept":36,"merged":[[16,0,16,17],[17,0,17,17]]}
{"$rows_empty":16}
["Раздел 15. Сведения об обучающихся, выбывших из учреждения в течение 2014/2015 учебного года\nи летнего периода 2015 г\n(не считая окончивших 4  класс в начальной школе, 9 класс в основной школе, 11 (12) класс в средней школе)"]
["Код по ОКЕИ: человек – 792"]
["Причины выбытия","№\nстроки",{"$nulls":13},"1-4 классы","5-9 классы","10-11 (12) классы"]
[1,2,{"$nulls":13},3,4,5]
[" Всего выбыло (сумма строк 02-06, 08-16)",{"v":1,"d":"01"},{"$nulls":13},53,281,37]
[" в том числе:\n   в дневные общеобразовательные учреждения",{"v":2,"d":"02"},{"$nulls":13},52,87,5]
["   в специальные (коррекционные) учреждения и классы для детей с ограниченными\n   возможностями здоровья",{"v":3,"d":"03"},{"$nulls":13},0,0,0]
["   в вечерние (сменные) общеобразовательные учреждения",{"v":4,"d":"04"},{"$nulls":13},0,0,0]
["   в образовательные учреждения среднего профессионального образования (дневное обучение)",{"v":5,"d":"05"},{"$nulls":14},187,31]
["   в образовательные учреждения начального профессионального образования ",{"v":6,"d":"06"},{"$nulls":13},0,0,0]
["      в том числе в группы, не осуществляющие общеобразовательную подготовку",{"v":7,"d":"07"},{"$nulls":13},0,0,0]
["   на различные курсы",{"v":8,"d":"08"},{"$nulls":14},0,0]
["   исключены за недостойное поведение",{"v":9,"d":"09"},{"$nulls":13},0,0,0]
["   из-за длительной болезни",10,{"$nulls":13},0,0,0]
["   в специальные учебно-воспитательные учреждения и воспитательно-трудовые колонии",11,{"$nulls":13},0,0,0]
["   поступили на работу и не продолжают обучение",12,{"$nulls":13},0,0,0]
["   не работают и не учатся",13,{"$nulls":13},0,0,0]
["   отчислены по неуспеваемости",14,{"$nulls":13},0,0,0]
["   по причине смерти обучающегося",15,{"$nulls":13},0,1,0]
["   по другим причинам",16,{"$nulls":13},1,6,1]

{"sheet":"Раздел 16","index":16,"n_rows":25,"n_cols":31,"rows_kept":25,"merged":[[15,0,15,30],[16,0,16,30],[17,0,18,0],[17,1,18,1],[17,15,17,16],[17,17,17,18],[17,19,17,20],[17,21,17,22],[17,23,17,24],[17,25,17,26],[17,27,17,28],[17,29,17,30]]}
{"$rows_empty":15}
["Раздел 16. Сведения о преподавании иностранных языков"]
["Коды по ОКЕИ: человек – 792; единица – 642"]
["Классы, в которых преподаются иностранные языки"," №\nстроки",{"$nulls":13},"английский",null,"французский",null,"немецкий",null,"итальянский",null,"испанский",null,"китайский",null,"арабский",null,"другие"]
[{"$nulls":15},"число классов (групп) (ед)","обучаю-щихся (чел)","число классов (групп) (ед)","обучаю-щихся (чел)","число классов (групп) (ед)","обучаю-щихся (чел)","число классов (групп) (ед)","обучаю-щихся (чел)","число классов (групп) (ед)","обучаю-щихся (чел)","число классов (групп) (ед)","обучаю-щихся (чел)","число классов (групп) (ед)","обучаю-щихся (чел)","число классов (групп) (ед)","обучаю-щихся (чел)"]
[1,2,{"$nulls":13},3,4,5,6,7,8,9,10,11,12,13,14,15,16,17,18]
["1-4 классы",{"v":1,"d":"01"},{"$nulls":13},79,808,0,0,3,16,0,0,0,0,0,0,0,0,0,0]
["5-9 классы",{"v":2,"d":"02"},{"$nulls":13},103,{"v":1201,"d":"1,201"},0,0,20,180,0,0,0,0,0,0,0,0,0,0]
["10-11 (12) классы",{"v":3,"d":"03"},{"$nulls":13},22,168,0,0,8,46,0,0,0,0,0,0,0,0,0,0]
["Всего (сумма строк 01-03)",{"v":4,"d":"04"},{"$nulls":13},204,{"v":2177,"d":"2,177"},0,0,31,242,0,0,0,0,0,0,0,0,0,0]
["   из них (из стр. 04) изучающих 2-ой,\n   3-ий и более иностранные языки",{"v":5,"d":"05"},{"$nulls":13},0,0,0,0,0,0,0,0,0,0,0,0,0,0,0,0]

{"sheet":"Раздел 17","index":17,"n_rows":32,"n_cols":23,"rows_kept":32,"merged":[[15,0,15,22],[16,0,16,22],[17,0,18,0],[17,14,18,14],[17,15,17,18],[17,19,17,22]]}
{"$rows_empty":15}
["Раздел 17. Сведения об углубленном изучении отдельных предметов"]
["Код по ОКЕИ: человек – 792; единица – 642"]
["Профили обучения",{"$nulls":13},"№\nстроки","Число классов (групп) с углубленным изучением предметов (ед)",{"$nulls":3},"Численность обучающихся в классах (группах) с углубленным изучением предметов (чел)"]
[{"$nulls":15},"1 - 4","5 - 9","10 - 11 (12)","Итого","1 - 4","5 - 9","10 - 11 (12)","Итого"]
[1,{"$nulls":13},2,3,4,5,6,7,8,9,10]
[" Гуманитарный - всего",{"$nulls":13},{"v":1,"d":"01"},5,5,1,11,129,130,17,276]
[" из них с изучением языков:\n   английского",{"$nulls":13},{"v":2,"d":"02"},0,0,0,0,0,0,0,0]
["   французского",{"$nulls":13},{"v":3,"d":"03"},0,0,0,0,0,0,0,0]
["   немецкого",{"$nulls":13},{"v":4,"d":"04"},0,0,0,0,0,0,0,0]
["   других европейских",{"$nulls":13},{"v":5,"d":"05"},0,0,0,0,0,0,0,0]
["   восточных",{"$nulls":13},{"v":6,"d":"06"},0,0,0,0,0,0,0,0]
[" Естественно-научный",{"$nulls":13},{"v":7,"d":"07"},0,0,0,0,0,0,0,0]
[" Технический",{"$nulls":13},{"v":8,"d":"08"},0,0,0,0,0,0,0,0]
[" Сельскохозяйственный",{"$nulls":13},{"v":9,"d":"09"},0,0,0,0,0,0,0,0]
[" Другие",{"$nulls":13},10,0,0,0,0,0,0,0,0]
[]
[" "]

{"sheet":"Раздел 18","index":18,"n_rows":37,"n_cols":17,"rows_kept":37,"merged":[[16,0,16,16],[17,0,17,16]]}
{"$rows_empty":16}
["Раздел 18. Сведения о профильном обучении"]
["Коды по ОКЕИ: единица – 642; человек – 792"]
["Профили обучения",{"$nulls":13},"№\nстроки","Число 10-11 (12) классов (групп) профильного обучения (ед)","Численность учащихся 10-11 (12) классов, обучающихся по программам профильного обучения (чел)"]
[1,{"$nulls":13},2,3,4]
["Всего (сумма строк 02, 07-16)",{"$nulls":13},{"v":1,"d":"01"},16,141]
["Технологический – всего (сумма стр.03-06)",{"$nulls":13},{"v":2,"d":"02"},3,12]
["   в том числе:\n      информационно-технологический",{"$nulls":13},{"v":3,"d":"03"},3,12]
["      агротехнологический",{"$nulls":13},{"v":4,"d":"04"},0,0]
["      индустриально-технологический",{"$nulls":13},{"v":5,"d":"05"},0,0]
["      другие технологические",{"$nulls":13},{"v":6,"d":"06"},0,0]
["Физико-математический",{"$nulls":13},{"v":7,"d":"07"},0,0]
["Физико-химический",{"$nulls":13},{"v":8,"d":"08"},0,0]
["Химико-биологический",{"$nulls":13},{"v":9,"d":"09"},2,19]
["Биолого-географический",{"$nulls":13},10,1,3]
["Социально-экономический",{"$nulls":13},11,5,36]
["Социально-гуманитарный",{"$nulls":13},12,4,56]
["Филологический",{"$nulls":13},13,0,0]
["Художественно-эстетический",{"$nulls":13},14,0,0]
["Оборонно-спортивный",{"$nulls":13},15,0,0]
["Другие",{"$nulls":13},16,1,15]
["Кроме того (стр.01), индивидуальные образовательные программы профильного обучения",{"$nulls":13},17,0,0]

{"sheet":"Раздел 19","index":19,"n_rows":29,"n_cols":19,"rows_kept":29,"merged":[[15,0,15,18],[16,0,16,18],[17,0,18,0],[17,14,18,14],[17,15,17,17],[17,18,18,18]]}
{"$rows_empty":15}
["Раздел 19. Сведения об обучающихся в специальных (коррекционных) классах для детей с ограниченными возможностями здоровья, организованных при общеобразовательных учреждениях"]
["Коды по ОКЕИ: человек - 792"]
["Наименование\n(согласно типовым положениям)",{"$nulls":13},"№\nстроки","Из общей численности обучающихся",null,null,"Выпуск обучающихся (из раздела 2 строки 30)"]
[{"$nulls":15},"дети-инвалиды","дети-сироты (устроенные под надзор в об-разовательных организациях)","приходящие обучающиеся"]
[1,{"$nulls":13},2,3,4,5,6]
["Специальные (коррекционные) классы (сумма строк 02-09)",{"$nulls":13},{"v":1,"d":"01"},0,0,0,0]
["   классы для неслышащих детей",{"$nulls":13},{"v":2,"d":"02"},0,0,0,0]
["   классы для слабослышащих и позднооглохших детей ",{"$nulls":13},{"v":3,"d":"03"},0,0,0,0]
["   классы для незрячих детей ",{"$nulls":13},{"v":4,"d":"04"},0,0,0,0]
["   классы для слабовидящих и поздноослепших детей",{"$nulls":13},{"v":5,"d":"05"},0,0,0,0]
["   классы для детей с тяжелой речевой патологией",{"$nulls":13},{"v":6,"d":"06"},0,0,0,0]
["   классы для детей с нарушениями опорно-двигательного аппарата",{"$nulls":13},{"v":7,"d":"07"},0,0,0,0]
["   классы для детей с задержкой психического развития",{"$nulls":13},{"v":8,"d":"08"},0,0,0,0]
["   классы для детей с умственной отсталостью",{"$nulls":13},{"v":9,"d":"09"},0,0,0,0]

{"sheet":"Раздел 20","index":20,"n_rows":35,"n_cols":26,"rows_kept":35,"merged":[[13,0,13,25],[14,0,14,25],[15,0,15,25],[16,0,18,0],[16,14,18,14],[16,15,18,15],[16,16,16,25],[17,16,18,16],[17,17,17,24],[17,25,18,25]]}
{"$rows_empty":14}
["Раздел 20. Сведения о детях-инвалидах и детях с ограниченными возможностями здоровья в специальных (коррекционных) классах для детей\n с ограниченными возможностями здоровья, организованных при общеобразовательных учреждениях"]
["Коды по ОКЕИ: человек - 792"]
["Классы",{"$nulls":13},"№\nстроки","Всего обуча-ющихся в специальных (коррекцион-ных) классах (чел)","из них (из гр. 3)"]
[{"$nulls":16},"дети с огра-ниченными возможностя-ми здоровья (сумма граф\n5-12)","в том числе (из гр. 4)",{"$nulls":7},"дети-инвалиды"]
[{"$nulls":17},"неслышащие","слабослыша-щие и поздно-оглохшие","незрячие","слабо-видящие и поздно-ослепшие","с тяжёлой речевой патологией ","с наруше-ниями опорно-двига-тельного аппарата","с задержкой психического развития","с умственной отсталостью"]
[1,{"$nulls":13},2,3,4,5,6,7,8,9,10,11,12,13]
["Подготовительный класс",{"$nulls":13},{"v":1,"d":"01"},0,0,0,0,0,0,0,0,0,0,0]
["1-й класс",{"$nulls":13},{"v":2,"d":"02"},0,0,0,0,0,0,0,0,0,0,0]
["1-й класс, организованный в дошкольном учреждении",{"$nulls":13},{"v":3,"d":"03"},0,0,0,0,0,0,0,0,0,0,0]
["2-й класс",{"$nulls":13},{"v":4,"d":"04"},0,0,0,0,0,0,0,0,0,0,0]
["3-й класс",{"$nulls":13},{"v":5,"d":"05"},0,0,0,0,0,0,0,0,0,0,0]
["4-й класс",{"$nulls":13},{"v":6,"d":"06"},0,0,0,0,0,0,0,0,0,0,0]
["5-й класс",{"$nulls":13},{"v":7,"d":"07"},0,0,0,0,0,0,0,0,0,0,0]
["6-й класс",{"$nulls":13},{"v":8,"d":"08"},0,0,0,0,0,0,0,0,0,0,0]
["7-й класс",{"$nulls":13},{"v":9,"d":"09"},0,0,0,0,0,0,0,0,0,0,0]
["8-й класс",{"$nulls":13},10,0,0,0,0,0,0,0,0,0,0,0]
["9-й класс",{"$nulls":13},11,0,0,0,0,0,0,0,0,0,0,0]
["10-й класс",{"$nulls":13},12,0,0,0,0,0,0,0,0,0,0,0]
["11-й класс",{"$nulls":13},13,0,0,0,0,0,0,0,0,0,0,0]
["12-й класс",{"$nulls":13},14,0,0,0,0,0,0,0,0,0,0,0]
["Всего (сумма строк 01-14)",{"$nulls":13},15,0,0,0,0,0,0,0,0,0,0,0]

{"sheet":"Раздел 21","index":21,"n_rows":37,"n_cols":26,"rows_kept":37,"merged":[[13,0,13,25],[14,0,14,25],[15,0,15,25],[16,0,18,0],[16,14,18,14],[16,15,18,15],[16,16,16,25],[17,16,18,16],[17,17,17,24],[17,25,18,25],[36,0,36,25]]}
{"$rows_empty":14}
["Раздел 21. Сведения о детях-инвалидах и детях с ограниченными возможностями здоровья в обычных классах"]
["Коды по ОКЕИ: человек - 792"]
["Классы",{"$nulls":13},"№\nстроки","Всего обуча-ющихся в обычных классах * (чел)","из них (из гр. 3)"]
[{"$nulls":16},"дети с огра-ниченными возможностя-ми здоровья (сумма граф\n5-12)","в том числе (из гр. 4)",{"$nulls":7},"дети-инвалиды"]
[{"$nulls":17},"неслышащие","слабослыша-щие и поздно-оглохшие","незрячие","слабо-видящие и поздно-ослепшие","с тяжёлой речевой патологией ","с наруше-ниями опорно-двига-тельного аппарата","с задержкой психического развития","с умственной отсталостью"]
[1,{"$nulls":13},2,3,4,5,6,7,8,9,10,11,12,13]
["Подготовительный класс",{"$nulls":13},{"v":1,"d":"01"},0,0,0,0,0,0,0,0,0,0,0]
["1-й класс",{"$nulls":13},{"v":2,"d":"02"},303,0,0,0,0,0,0,0,0,0,0]
["1-й класс, организованный в дошкольном учреждении",{"$nulls":13},{"v":3,"d":"03"},0,0,0,0,0,0,0,0,0,0,0]
["2-й класс",{"$nulls":13},{"v":4,"d":"04"},290,5,0,0,0,1,0,4,0,0,5]
["3-й класс",{"$nulls":13},{"v":5,"d":"05"},294,5,0,1,0,1,0,2,0,1,6]
["4-й класс",{"$nulls":13},{"v":6,"d":"06"},241,3,0,0,0,0,2,1,0,0,4]
["5-й класс",{"$nulls":13},{"v":7,"d":"07"},269,4,0,0,0,0,0,0,1,3,3]
["6-й класс",{"$nulls":13},{"v":8,"d":"08"},290,2,0,0,0,1,0,0,0,1,2]
["7-й класс",{"$nulls":13},{"v":9,"d":"09"},281,6,0,0,0,1,1,3,0,1,6]
["8-й класс",{"$nulls":13},10,266,3,0,0,0,0,0,0,1,2,1]
["9-й класс",{"$nulls":13},11,275,4,0,0,0,1,0,1,0,2,2]
["10-й класс",{"$nulls":13},12,105,0,0,0,0,0,0,0,0,0,0]
["11-й класс",{"$nulls":13},13,109,0,0,0,0,0,0,0,0,0,0]
["12-й класс",{"$nulls":13},14,0,0,0,0,0,0,0,0,0,0,0]
["Всего (сумма строк 01-14)",{"$nulls":13},15,{"v":2723,"d":"2,723"},32,0,1,0,5,3,11,2,10,29]
[]
["Для целей настоящего отчета: * под обычным классом подразумевается любой класс, кроме специального (коррекционного) класса, организованного при общеобразовательном учреждении"]

{"sheet":"Раздел 22","index":22,"n_rows":35,"n_cols":23,"rows_kept":35,"merged":[[16,0,16,17],[17,0,17,17],[30,14,30,16],[30,18,30,20],[31,14,31,16],[31,18,31,20],[33,14,33,16],[33,18,33,20],[34,14,34,16],[34,18,34,20]]}
{"$rows_empty":16}
["Раздел 22. Сведения об обучающихся индивидуально на дому детей-инвалидов\nи детях с ограниченными возможностями здоровья\n(из раздела 4 строки 20-25)"]
["Коды по ОКЕИ: человек – 792"]
["Наименование",{"$nulls":13},"№\nстроки","Инвалиды, дети-инвалиды","из них (из графы 3)            дети-инвалиды","Обучающиеся с ограниченными возможностями здоровья"]
[1,{"$nulls":13},2,3,4,5]
["Численность обучающихся на дому по программам специальных (коррекционных) образовательных учреждений I-VIII видов",{"$nulls":13},{"v":1,"d":"01"},0,0,0]
["   из них (из стр.01) обучающихся с использованием дистанционных технологий",{"$nulls":13},{"v":2,"d":"02"},0,0,0]
["Численность обучающихся на дому по общеобразовательным программам",{"$nulls":13},{"v":3,"d":"03"},12,10,6]
["   из них (из стр.03) обучающихся с использованием дистанционных технологий",{"$nulls":13},{"v":4,"d":"04"},1,1,1]
["Численность обучающихся на дому по индивидуальным учебным планам\n(из суммы строк 01 и 03)",{"$nulls":13},{"v":5,"d":"05"},11,9,6]
["   из них (из стр.05) обучающихся с использованием дистанционных технологий",{"$nulls":13},{"v":6,"d":"06"},1,1,1]
[]
[]
[]
["Должностное лицо, ответственное за предоставление статистической информации (лицо, уполномоченное предоставлять статистическую информацию от имени "]
["юридического лица) ",{"$nulls":13},"директор; директор; Руководитель; директор школы; Директор школы:; Директор; Директор; Директор; Директор школы; Директор школы; директор; Директор; Директор школы; Директор школы; Руководитель; Директор школы; директор; директор; директор; директор; Директор школы; Директор школы",{"$nulls":3},"Сунгатуллина Г.Н.; Фомин Олег Юрьевич; Стукало Л.А.; Борисова Н.Ю.; Х.Х.Байрамов; Устимова Мария Владимировна; Захаров Михаил Николаевич; Косова Елена Алексеевна; Ягудин Искандар Мавлемович; Хушанова И.Л.; Э.К.Миндубаева; Сорокина Любовь Павловна; Баршис Елена Анатольевна; Долганова М.А.; Хаметшин Марат Зиннурович; Нуретдинова Гульсина Наиловна; Казакова Г.Р.; Федоров Генадий Зиновьевич; Юлдашева В.Н.; Шигапова Л.Р.; Долганова М.А.; Ягудин Искандар Мавлемович"]
[{"$nulls":14},"(должность)",{"$nulls":3},"(Ф.И.О)",{"$nulls":3},"(подпись)"]
[]
[{"$nulls":14},"(843)412-60-22; (843)412-57-80; (8843)414-33-65; (843)414-02-36; (843)413-02-17; (8843)414-00-08; (843)413-21-24; (843)413-26-53; (843)413-00-46; (84341)3-40-19; (8843)413-42-14; (843)413-47-10; (843)413-35-16; (843)414-07-29; (841)424-05-65; (84341)3-40-19; (843)413-21-24"]
[{"$nulls":14},"(номер контактного телефона)",{"$nulls":3},"(дата составления документа)"]

{"sheet":"Флак","index":23,"n_rows":878,"n_cols":16,"rows_kept":878,"hidden":true}
["T_Check",{"$nulls":8},"Data_Adr",{"$nulls":4},"Verificationcheck"]
["ID_Form","ID_Section","ID_Rule","ID_Check","Name","P_Left","P_Right","Result",null,"ID_Element","Sorting","Name","Val",null,"Дата проведения проверки","Результат проведения проверки: 0-не проводилась, 1-проводилась (ошибок нет), 2-проводилась (есть ошибки)"]
[{"$f":"P_3","v":609535},0,0,0,{"$f":"CONCATENATE(\"Количество ошибок в документе: \",H3)","v":"Количество ошибок в документе: 4"},null,null,{"$f":"SUM(H4:H8,H9,H18,H26,H30,H246,H374,H376,H380,H383,H385,H387,H415,H451,H458,H531,H600,H622,H627,H684,H741,H763)","v":4},null,"P_FormName",1,"Наименование формы:  ","Форма № ОШ-1"]
[609535,0,1,1,"   Не указано наименование отчитывающейся организации",null,null,{"$f":"IF(LEN(P_1)<>0,0,1)","v":0},null,"P_Name",2,"Наименование отчитыающейся организации:  ",{"$f":"IF(P_1=0,\"Нет данных\",P_1)","v":"МКУ \"Отдел образования Алексеевского муниципального района\""},null,{"$f":"TODAY()","v":"2015-11-19"},0]
[609535,0,2,2,"   Не указан почтовый адрес",null,null,{"$f":"IF(LEN(P_2)<>0,0,1)","v":0},null,"P_Adress",3,"Почтовый адрес:  ",{"$f":"IF(P_2=0,\"Нет данных\",P_2)","v":"Респ. Татарстан, Алексеевский район, пгт. Алексеевское, ул. Казакова, д. 9 Б"}]
[609535,0,3,3,"   Не указан код ОКУД",null,null,{"$f":"IF(LEN(P_3)<>0,0,1)","v":0},null,"P_OKUD",4,"Код формы по ОКУД:  ",{"$f":"TEXT(P_3,\"0000000\")","v":"0609535"}]
[609535,0,4,4,"   Не указан код ОКПО",null,null,{"$f":"IF(LEN(P_4)<>0,0,1)","v":1},null,"P_OKPO",5,"Код отчитывающейся  организации по ОКПО:  ",{"$f":"IF(P_4=0,\"Нет данных\",P_4)","v":"Нет данных"}]
[609535,0,5,5,"   Не указан код учреждения-локальный ",null,null,{"$f":"IF(LEN(P_5)<>0,0,1)","v":1},null,"P_KOD_INST_LOC",6,"Код учреждения-локальный:",{"$f":"IF(P_5=0,\"Нет данных\",P_5)","v":"Нет данных"}]
[609535,1,0,0,{"$f":"CONCATENATE(\"Количество ошибок в разделе 1: \",H9)","v":"Количество ошибок в разделе 1: 0"},null,null,{"$f":"SUM(H10:H17)","v":0},null,"Конец DATA_ADR"]
[609535,1,1,1,"Раздел 1 графа 10 строка 01 = Раздел 1 строка  01 сумма граф 03 + 04 + 05 + 06 + 07 + 08 + 09",null,null,{"$f":"IF('Раздел 1'!W21=SUM('Раздел 1'!P21,'Раздел 1'!Q22:S22,'Раздел 1'!T21:V21),0,1)","v":0}]
[609535,1,1,2,"Раздел 1 графа 10 строка 02 = Раздел 1 строка  02 сумма граф 03 + 04 + 05 + 06 + 07 + 08 + 09",null,null,{"$f":"IF('Раздел 1'!W23=SUM('Раздел 1'!P23,'Раздел 1'!Q24:S24,'Раздел 1'!T23:V23),0,1)","v":0}]
[609535,1,1,3,"Раздел 1 графа 10 строка 03 = Раздел 1 строка  03 сумма граф 03 + 04 + 05 + 06 + 07 + 08 + 09",null,null,{"$f":"IF('Раздел 1'!W25=SUM('Раздел 1'!P25,'Раздел 1'!Q26:S26,'Раздел 1'!T25:V25),0,1)","v":0}]
[609535,1,1,4,"Раздел 1 графа 10 строка 04 = Раздел 1 строка  04 сумма граф 03 + 04 + 05 + 06 + 07 + 08 + 09",null,null,{"$f":"IF('Раздел 1'!W27=SUM('Раздел 1'!P27:V27),0,1)","v":0}]
[609535,1,1,5,"Раздел 1 графа 10 строка 05 = Раздел 1 строка  05 сумма граф 03 + 04 + 05 + 06 + 07 + 08 + 09",null,null,{"$f":"IF('Раздел 1'!W28=SUM('Раздел 1'!P28:V28),0,1)","v":0}]
[609535,1,1,6,"Раздел 1 графа 10 строка 06 = Раздел 1 строка  06 сумма граф 03 + 04 + 05 + 06 + 07 + 08 + 09",null,null,{"$f":"IF('Раздел 1'!W29=SUM('Раздел 1'!P29:V29),0,1)","v":0}]
[609535,1,1,7,"Раздел 1 графа 10 строка 07 = Раздел 1 строка  07 сумма граф 03 + 04 + 05 + 06 + 07 + 08 + 09",null,null,{"$f":"IF('Раздел 1'!W30=SUM('Раздел 1'!P30:V30),0,1)","v":0}]
[609535,1,1,8,"Раздел 1 графа 10 строка 08 = Раздел 1 строка  08 сумма граф 03 + 04 + 05 + 06 + 07 + 08 + 09",null,null,{"$f":"IF('Раздел 1'!W31=SUM('Раздел 1'!P31:V31),0,1)","v":0}]
[609535,2,0,0,{"$f":"CONCATENATE(\"Количество ошибок в разделе 2: \",H18)","v":"Количество ошибок в разделе 2: 0"},null,null,{"$f":"SUM(H19:H25)","v":0}]
[609535,2,1,1,"Раздел 2 строка 20 графа 3 >= Раздел 2 строка 21 графа 3",null,null,{"$f":"IF('Раздел 2'!P40>='Раздел 2'!P41,0,1)","v":0}]
[609535,2,2,2,"Раздел 2 строка 21 графа 3 >= Раздел 2 строка 22 графа 3",null,null,{"$f":"IF('Раздел 2'!P41>='Раздел 2'!P42,0,1)","v":0}]
[609535,2,3,3,"Раздел 2 строка 21 графа 3 >= Раздел 2 строка 24 графа 3",null,null,{"$f":"IF('Раздел 2'!P41>='Раздел 2'!P44,0,1)","v":0}]
[609535,2,4,4,"Раздел 2 строка 22 графа 3 >= Раздел 2 строка 23 графа 3",null,null,{"$f":"IF('Раздел 2'!P42>='Раздел 2'!P43,0,1)","v":0}]
[609535,2,5,5,"Раздел 2 строка 24 графа 3 >= Раздел 2 строка 25 графа 3",null,null,{"$f":"IF('Раздел 2'!P44>='Раздел 2'!P45,0,1)","v":0}]
[609535,2,6,6,"Раздел 2 строка 28 графа 3 >= Раздел 2 строка 29 графа 3",null,null,{"$f":"IF('Раздел 2'!P48>='Раздел 2'!P49,0,1)","v":0}]
[609535,2,7,7,"Раздел 2 строка 30 графа 3 >= Раздел 2 строка 31 графа 3",null,null,{"$f":"IF('Раздел 2'!P50>='Раздел 2'!P51,0,1)","v":0}]
[609535,3,0,0,{"$f":"CONCATENATE(\"Количество ошибок в разделе 3: \",H26)","v":"Количество ошибок в разделе 3: 0"},null,null,{"$f":"SUM(H27:H29)","v":0}]
[609535,3,1,1,"Раздел 3 строка 04 графа 03 = Раздел 3 сумма строк 01 + 02 + 03 графа 03",null,null,{"$f":"IF('Раздел 3'!P24=SUM('Раздел 3'!P21:P23),0,1)","v":0}]
[609535,3,1,2,"Раздел 3 строка 04 графа 04 = Раздел 3 сумма строк 01 + 02 + 03 графа 04",null,null,{"$f":"IF('Раздел 3'!Q24=SUM('Раздел 3'!Q21:Q23),0,1)","v":0}]
[609535,3,2,3,"Раздел 3 строка 04 графа 03 >= Раздел 3 строка 05 графа 03",null,null,{"$f":"IF('Раздел 3'!P24>='Раздел 3'!P25,0,1)","v":0}]
[609535,4,0,0,{"$f":"CONCATENATE(\"Количество ошибок в разделе 4: \",H30)","v":"Количество ошибок в разделе 4: 0"},null,null,{"$f":"SUM(H31:H245)","v":0}]
[609535,4,1,1,"Раздел 4 строка 15 графа 03 = Раздел 4 сумма строк  01 + 02 + 03 + 04 + 05 + 06 + 07 + 08 + 09 + 10 + 11 + 12 + 13 + 14 графа 03",null,null,{"$f":"IF('Раздел 4'!P35=SUM('Раздел 4'!P21:P34),0,1)","v":0}]
[609535,4,1,2,"Раздел 4 строка 15 графа 04 = Раздел 4 сумма строк  01 + 02 + 03 + 04 + 05 + 06 + 07 + 08 + 09 + 10 + 11 + 12 + 13 + 14 графа 04",null,null,{"$f":"IF('Раздел 4'!Q35=SUM('Раздел 4'!Q21:Q34),0,1)","v":0}]
[609535,4,1,3,"Раздел 4 строка 15 графа 05 = Раздел 4 сумма строк  01 + 02 + 03 + 04 + 05 + 06 + 07 + 08 + 09 + 10 + 11 + 12 + 13 + 14 графа 05",null,null,{"$f":"IF('Раздел 4'!R35=SUM('Раздел 4'!R21:R34),0,1)","v":0}]
[609535,4,1,4,"Раздел 4 строка 15 графа 06 = Раздел 4 сумма строк  01 + 02 + 03 + 04 + 05 + 06 + 07 + 08 + 09 + 10 + 11 + 12 + 13 + 14 графа 06",null,null,{"$f":"IF('Раздел 4'!S35=SUM('Раздел 4'!S21:S34),0,1)","v":0}]
[609535,4,1,5,"Раздел 4 строка 15 графа 07 = Раздел 4 сумма строк  01 + 02 + 03 + 04 + 05 + 06 + 07 + 08 + 09 + 10 + 11 + 12 + 13 + 14 графа 07",null,null,{"$f":"IF('Раздел 4'!T35=SUM('Раздел 4'!T21:T34),0,1)","v":0}]
[609535,4,1,6,"Раздел 4 строка 15 графа 08 = Раздел 4 сумма строк  01 + 02 + 03 + 04 + 05 + 06 + 07 + 08 + 09 + 10 + 11 + 12 + 13 + 14 графа 08",null,null,{"$f":"IF('Раздел 4'!U35=SUM('Раздел 4'!U21:U34),0,1)","v":0}]
[609535,4,1,7,"Раздел 4 строка 15 графа 09 = Раздел 4 сумма строк  01 + 02 + 03 + 04 + 05 + 06 + 07 + 08 + 09 + 10 + 11 + 12 + 13 + 14 графа 09",null,null,{"$f":"IF('Раздел 4'!V35=SUM('Раздел 4'!V21:V34),0,1)","v":0}]
[609535,4,1,8,"Раздел 4 строка 15 графа 10 = Раздел 4 сумма строк  01 + 02 + 03 + 04 + 05 + 06 + 07 + 08 + 09 + 10 + 11 + 12 + 13 + 14 графа 10",null,null,{"$f":"IF('Раздел 4'!W35=SUM('Раздел 4'!W21:W34),0,1)","v":0}]
[609535,4,1,9,"Раздел 4 строка 15 графа 11 = Раздел 4 сумма строк  01 + 02 + 03 + 04 + 05 + 06 + 07 + 08 + 09 + 10 + 11 + 12 + 13 + 14 графа 11",null,null,{"$f":"IF('Раздел 4'!X35=SUM('Раздел 4'!X21:X34),0,1)","v":0}]
[609535,4,1,10,"Раздел 4 строка 15 графа 12 = Раздел 4 сумма строк  01 + 02 + 03 + 04 + 05 + 06 + 07 + 08 + 09 + 10 + 11 + 12 + 13 + 14 графа 12",null,null,{"$f":"IF('Раздел 4'!Y35=SUM('Раздел 4'!Y21:Y34),0,1)","v":0}]
[609535,4,1,11,"Раздел 4 строка 15 графа 13 = Раздел 4 сумма строк  01 + 02 + 03 + 04 + 05 + 06 + 07 + 08 + 09 + 10 + 11 + 12 + 13 + 14 графа 13",null,null,{"$f":"IF('Раздел 4'!Z35=SUM('Раздел 4'!Z21:Z34),0,1)","v":0}]
[609535,4,1,12,"Раздел 4 строка 15 графа 14 = Раздел 4 сумма строк  01 + 02 + 03 + 04 + 05 + 06 + 07 + 08 + 09 + 10 + 11 + 12 + 13 + 14 графа 14",null,null,{"$f":"IF('Раздел 4'!AA35=SUM('Раздел 4'!AA21:AA34),0,1)","v":0}]
[609535,4,1,13,"Раздел 4 строка 15 графа 15 = Раздел 4 сумма строк  01 + 02 + 03 + 04 + 05 + 06 + 07 + 08 + 09 + 10 + 11 + 12 + 13 + 14 графа 15",null,null,{"$f":"IF('Раздел 4'!AB35=SUM('Раздел 4'!AB21:AB34),0,1)","v":0}]
[609535,4,1,14,"Раздел 4 строка 15 графа 16 = Раздел 4 сумма строк  01 + 02 + 03 + 04 + 05 + 06 + 07 + 08 + 09 + 10 + 11 + 12 + 13 + 14 графа 16",null,null,{"$f":"IF('Раздел 4'!AC35=SUM('Раздел 4'!AC21:AC34),0,1)","v":0}]
[609535,4,1,15,"Раздел 4 строка 15 графа 17 = Раздел 4 сумма строк  01 + 02 + 03 + 04 + 05 + 06 + 07 + 08 + 09 + 10 + 11 + 12 + 13 + 14 графа 17",null,null,{"$f":"IF('Раздел 4'!AD35=SUM('Раздел 4'!AD21:AD34),0,1)","v":0}]
[609535,4,1,16,"Раздел 4 строка 15 графа 18 = Раздел 4 сумма строк  01 + 02 + 03 + 04 + 05 + 06 + 07 + 08 + 09 + 10 + 11 + 12 + 13 + 14 графа 18",null,null,{"$f":"IF('Раздел 4'!AE35=SUM('Раздел 4'!AE21:AE34),0,1)","v":0}]
[609535,4,1,17,"Раздел 4 строка 15 графа 19 = Раздел 4 сумма строк  01 + 02 + 03 + 04 + 05 + 06 + 07 + 08 + 09 + 10 + 11 + 12 + 13 + 14 графа 19",null,null,{"$f":"IF('Раздел 4'!AF35=SUM('Раздел 4'!AF21:AF34),0,1)","v":0}]
[609535,4,1,18,"Раздел 4 строка 15 графа 20 = Раздел 4 сумма строк  01 + 02 + 03 + 04 + 05 + 06 + 07 + 08 + 09 + 10 + 11 + 12 + 13 + 14 графа 20",null,null,{"$f":"IF('Раздел 4'!AG35=SUM('Раздел 4'!AG21:AG34),0,1)","v":0}]
[609535,4,1,19,"Раздел 4 строка 15 графа 21 = Раздел 4 сумма строк  01 + 02 + 03 + 04 + 05 + 06 + 07 + 08 + 09 + 10 + 11 + 12 + 13 + 14 графа 21",null,null,{"$f":"IF('Раздел 4'!AH35=SUM('Раздел 4'!AH21:AH34),0,1)","v":0}]
[609535,4,1,20,"Раздел 4 строка 15 графа 22 = Раздел 4 сумма строк  01 + 02 + 03 + 04 + 05 + 06 + 07 + 08 + 09 + 10 + 11 + 12 + 13 + 14 графа 22",null,null,{"$f":"IF('Раздел 4'!AI35=SUM('Раздел 4'!AI21:AI34),0,1)","v":0}]
[609535,4,1,21,"Раздел 4 строка 15 графа 23 = Раздел 4 сумма строк  01 + 02 + 03 + 04 + 05 + 06 + 07 + 08 + 09 + 10 + 11 + 12 + 13 + 14 графа 23",null,null,{"$f":"IF('Раздел 4'!AJ35=SUM('Раздел 4'!AJ21:AJ34),0,1)","v":0}]
[609535,4,2,12,"Раздел 4 строка 01 графа 05 <= Раздел 4 строка 01 графа 04",null,null,{"$f":"IF('Раздел 4'!R21<='Раздел 4'!Q21,0,1)","v":0}]
[609535,4,2,13,"Раздел 4 строка 02 графа 05 <= Раздел 4 строка 02 графа 04",null,null,{"$f":"IF('Раздел 4'!R22<='Раздел 4'!Q22,0,1)","v":0}]
[609535,4,2,14,"Раздел 4 строка 03 графа 05 <= Раздел 4 строка 03 графа 04",null,null,{"$f":"IF('Раздел 4'!R23<='Раздел 4'!Q23,0,1)","v":0}]
[609535,4,2,15,"Раздел 4 строка 04 графа 05 <= Раздел 4 строка 04 графа 04",null,null,{"$f":"IF('Раздел 4'!R24<='Раздел 4'!Q24,0,1)","v":0}]
[609535,4,2,16,"Раздел 4 строка 05 графа 05 <= Раздел 4 строка 05 графа 04",null,null,{"$f":"IF('Раздел 4'!R25<='Раздел 4'!Q25,0,1)","v":0}]
[609535,4,2,17,"Раздел 4 строка 06 графа 05 <= Раздел 4 строка 06 графа 04",null,null,{"$f":"IF('Раздел 4'!R26<='Раздел 4'!Q26,0,1)","v":0}]
[609535,4,2,18,"Раздел 4 строка 07 графа 05 <= Раздел 4 строка 07 графа 04",null,null,{"$f":"IF('Раздел 4'!R27<='Раздел 4'!Q27,0,1)","v":0}]
[609535,4,2,19,"Раздел 4 строка 08 графа 05 <= Раздел 4 строка 08 графа 04",null,null,{"$f":"IF('Раздел 4'!R28<='Раздел 4'!Q28,0,1)","v":0}]
[609535,4,2,20,"Раздел 4 строка 09 графа 05 <= Раздел 4 строка 09 графа 04",null,null,{"$f":"IF('Раздел 4'!R29<='Раздел 4'!Q29,0,1)","v":0}]
[609535,4,2,21,"Раздел 4 строка 10 графа 05 <= Раздел 4 строка 10 графа 04",null,null,{"$f":"IF('Раздел 4'!R30<='Раздел 4'!Q30,0,1)","v":0}]
[609535,4,2,22,"Раздел 4 строка 11 графа 05 <= Раздел 4 строка 11 графа 04",null,null,{"$f":"IF('Раздел 4'!R31<='Раздел 4'!Q31,0,1)","v":0}]
[609535,4,2,23,"Раздел 4 строка 12 графа 05 <= Раздел 4 строка 12 графа 04",null,null,{"$f":"IF('Раздел 4'!R32<='Раздел 4'!Q32,0,1)","v":0}]
[609535,4,2,24,"Раздел 4 строка 13 графа 05 <= Раздел 4 строка 13 графа 04",null,null,{"$f":"IF('Раздел 4'!R33<='Раздел 4'!Q33,0,1)","v":0}]
[609535,4,2,25,"Раздел 4 строка 14 графа 05 <= Раздел 4 строка 14 графа 04",null,null,{"$f":"IF('Раздел 4'!R34<='Раздел 4'!Q34,0,1)","v":0}]
[609535,4,2,26,"Раздел 4 строка 15 графа 05 <= Раздел 4 строка 15 графа 04",null,null,{"$f":"IF('Раздел 4'!R35<='Раздел 4'!Q35,0,1)","v":0}]
[{"$f":"P_3","v":609535},4,3,30,"Раздел 4 строка 01 графа 06 <= Раздел 4 строка 01 графа 04",null,null,{"$f":"IF('Раздел 4'!S21<='Раздел 4'!Q21,0,1)","v":0}]
[609535,4,3,31,"Раздел 4 строка 02 графа 06 <= Раздел 4 строка 02 графа 04",null,null,{"$f":"IF('Раздел 4'!S22<='Раздел 4'!Q22,0,1)","v":0}]
[609535,4,3,32,"Раздел 4 строка 03 графа 06 <= Раздел 4 строка 03 графа 04",null,null,{"$f":"IF('Раздел 4'!S23<='Раздел 4'!Q23,0,1)","v":0}]
[609535,4,3,33,"Раздел 4 строка 04 графа 06 <= Раздел 4 строка 04 графа 04",null,null,{"$f":"IF('Раздел 4'!S24<='Раздел 4'!Q24,0,1)","v":0}]
[609535,4,3,34,"Раздел 4 строка 05 графа 06 <= Раздел 4 строка 05 графа 04",null,null,{"$f":"IF('Раздел 4'!S25<='Раздел 4'!Q25,0,1)","v":0}]
[609535,4,3,35,"Раздел 4 строка 06 графа 06 <= Раздел 4 строка 06 графа 04",null,null,{"$f":"IF('Раздел 4'!S26<='Раздел 4'!Q26,0,1)","v":0}]
[609535,4,3,36,"Раздел 4 строка 07 графа 06 <= Раздел 4 строка 07 графа 04",null,null,{"$f":"IF('Раздел 4'!S27<='Раздел 4'!Q27,0,1)","v":0}]
[609535,4,3,37,"Раздел 4 строка 08 графа 06 <= Раздел 4 строка 08 графа 04",null,null,{"$f":"IF('Раздел 4'!S28<='Раздел 4'!Q28,0,1)","v":0}]
[609535,4,3,38,"Раздел 4 строка 09 графа 06 <= Раздел 4 строка 09 графа 04",null,null,{"$f":"IF('Раздел 4'!S29<='Раздел 4'!Q29,0,1)","v":0}]
[609535,4,3,39,"Раздел 4 строка 10 графа 06 <= Раздел 4 строка 10 графа 04",null,null,{"$f":"IF('Раздел 4'!S30<='Раздел 4'!Q30,0,1)","v":0}]
[609535,4,3,40,"Раздел 4 строка 11 графа 06 <= Раздел 4 строка 11 графа 04",null,null,{"$f":"IF('Раздел 4'!S31<='Раздел 4'!Q31,0,1)","v":0}]
[609535,4,3,41,"Раздел 4 строка 12 графа 06 <= Раздел 4 строка 12 графа 04",null,null,{"$f":"IF('Раздел 4'!S32<='Раздел 4'!Q32,0,1)","v":0}]
[609535,4,3,42,"Раздел 4 строка 13 графа 06 <= Раздел 4 строка 13 графа 04",null,null,{"$f":"IF('Раздел 4'!S33<='Раздел 4'!Q33,0,1)","v":0}]
[609535,4,3,43,"Раздел 4 строка 14 графа 06 <= Раздел 4 строка 14 графа 04",null,null,{"$f":"IF('Раздел 4'!S34<='Раздел 4'!Q34,0,1)","v":0}]
[609535,4,3,44,"Раздел 4 строка 15 графа 06 <= Раздел 4 строка 15 графа 04",null,null,{"$f":"IF('Раздел 4'!S35<='Раздел 4'!Q35,0,1)","v":0}]
[609535,4,4,48,"Раздел 4 строка 01 графа 07 <= Раздел 4 строка 01 графа 04",null,null,{"$f":"IF('Раздел 4'!T21<='Раздел 4'!Q21,0,1)","v":0}]
[609535,4,4,49,"Раздел 4 строка 02 графа 07 <= Раздел 4 строка 02 графа 04",null,null,{"$f":"IF('Раздел 4'!T22<='Раздел 4'!Q22,0,1)","v":0}]
[609535,4,4,50,"Раздел 4 строка 03 графа 07 <= Раздел 4 строка 03 графа 04",null,null,{"$f":"IF('Раздел 4'!T23<='Раздел 4'!Q23,0,1)","v":0}]
[609535,4,4,51,"Раздел 4 строка 04 графа 07 <= Раздел 4 строка 04 графа 04",null,null,{"$f":"IF('Раздел 4'!T24<='Раздел 4'!Q24,0,1)","v":0}]
[609535,4,4,52,"Раздел 4 строка 05 графа 07 <= Раздел 4 строка 05 графа 04",null,null,{"$f":"IF('Раздел 4'!T25<='Раздел 4'!Q25,0,1)","v":0}]
[609535,4,4,53,"Раздел 4 строка 06 графа 07 <= Раздел 4 строка 06 графа 04",null,null,{"$f":"IF('Раздел 4'!T26<='Раздел 4'!Q26,0,1)","v":0}]
[609535,4,4,54,"Раздел 4 строка 07 графа 07 <= Раздел 4 строка 07 графа 04",null,null,{"$f":"IF('Раздел 4'!T27<='Раздел 4'!Q27,0,1)","v":0}]
[609535,4,4,55,"Раздел 4 строка 08 графа 07 <= Раздел 4 строка 08 графа 04",null,null,{"$f":"IF('Раздел 4'!T28<='Раздел 4'!Q28,0,1)","v":0}]
[609535,4,4,56,"Раздел 4 строка 09 графа 07 <= Раздел 4 строка 09 графа 04",null,null,{"$f":"IF('Раздел 4'!T29<='Раздел 4'!Q29,0,1)","v":0}]
[609535,4,4,57,"Раздел 4 строка 10 графа 07 <= Раздел 4 строка 10 графа 04",null,null,{"$f":"IF('Раздел 4'!T30<='Раздел 4'!Q30,0,1)","v":0}]
[609535,4,4,58,"Раздел 4 строка 11 графа 07 <= Раздел 4 строка 11 графа 04",null,null,{"$f":"IF('Раздел 4'!T31<='Раздел 4'!Q31,0,1)","v":0}]
[609535,4,4,59,"Раздел 4 строка 12 графа 07 <= Раздел 4 строка 12 графа 04",null,null,{"$f":"IF('Раздел 4'!T32<='Раздел 4'!Q32,0,1)","v":0}]
[609535,4,4,60,"Раздел 4 строка 13 графа 07 <= Раздел 4 строка 13 графа 04",null,null,{"$f":"IF('Раздел 4'!T33<='Раздел 4'!Q33,0,1)","v":0}]
[609535,4,4,61,"Раздел 4 строка 14 графа 07 <= Раздел 4 строка 14 графа 04",null,null,{"$f":"IF('Раздел 4'!T34<='Раздел 4'!Q34,0,1)","v":0}]
[609535,4,4,62,"Раздел 4 строка 15 графа 07 <= Раздел 4 строка 15 графа 04",null,null,{"$f":"IF('Раздел 4'!T35<='Раздел 4'!Q35,0,1)","v":0}]
[609535,4,5,63,"Раздел 4 строка 17 графа 3 <= Раздел 4 строка 15 графа 4",null,null,{"$f":"IF('Раздел 4'!P37<='Раздел 4'!Q35,0,1)","v":0}]
[609535,4,6,64,"Раздел 4 строка 18 графа 3 <= Раздел 4 строка 15 графа 4",null,null,{"$f":"IF('Раздел 4'!P38<='Раздел 4'!Q35,0,1)","v":0}]
[609535,4,7,65,"Раздел 4 строка 19 графа 3 <= Раздел 4 строка 18 графа 3",null,null,{"$f":"IF('Раздел 4'!P39<='Раздел 4'!P38,0,1)","v":0}]
[609535,4,8,66,"Раздел 4 графа 3 сумма строк (20+22) <= Раздел 4 строка 15 сумма граф (4+9+11+13+15+17+19+21+23)",null,null,{"$f":"IF(SUM('Раздел 4'!P40,'Раздел 4'!P42)<=SUM('Раздел 4'!Q35,'Раздел 4'!V35,'Раздел 4'!X35,'Раздел 4'!Z35,'Раздел 4'!AB35,'Раздел 4'!AD35,'Раздел 4'!AF35,'Раздел 4'!AH35,'Раздел 4'!AJ35),0,1)","v":0}]
[609535,4,9,67,"Раздел 4 строка 26 графа 3 <= Раздел 4 строка 15 графа 4",null,null,{"$f":"IF('Раздел 4'!P46<='Раздел 4'!Q35,0,1)","v":0}]
[609535,4,10,68,"Раздел 4 строка 27 графа 3 <= Раздел 4 строка 15 графа 4",null,null,{"$f":"IF('Раздел 4'!P47<='Раздел 4'!Q35,0,1)","v":0}]
[609535,4,11,69,"Раздел 4 строка 28 графа 3 <= Раздел 4 строка 15 графа 4",null,null,{"$f":"IF('Раздел 4'!P48<='Раздел 4'!Q35,0,1)","v":0}]
[609535,4,12,70,"Раздел 4 строка 29 графа 3 <= Раздел 4 строка 15 графа 4",null,null,{"$f":"IF('Раздел 4'!P49<='Раздел 4'!Q35,0,1)","v":0}]
[609535,4,13,71,"Раздел 4 строка 21 графа 3 <= Раздел 4 строка 20 графа 3",null,null,{"$f":"IF('Раздел 4'!P41<='Раздел 4'!P40,0,1)","v":0}]
[609535,4,14,72,"Раздел 4 строка 23 графа 3 <= Раздел 4 строка 22 графа 3",null,null,{"$f":"IF('Раздел 4'!P43<='Раздел 4'!P42,0,1)","v":0}]
[609535,4,15,73,"Раздел 4 строка 25 графа 3 <= Раздел 4 строка 24 графа 3",null,null,{"$f":"IF('Раздел 4'!P45<='Раздел 4'!P44,0,1)","v":0}]
[609535,4,15,74,"Раздел 4 строка 24 графа 3 <= Раздел 4 сумма строк (20+22) графа 3",null,null,{"$f":"IF('Раздел 4'!P44<=SUM('Раздел 4'!P40,'Раздел 4'!P42),0,1)","v":0}]
[609535,4,15,75,"Раздел 4 строка 25 графа 3 <= Раздел 4 сумма строк (21+23) графа 3",null,null,{"$f":"IF('Раздел 4'!P45<=SUM('Раздел 4'!P41,'Раздел 4'!P43),0,1)","v":0}]
[609535,4,16,76,"Раздел 4 графа 04 строка 01 количество учащихся не соответствует количеству классов Раздел 4 графа 03 строка 01",null,null,{"$f":"IF(OR(AND('Раздел 4'!P21=0,'Раздел 4'!Q21=0),AND('Раздел 4'!P21>0,'Раздел 4'!Q21>0)),0,1)","v":0}]
[609535,4,16,77,"Раздел 4 графа 04 строка 02 количество учащихся не соответствует количеству классов Раздел 4 графа 03 строка 02",null,null,{"$f":"IF(OR(AND('Раздел 4'!P22=0,'Раздел 4'!Q22=0),AND('Раздел 4'!P22>0,'Раздел 4'!Q22>0)),0,1)","v":0}]
[609535,4,16,78,"Раздел 4 графа 04 строка 03 количество учащихся не соответствует количеству классов Раздел 4 графа 03 строка 03",null,null,{"$f":"IF(OR(AND('Раздел 4'!P23=0,'Раздел 4'!Q23=0),AND('Раздел 4'!P23>0,'Раздел 4'!Q23>0)),0,1)","v":0}]
[609535,4,16,79,"Раздел 4 графа 04 строка 04 количество учащихся не соответствует количеству классов Раздел 4 графа 03 строка 04",null,null,{"$f":"IF(OR(AND('Раздел 4'!P24=0,'Раздел 4'!Q24=0),AND('Раздел 4'!P24>0,'Раздел 4'!Q24>0)),0,1)","v":0}]
[609535,4,16,80,"Раздел 4 графа 04 строка 05 количество учащихся не соответствует количеству классов Раздел 4 графа 03 строка 05",null,null,{"$f":"IF(OR(AND('Раздел 4'!P25=0,'Раздел 4'!Q25=0),AND('Раздел 4'!P25>0,'Раздел 4'!Q25>0)),0,1)","v":0}]
[609535,4,16,81,"Раздел 4 графа 04 строка 06 количество учащихся не соответствует количеству классов Раздел 4 графа 03 строка 06",null,null,{"$f":"IF(OR(AND('Раздел 4'!P26=0,'Раздел 4'!Q26=0),AND('Раздел 4'!P26>0,'Раздел 4'!Q26>0)),0,1)","v":0}]
[609535,4,16,82,"Раздел 4 графа 04 строка 07 количество учащихся не соответствует количеству классов Раздел 4 графа 03 строка 07",null,null,{"$f":"IF(OR(AND('Раздел 4'!P27=0,'Раздел 4'!Q27=0),AND('Раздел 4'!P27>0,'Раздел 4'!Q27>0)),0,1)","v":0}]
[609535,4,16,83,"Раздел 4 графа 04 строка 08 количество учащихся не соответствует количеству классов Раздел 4 графа 03 строка 08",null,null,{"$f":"IF(OR(AND('Раздел 4'!P28=0,'Раздел 4'!Q28=0),AND('Раздел 4'!P28>0,'Раздел 4'!Q28>0)),0,1)","v":0}]
[609535,4,16,84,"Раздел 4 графа 04 строка 09 количество учащихся не соответствует количеству классов Раздел 4 графа 03 строка 09",null,null,{"$f":"IF(OR(AND('Раздел 4'!P29=0,'Раздел 4'!Q29=0),AND('Раздел 4'!P29>0,'Раздел 4'!Q29>0)),0,1)","v":0}]
[609535,4,16,85,"Раздел 4 графа 04 строка 10 количество учащихся не соответствует количеству классов Раздел 4 графа 03 строка 10",null,null,{"$f":"IF(OR(AND('Раздел 4'!P30=0,'Раздел 4'!Q30=0),AND('Раздел 4'!P30>0,'Раздел 4'!Q30>0)),0,1)","v":0}]
[609535,4,16,86,"Раздел 4 графа 04 строка 11 количество учащихся не соответствует количеству классов Раздел 4 графа 03 строка 11",null,null,{"$f":"IF(OR(AND('Раздел 4'!P31=0,'Раздел 4'!Q31=0),AND('Раздел 4'!P31>0,'Раздел 4'!Q31>0)),0,1)","v":0}]
[609535,4,16,87,"Раздел 4 графа 04 строка 12 количество учащихся не соответствует количеству классов Раздел 4 графа 03 строка 12",null,null,{"$f":"IF(OR(AND('Раздел 4'!P32=0,'Раздел 4'!Q32=0),AND('Раздел 4'!P32>0,'Раздел 4'!Q32>0)),0,1)","v":0}]
[609535,4,16,88,"Раздел 4 графа 04 строка 13 количество учащихся не соответствует количеству классов Раздел 4 графа 03 строка 13",null,null,{"$f":"IF(OR(AND('Раздел 4'!P33=0,'Раздел 4'!Q33=0),AND('Раздел 4'!P33>0,'Раздел 4'!Q33>0)),0,1)","v":0}]
[609535,4,16,89,"Раздел 4 графа 04 строка 14 количество учащихся не соответствует количеству классов Раздел 4 графа 03 строка 14",null,null,{"$f":"IF(OR(AND('Раздел 4'!P34=0,'Раздел 4'!Q34=0),AND('Раздел 4'!P34>0,'Раздел 4'!Q34>0)),0,1)","v":0}]
[609535,4,16,90,"Раздел 4 графа 04 строка 15 количество учащихся не соответствует количеству классов Раздел 4 графа 03 строка 15",null,null,{"$f":"IF(OR(AND('Раздел 4'!P35=0,'Раздел 4'!Q35=0),AND('Раздел 4'!P35>0,'Раздел 4'!Q35>0)),0,1)","v":0}]
[609535,4,16,91,"Раздел 4 графа 04 строка 16 количество учащихся не соответствует количеству классов Раздел 4 графа 03 строка 16",null,null,{"$f":"IF(OR(AND('Раздел 4'!P36=0,'Раздел 4'!Q36=0),AND('Раздел 4'!P36>0,'Раздел 4'!Q36>0)),0,1)","v":0}]
[609535,4,17,92,"Раздел 4 графа 09 строка 01 количество учащихся не соответствует количеству классов Раздел 4 графа 08 строка 01",null,null,{"$f":"IF(OR(AND('Раздел 4'!U21=0,'Раздел 4'!V21=0),AND('Раздел 4'!U21>0,'Раздел 4'!V21>0)),0,1)","v":0}]
[609535,4,17,93,"Раздел 4 графа 09 строка 02 количество учащихся не соответствует количеству классов Раздел 4 графа 08 строка 02",null,null,{"$f":"IF(OR(AND('Раздел 4'!U22=0,'Раздел 4'!V22=0),AND('Раздел 4'!U22>0,'Раздел 4'!V22>0)),0,1)","v":0}]
[609535,4,17,94,"Раздел 4 графа 09 строка 03 количество учащихся не соответствует количеству классов Раздел 4 графа 08 строка 03",null,null,{"$f":"IF(OR(AND('Раздел 4'!U23=0,'Раздел 4'!V23=0),AND('Раздел 4'!U23>0,'Раздел 4'!V23>0)),0,1)","v":0}]
[609535,4,17,95,"Раздел 4 графа 09 строка 04 количество учащихся не соответствует количеству классов Раздел 4 графа 08 строка 04",null,null,{"$f":"IF(OR(AND('Раздел 4'!U24=0,'Раздел 4'!V24=0),AND('Раздел 4'!U24>0,'Раздел 4'!V24>0)),0,1)","v":0}]
[609535,4,17,96,"Раздел 4 графа 09 строка 05 количество учащихся не соответствует количеству классов Раздел 4 графа 08 строка 05",null,null,{"$f":"IF(OR(AND('Раздел 4'!U25=0,'Раздел 4'!V25=0),AND('Раздел 4'!U25>0,'Раздел 4'!V25>0)),0,1)","v":0}]
[{"$f":"P_3","v":609535},4,17,97,"Раздел 4 графа 09 строка 06 количество учащихся не соответствует количеству классов Раздел 4 графа 08 строка 06",null,null,{"$f":"IF(OR(AND('Раздел 4'!U26=0,'Раздел 4'!V26=0),AND('Раздел 4'!U26>0,'Раздел 4'!V26>0)),0,1)","v":0}]
[609535,4,17,98,"Раздел 4 графа 09 строка 07 количество учащихся не соответствует количеству классов Раздел 4 графа 08 строка 07",null,null,{"$f":"IF(OR(AND('Раздел 4'!U27=0,'Раздел 4'!V27=0),AND('Раздел 4'!U27>0,'Раздел 4'!V27>0)),0,1)","v":0}]
[609535,4,17,99,"Раздел 4 графа 09 строка 08 количество учащихся не соответствует количеству классов Раздел 4 графа 08 строка 08",null,null,{"$f":"IF(OR(AND('Раздел 4'!U28=0,'Раздел 4'!V28=0),AND('Раздел 4'!U28>0,'Раздел 4'!V28>0)),0,1)","v":0}]
[609535,4,17,100,"Раздел 4 графа 09 строка 09 количество учащихся не соответствует количеству классов Раздел 4 графа 08 строка 09",null,null,{"$f":"IF(OR(AND('Раздел 4'!U29=0,'Раздел 4'!V29=0),AND('Раздел 4'!U29>0,'Раздел 4'!V29>0)),0,1)","v":0}]
[609535,4,17,101,"Раздел 4 графа 09 строка 10 количество учащихся не соответствует количеству классов Раздел 4 графа 08 строка 10",null,null,{"$f":"IF(OR(AND('Раздел 4'!U30=0,'Раздел 4'!V30=0),AND('Раздел 4'!U30>0,'Раздел 4'!V30>0)),0,1)","v":0}]
[609535,4,17,102,"Раздел 4 графа 09 строка 11 количество учащихся не соответствует количеству классов Раздел 4 графа 08 строка 11",null,null,{"$f":"IF(OR(AND('Раздел 4'!U31=0,'Раздел 4'!V31=0),AND('Раздел 4'!U31>0,'Раздел 4'!V31>0)),0,1)","v":0}]
[609535,4,17,103,"Раздел 4 графа 09 строка 12 количество учащихся не соответствует количеству классов Раздел 4 графа 08 строка 12",null,null,{"$f":"IF(OR(AND('Раздел 4'!U32=0,'Раздел 4'!V32=0),AND('Раздел 4'!U32>0,'Раздел 4'!V32>0)),0,1)","v":0}]
[609535,4,17,104,"Раздел 4 графа 09 строка 13 количество учащихся не соответствует количеству классов Раздел 4 графа 08 строка 13",null,null,{"$f":"IF(OR(AND('Раздел 4'!U33=0,'Раздел 4'!V33=0),AND('Раздел 4'!U33>0,'Раздел 4'!V33>0)),0,1)","v":0}]
[609535,4,17,105,"Раздел 4 графа 09 строка 14 количество учащихся не соответствует количеству классов Раздел 4 графа 08 строка 14",null,null,{"$f":"IF(OR(AND('Раздел 4'!U34=0,'Раздел 4'!V34=0),AND('Раздел 4'!U34>0,'Раздел 4'!V34>0)),0,1)","v":0}]
[609535,4,17,106,"Раздел 4 графа 09 строка 15 количество учащихся не соответствует количеству классов Раздел 4 графа 08 строка 15",null,null,{"$f":"IF(OR(AND('Раздел 4'!U35=0,'Раздел 4'!V35=0),AND('Раздел 4'!U35>0,'Раздел 4'!V35>0)),0,1)","v":0}]
[609535,4,18,107,"Раздел 4 графа 11 строка 01 количество учащихся не соответствует количеству классов Раздел 4 графа 10 строка 01",null,null,{"$f":"IF(OR(AND('Раздел 4'!W21=0,'Раздел 4'!X21=0),AND('Раздел 4'!W21>0,'Раздел 4'!X21>0)),0,1)","v":0}]
[609535,4,18,108,"Раздел 4 графа 11 строка 02 количество учащихся не соответствует количеству классов Раздел 4 графа 10 строка 02",null,null,{"$f":"IF(OR(AND('Раздел 4'!W22=0,'Раздел 4'!X22=0),AND('Раздел 4'!W22>0,'Раздел 4'!X22>0)),0,1)","v":0}]
[609535,4,18,109,"Раздел 4 графа 11 строка 03 количество учащихся не соответствует количеству классов Раздел 4 графа 10 строка 03",null,null,{"$f":"IF(OR(AND('Раздел 4'!W23=0,'Раздел 4'!X23=0),AND('Раздел 4'!W23>0,'Раздел 4'!X23>0)),0,1)","v":0}]
[609535,4,18,110,"Раздел 4 графа 11 строка 04 количество учащихся не соответствует количеству классов Раздел 4 графа 10 строка 04",null,null,{"$f":"IF(OR(AND('Раздел 4'!W24=0,'Раздел 4'!X24=0),AND('Раздел 4'!W24>0,'Раздел 4'!X24>0)),0,1)","v":0}]
[609535,4,18,111,"Раздел 4 графа 11 строка 05 количество учащихся не соответствует количеству классов Раздел 4 графа 10 строка 05",null,null,{"$f":"IF(OR(AND('Раздел 4'!W25=0,'Раздел 4'!X25=0),AND('Раздел 4'!W25>0,'Раздел 4'!X25>0)),0,1)","v":0}]
[609535,4,18,112,"Раздел 4 графа 11 строка 06 количество учащихся не соответствует количеству классов Раздел 4 графа 10 строка 06",null,null,{"$f":"IF(OR(AND('Раздел 4'!W26=0,'Раздел 4'!X26=0),AND('Раздел 4'!W26>0,'Раздел 4'!X26>0)),0,1)","v":0}]
[609535,4,18,113,"Раздел 4 графа 11 строка 07 количество учащихся не соответствует количеству классов Раздел 4 графа 10 строка 07",null,null,{"$f":"IF(OR(AND('Раздел 4'!W27=0,'Раздел 4'!X27=0),AND('Раздел 4'!W27>0,'Раздел 4'!X27>0)),0,1)","v":0}]
[609535,4,18,114,"Раздел 4 графа 11 строка 08 количество учащихся не соответствует количеству классов Раздел 4 графа 10 строка 08",null,null,{"$f":"IF(OR(AND('Раздел 4'!W28=0,'Раздел 4'!X28=0),AND('Раздел 4'!W28>0,'Раздел 4'!X28>0)),0,1)","v":0}]
[609535,4,18,115,"Раздел 4 графа 11 строка 09 количество учащихся не соответствует количеству классов Раздел 4 графа 10 строка 09",null,null,{"$f":"IF(OR(AND('Раздел 4'!W29=0,'Раздел 4'!X29=0),AND('Раздел 4'!W29>0,'Раздел 4'!X29>0)),0,1)","v":0}]
[609535,4,18,116,"Раздел 4 графа 11 строка 10 количество учащихся не соответствует количеству классов Раздел 4 графа 10 строка 10",null,null,{"$f":"IF(OR(AND('Раздел 4'!W30=0,'Раздел 4'!X30=0),AND('Раздел 4'!W30>0,'Раздел 4'!X30>0)),0,1)","v":0}]
[609535,4,18,117,"Раздел 4 графа 11 строка 11 количество учащихся не соответствует количеству классов Раздел 4 графа 10 строка 11",null,null,{"$f":"IF(OR(AND('Раздел 4'!W31=0,'Раздел 4'!X31=0),AND('Раздел 4'!W31>0,'Раздел 4'!X31>0)),0,1)","v":0}]
[609535,4,18,118,"Раздел 4 графа 11 строка 12 количество учащихся не соответствует количеству классов Раздел 4 графа 10 строка 12",null,null,{"$f":"IF(OR(AND('Раздел 4'!W32=0,'Раздел 4'!X32=0),AND('Раздел 4'!W32>0,'Раздел 4'!X32>0)),0,1)","v":0}]
[609535,4,18,119,"Раздел 4 графа 11 строка 13 количество учащихся не соответствует количеству классов Раздел 4 графа 10 строка 13",null,null,{"$f":"IF(OR(AND('Раздел 4'!W33=0,'Раздел 4'!X33=0),AND('Раздел 4'!W33>0,'Раздел 4'!X33>0)),0,1)","v":0}]
[609535,4,18,120,"Раздел 4 графа 11 строка 14 количество учащихся не соответствует количеству классов Раздел 4 графа 10 строка 14",null,null,{"$f":"IF(OR(AND('Раздел 4'!W34=0,'Раздел 4'!X34=0),AND('Раздел 4'!W34>0,'Раздел 4'!X34>0)),0,1)","v":0}]
[609535,4,18,121,"Раздел 4 графа 11 строка 15 количество учащихся не соответствует количеству классов Раздел 4 графа 10 строка 15",null,null,{"$f":"IF(OR(AND('Раздел 4'!W35=0,'Раздел 4'!X35=0),AND('Раздел 4'!W35>0,'Раздел 4'!X35>0)),0,1)","v":0}]
[609535,4,19,122,"Раздел 4 графа 13 строка 01 количество учащихся не соответствует количеству классов Раздел 4 графа 12 строка 01",null,null,{"$f":"IF(OR(AND('Раздел 4'!Y21=0,'Раздел 4'!Z21=0),AND('Раздел 4'!Y21>0,'Раздел 4'!Z21>0)),0,1)","v":0}]
[609535,4,19,123,"Раздел 4 графа 13 строка 02 количество учащихся не соответствует количеству классов Раздел 4 графа 12 строка 02",null,null,{"$f":"IF(OR(AND('Раздел 4'!Y22=0,'Раздел 4'!Z22=0),AND('Раздел 4'!Y22>0,'Раздел 4'!Z22>0)),0,1)","v":0}]
[609535,4,19,124,"Раздел 4 графа 13 строка 03 количество учащихся не соответствует количеству классов Раздел 4 графа 12 строка 03",null,null,{"$f":"IF(OR(AND('Раздел 4'!Y23=0,'Раздел 4'!Z23=0),AND('Раздел 4'!Y23>0,'Раздел 4'!Z23>0)),0,1)","v":0}]
[609535,4,19,125,"Раздел 4 графа 13 строка 04 количество учащихся не соответствует количеству классов Раздел 4 графа 12 строка 04",null,null,{"$f":"IF(OR(AND('Раздел 4'!Y24=0,'Раздел 4'!Z24=0),AND('Раздел 4'!Y24>0,'Раздел 4'!Z24>0)),0,1)","v":0}]
[609535,4,19,126,"Раздел 4 графа 13 строка 05 количество учащихся не соответствует количеству классов Раздел 4 графа 12 строка 05",null,null,{"$f":"IF(OR(AND('Раздел 4'!Y25=0,'Раздел 4'!Z25=0),AND('Раздел 4'!Y25>0,'Раздел 4'!Z25>0)),0,1)","v":0}]
[609535,4,19,127,"Раздел 4 графа 13 строка 06 количество учащихся не соответствует количеству классов Раздел 4 графа 12 строка 06",null,null,{"$f":"IF(OR(AND('Раздел 4'!Y26=0,'Раздел 4'!Z26=0),AND('Раздел 4'!Y26>0,'Раздел 4'!Z26>0)),0,1)","v":0}]
[609535,4,19,128,"Раздел 4 графа 13 строка 07 количество учащихся не соответствует количеству классов Раздел 4 графа 12 строка 07",null,null,{"$f":"IF(OR(AND('Раздел 4'!Y27=0,'Раздел 4'!Z27=0),AND('Раздел 4'!Y27>0,'Раздел 4'!Z27>0)),0,1)","v":0}]
[609535,4,19,129,"Раздел 4 графа 13 строка 08 количество учащихся не соответствует количеству классов Раздел 4 графа 12 строка 08",null,null,{"$f":"IF(OR(AND('Раздел 4'!Y28=0,'Раздел 4'!Z28=0),AND('Раздел 4'!Y28>0,'Раздел 4'!Z28>0)),0,1)","v":0}]
[609535,4,19,130,"Раздел 4 графа 13 строка 09 количество учащихся не соответствует количеству классов Раздел 4 графа 12 строка 09",null,null,{"$f":"IF(OR(AND('Раздел 4'!Y29=0,'Раздел 4'!Z29=0),AND('Раздел 4'!Y29>0,'Раздел 4'!Z29>0)),0,1)","v":0}]
[609535,4,19,131,"Раздел 4 графа 13 строка 10 количество учащихся не соответствует количеству классов Раздел 4 графа 12 строка 10",null,null,{"$f":"IF(OR(AND('Раздел 4'!Y30=0,'Раздел 4'!Z30=0),AND('Раздел 4'!Y30>0,'Раздел 4'!Z30>0)),0,1)","v":0}]
[609535,4,19,132,"Раздел 4 графа 13 строка 11 количество учащихся не соответствует количеству классов Раздел 4 графа 12 строка 11",null,null,{"$f":"IF(OR(AND('Раздел 4'!Y31=0,'Раздел 4'!Z31=0),AND('Раздел 4'!Y31>0,'Раздел 4'!Z31>0)),0,1)","v":0}]
[609535,4,19,133,"Раздел 4 графа 13 строка 12 количество учащихся не соответствует количеству классов Раздел 4 графа 12 строка 12",null,null,{"$f":"IF(OR(AND('Раздел 4'!Y32=0,'Раздел 4'!Z32=0),AND('Раздел 4'!Y32>0,'Раздел 4'!Z32>0)),0,1)","v":0}]
[609535,4,19,134,"Раздел 4 графа 13 строка 13 количество учащихся не соответствует количеству классов Раздел 4 графа 12 строка 13",null,null,{"$f":"IF(OR(AND('Раздел 4'!Y33=0,'Раздел 4'!Z33=0),AND('Раздел 4'!Y33>0,'Раздел 4'!Z33>0)),0,1)","v":0}]
[609535,4,19,135,"Раздел 4 графа 13 строка 14 количество учащихся не соответствует количеству классов Раздел 4 графа 12 строка 14",null,null,{"$f":"IF(OR(AND('Раздел 4'!Y34=0,'Раздел 4'!Z34=0),AND('Раздел 4'!Y34>0,'Раздел 4'!Z34>0)),0,1)","v":0}]
[609535,4,19,136,"Раздел 4 графа 13 строка 15 количество учащихся не соответствует количеству классов Раздел 4 графа 12 строка 15",null,null,{"$f":"IF(OR(AND('Раздел 4'!Y35=0,'Раздел 4'!Z35=0),AND('Раздел 4'!Y35>0,'Раздел 4'!Z35>0)),0,1)","v":0}]
[609535,4,20,137,"Раздел 4 графа 15 строка 01 количество учащихся не соответствует количеству классов Раздел 4 графа 14 строка 01",null,null,{"$f":"IF(OR(AND('Раздел 4'!AA21=0,'Раздел 4'!AB21=0),AND('Раздел 4'!AA21>0,'Раздел 4'!AB21>0)),0,1)","v":0}]
[609535,4,20,138,"Раздел 4 графа 15 строка 02 количество учащихся не соответствует количеству классов Раздел 4 графа 14 строка 02",null,null,{"$f":"IF(OR(AND('Раздел 4'!AA22=0,'Раздел 4'!AB22=0),AND('Раздел 4'!AA22>0,'Раздел 4'!AB22>0)),0,1)","v":0}]
[609535,4,20,139,"Раздел 4 графа 15 строка 03 количество учащихся не соответствует количеству классов Раздел 4 графа 14 строка 03",null,null,{"$f":"IF(OR(AND('Раздел 4'!AA23=0,'Раздел 4'!AB23=0),AND('Раздел 4'!AA23>0,'Раздел 4'!AB23>0)),0,1)","v":0}]
[609535,4,20,140,"Раздел 4 графа 15 строка 04 количество учащихся не соответствует количеству классов Раздел 4 графа 14 строка 04",null,null,{"$f":"IF(OR(AND('Раздел 4'!AA24=0,'Раздел 4'!AB24=0),AND('Раздел 4'!AA24>0,'Раздел 4'!AB24>0)),0,1)","v":0}]
[609535,4,20,141,"Раздел 4 графа 15 строка 05 количество учащихся не соответствует количеству классов Раздел 4 графа 14 строка 05",null,null,{"$f":"IF(OR(AND('Раздел 4'!AA25=0,'Раздел 4'!AB25=0),AND('Раздел 4'!AA25>0,'Раздел 4'!AB25>0)),0,1)","v":0}]
[609535,4,20,142,"Раздел 4 графа 15 строка 06 количество учащихся не соответствует количеству классов Раздел 4 графа 14 строка 06",null,null,{"$f":"IF(OR(AND('Раздел 4'!AA26=0,'Раздел 4'!AB26=0),AND('Раздел 4'!AA26>0,'Раздел 4'!AB26>0)),0,1)","v":0}]
[609535,4,20,143,"Раздел 4 графа 15 строка 07 количество учащихся не соответствует количеству классов Раздел 4 графа 14 строка 07",null,null,{"$f":"IF(OR(AND('Раздел 4'!AA27=0,'Раздел 4'!AB27=0),AND('Раздел 4'!AA27>0,'Раздел 4'!AB27>0)),0,1)","v":0}]
[609535,4,20,144,"Раздел 4 графа 15 строка 08 количество учащихся не соответствует количеству классов Раздел 4 графа 14 строка 08",null,null,{"$f":"IF(OR(AND('Раздел 4'!AA28=0,'Раздел 4'!AB28=0),AND('Раздел 4'!AA28>0,'Раздел 4'!AB28>0)),0,1)","v":0}]
[609535,4,20,145,"Раздел 4 графа 15 строка 09 количество учащихся не соответствует количеству классов Раздел 4 графа 14 строка 09",null,null,{"$f":"IF(OR(AND('Раздел 4'!AA29=0,'Раздел 4'!AB29=0),AND('Раздел 4'!AA29>0,'Раздел 4'!AB29>0)),0,1)","v":0}]
[609535,4,20,146,"Раздел 4 графа 15 строка 10 количество учащихся не соответствует количеству классов Раздел 4 графа 14 строка 10",null,null,{"$f":"IF(OR(AND('Раздел 4'!AA30=0,'Раздел 4'!AB30=0),AND('Раздел 4'!AA30>0,'Раздел 4'!AB30>0)),0,1)","v":0}]
[609535,4,20,147,"Раздел 4 графа 15 строка 11 количество учащихся не соответствует количеству классов Раздел 4 графа 14 строка 11",null,null,{"$f":"IF(OR(AND('Раздел 4'!AA31=0,'Раздел 4'!AB31=0),AND('Раздел 4'!AA31>0,'Раздел 4'!AB31>0)),0,1)","v":0}]
[609535,4,20,148,"Раздел 4 графа 15 строка 12 количество учащихся не соответствует количеству классов Раздел 4 графа 14 строка 12",null,null,{"$f":"IF(OR(AND('Раздел 4'!AA32=0,'Раздел 4'!AB32=0),AND('Раздел 4'!AA32>0,'Раздел 4'!AB32>0)),0,1)","v":0}]
[609535,4,20,149,"Раздел 4 графа 15 строка 13 количество учащихся не соответствует количеству классов Раздел 4 графа 14 строка 15",null,null,{"$f":"IF(OR(AND('Раздел 4'!AA33=0,'Раздел 4'!AB33=0),AND('Раздел 4'!AA33>0,'Раздел 4'!AB33>0)),0,1)","v":0}]
[609535,4,20,150,"Раздел 4 графа 15 строка 14 количество учащихся не соответствует количеству классов Раздел 4 графа 14 строка 14",null,null,{"$f":"IF(OR(AND('Раздел 4'!AA34=0,'Раздел 4'!AB34=0),AND('Раздел 4'!AA34>0,'Раздел 4'!AB34>0)),0,1)","v":0}]
[609535,4,20,151,"Раздел 4 графа 15 строка 15 количество учащихся не соответствует количеству классов Раздел 4 графа 14 строка 15",null,null,{"$f":"IF(OR(AND('Раздел 4'!AA35=0,'Раздел 4'!AB35=0),AND('Раздел 4'!AA35>0,'Раздел 4'!AB35>0)),0,1)","v":0}]
[609535,4,21,152,"Раздел 4 графа 17 строка 01 количество учащихся не соответствует количеству классов Раздел 4 графа 16 строка 01",null,null,{"$f":"IF(OR(AND('Раздел 4'!AC21=0,'Раздел 4'!AD21=0),AND('Раздел 4'!AC21>0,'Раздел 4'!AD21>0)),0,1)","v":0}]
[609535,4,21,153,"Раздел 4 графа 17 строка 02 количество учащихся не соответствует количеству классов Раздел 4 графа 16 строка 02",null,null,{"$f":"IF(OR(AND('Раздел 4'!AC22=0,'Раздел 4'!AD22=0),AND('Раздел 4'!AC22>0,'Раздел 4'!AD22>0)),0,1)","v":0}]
[609535,4,21,154,"Раздел 4 графа 17 строка 03 количество учащихся не соответствует количеству классов Раздел 4 графа 16 строка 03",null,null,{"$f":"IF(OR(AND('Раздел 4'!AC23=0,'Раздел 4'!AD23=0),AND('Раздел 4'!AC23>0,'Раздел 4'!AD23>0)),0,1)","v":0}]
[609535,4,21,155,"Раздел 4 графа 17 строка 04 количество учащихся не соответствует количеству классов Раздел 4 графа 16 строка 04",null,null,{"$f":"IF(OR(AND('Раздел 4'!AC24=0,'Раздел 4'!AD24=0),AND('Раздел 4'!AC24>0,'Раздел 4'!AD24>0)),0,1)","v":0}]
[609535,4,21,156,"Раздел 4 графа 17 строка 05 количество учащихся не соответствует количеству классов Раздел 4 графа 16 строка 05",null,null,{"$f":"IF(OR(AND('Раздел 4'!AC25=0,'Раздел 4'!AD25=0),AND('Раздел 4'!AC25>0,'Раздел 4'!AD25>0)),0,1)","v":0}]
[609535,4,21,157,"Раздел 4 графа 17 строка 06 количество учащихся не соответствует количеству классов Раздел 4 графа 16 строка 06",null,null,{"$f":"IF(OR(AND('Раздел 4'!AC26=0,'Раздел 4'!AD26=0),AND('Раздел 4'!AC26>0,'Раздел 4'!AD26>0)),0,1)","v":0}]
[609535,4,21,158,"Раздел 4 графа 17 строка 07 количество учащихся не соответствует количеству классов Раздел 4 графа 16 строка 07",null,null,{"$f":"IF(OR(AND('Раздел 4'!AC27=0,'Раздел 4'!AD27=0),AND('Раздел 4'!AC27>0,'Раздел 4'!AD27>0)),0,1)","v":0}]
[609535,4,21,159,"Раздел 4 графа 17 строка 08 количество учащихся не соответствует количеству классов Раздел 4 графа 16 строка 08",null,null,{"$f":"IF(OR(AND('Раздел 4'!AC28=0,'Раздел 4'!AD28=0),AND('Раздел 4'!AC28>0,'Раздел 4'!AD28>0)),0,1)","v":0}]
[609535,4,21,160,"Раздел 4 графа 17 строка 09 количество учащихся не соответствует количеству классов Раздел 4 графа 16 строка 09",null,null,{"$f":"IF(OR(AND('Раздел 4'!AC29=0,'Раздел 4'!AD29=0),AND('Раздел 4'!AC29>0,'Раздел 4'!AD29>0)),0,1)","v":0}]
[{"$f":"P_3","v":609535},4,21,161,"Раздел 4 графа 17 строка 10 количество учащихся не соответствует количеству классов Раздел 4 графа 16 строка 10",null,null,{"$f":"IF(OR(AND('Раздел 4'!AC30=0,'Раздел 4'!AD30=0),AND('Раздел 4'!AC30>0,'Раздел 4'!AD30>0)),0,1)","v":0}]
[609535,4,21,162,"Раздел 4 графа 17 строка 11 количество учащихся не соответствует количеству классов Раздел 4 графа 16 строка 11",null,null,{"$f":"IF(OR(AND('Раздел 4'!AC31=0,'Раздел 4'!AD31=0),AND('Раздел 4'!AC31>0,'Раздел 4'!AD31>0)),0,1)","v":0}]
[609535,4,21,163,"Раздел 4 графа 17 строка 12 количество учащихся не соответствует количеству классов Раздел 4 графа 16 строка 12",null,null,{"$f":"IF(OR(AND('Раздел 4'!AC32=0,'Раздел 4'!AD32=0),AND('Раздел 4'!AC32>0,'Раздел 4'!AD32>0)),0,1)","v":0}]
[609535,4,21,164,"Раздел 4 графа 17 строка 13 количество учащихся не соответствует количеству классов Раздел 4 графа 16 строка 15",null,null,{"$f":"IF(OR(AND('Раздел 4'!AC33=0,'Раздел 4'!AD33=0),AND('Раздел 4'!AC33>0,'Раздел 4'!AD33>0)),0,1)","v":0}]
[609535,4,21,165,"Раздел 4 графа 17 строка 14 количество учащихся не соответствует количеству классов Раздел 4 графа 16 строка 14",null,null,{"$f":"IF(OR(AND('Раздел 4'!AC34=0,'Раздел 4'!AD34=0),AND('Раздел 4'!AC34>0,'Раздел 4'!AD34>0)),0,1)","v":0}]
[609535,4,21,166,"Раздел 4 графа 17 строка 15 количество учащихся не соответствует количеству классов Раздел 4 графа 16 строка 15",null,null,{"$f":"IF(OR(AND('Раздел 4'!AC35=0,'Раздел 4'!AD35=0),AND('Раздел 4'!AC35>0,'Раздел 4'!AD35>0)),0,1)","v":0}]
[609535,4,22,167,"Раздел 4 графа 19 строка 01 количество учащихся не соответствует количеству классов Раздел 4 графа 18 строка 01",null,null,{"$f":"IF(OR(AND('Раздел 4'!AE21=0,'Раздел 4'!AF21=0),AND('Раздел 4'!AE21>0,'Раздел 4'!AF21>0)),0,1)","v":0}]
[609535,4,22,168,"Раздел 4 графа 19 строка 02 количество учащихся не соответствует количеству классов Раздел 4 графа 18 строка 02",null,null,{"$f":"IF(OR(AND('Раздел 4'!AE22=0,'Раздел 4'!AF22=0),AND('Раздел 4'!AE22>0,'Раздел 4'!AF22>0)),0,1)","v":0}]
[609535,4,22,169,"Раздел 4 графа 19 строка 03 количество учащихся не соответствует количеству классов Раздел 4 графа 18 строка 03",null,null,{"$f":"IF(OR(AND('Раздел 4'!AE23=0,'Раздел 4'!AF23=0),AND('Раздел 4'!AE23>0,'Раздел 4'!AF23>0)),0,1)","v":0}]
[609535,4,22,170,"Раздел 4 графа 19 строка 04 количество учащихся не соответствует количеству классов Раздел 4 графа 18 строка 04",null,null,{"$f":"IF(OR(AND('Раздел 4'!AE24=0,'Раздел 4'!AF24=0),AND('Раздел 4'!AE24>0,'Раздел 4'!AF24>0)),0,1)","v":0}]
[609535,4,22,171,"Раздел 4 графа 19 строка 05 количество учащихся не соответствует количеству классов Раздел 4 графа 18 строка 05",null,null,{"$f":"IF(OR(AND('Раздел 4'!AE25=0,'Раздел 4'!AF25=0),AND('Раздел 4'!AE25>0,'Раздел 4'!AF25>0)),0,1)","v":0}]
[609535,4,22,172,"Раздел 4 графа 19 строка 06 количество учащихся не соответствует количеству классов Раздел 4 графа 18 строка 06",null,null,{"$f":"IF(OR(AND('Раздел 4'!AE26=0,'Раздел 4'!AF26=0),AND('Раздел 4'!AE26>0,'Раздел 4'!AF26>0)),0,1)","v":0}]
[609535,4,22,173,"Раздел 4 графа 19 строка 07 количество учащихся не соответствует количеству классов Раздел 4 графа 18 строка 07",null,null,{"$f":"IF(OR(AND('Раздел 4'!AE27=0,'Раздел 4'!AF27=0),AND('Раздел 4'!AE27>0,'Раздел 4'!AF27>0)),0,1)","v":0}]
[609535,4,22,174,"Раздел 4 графа 19 строка 08 количество учащихся не соответствует количеству классов Раздел 4 графа 18 строка 08",null,null,{"$f":"IF(OR(AND('Раздел 4'!AE28=0,'Раздел 4'!AF28=0),AND('Раздел 4'!AE28>0,'Раздел 4'!AF28>0)),0,1)","v":0}]
[609535,4,22,175,"Раздел 4 графа 19 строка 09 количество учащихся не соответствует количеству классов Раздел 4 графа 18 строка 09",null,null,{"$f":"IF(OR(AND('Раздел 4'!AE29=0,'Раздел 4'!AF29=0),AND('Раздел 4'!AE29>0,'Раздел 4'!AF29>0)),0,1)","v":0}]
[609535,4,22,176,"Раздел 4 графа 19 строка 10 количество учащихся не соответствует количеству классов Раздел 4 графа 18 строка 10",null,null,{"$f":"IF(OR(AND('Раздел 4'!AE30=0,'Раздел 4'!AF30=0),AND('Раздел 4'!AE30>0,'Раздел 4'!AF30>0)),0,1)","v":0}]
[609535,4,22,177,"Раздел 4 графа 19 строка 11 количество учащихся не соответствует количеству классов Раздел 4 графа 18 строка 11",null,null,{"$f":"IF(OR(AND('Раздел 4'!AE31=0,'Раздел 4'!AF31=0),AND('Раздел 4'!AE31>0,'Раздел 4'!AF31>0)),0,1)","v":0}]
[609535,4,22,178,"Раздел 4 графа 19 строка 12 количество учащихся не соответствует количеству классов Раздел 4 графа 18 строка 12",null,null,{"$f":"IF(OR(AND('Раздел 4'!AE32=0,'Раздел 4'!AF32=0),AND('Раздел 4'!AE32>0,'Раздел 4'!AF32>0)),0,1)","v":0}]
[609535,4,22,179,"Раздел 4 графа 19 строка 13 количество учащихся не соответствует количеству классов Раздел 4 графа 18 строка 15",null,null,{"$f":"IF(OR(AND('Раздел 4'!AE33=0,'Раздел 4'!AF33=0),AND('Раздел 4'!AE33>0,'Раздел 4'!AF33>0)),0,1)","v":0}]
[609535,4,22,180,"Раздел 4 графа 19 строка 14 количество учащихся не соответствует количеству классов Раздел 4 графа 18 строка 14",null,null,{"$f":"IF(OR(AND('Раздел 4'!AE34=0,'Раздел 4'!AF34=0),AND('Раздел 4'!AE34>0,'Раздел 4'!AF34>0)),0,1)","v":0}]
[609535,4,22,181,"Раздел 4 графа 19 строка 15 количество учащихся не соответствует количеству классов Раздел 4 графа 18 строка 15",null,null,{"$f":"IF(OR(AND('Раздел 4'!AE35=0,'Раздел 4'!AF35=0),AND('Раздел 4'!AE35>0,'Раздел 4'!AF35>0)),0,1)","v":0}]
[609535,4,23,182,"Раздел 4 графа 21 строка 01 количество учащихся не соответствует количеству классов Раздел 4 графа 20 строка 01",null,null,{"$f":"IF(OR(AND('Раздел 4'!AG21=0,'Раздел 4'!AH21=0),AND('Раздел 4'!AG21>0,'Раздел 4'!AH21>0)),0,1)","v":0}]
[609535,4,23,183,"Раздел 4 графа 21 строка 02 количество учащихся не соответствует количеству классов Раздел 4 графа 20 строка 02",null,null,{"$f":"IF(OR(AND('Раздел 4'!AG22=0,'Раздел 4'!AH22=0),AND('Раздел 4'!AG22>0,'Раздел 4'!AH22>0)),0,1)","v":0}]
[609535,4,23,184,"Раздел 4 графа 21 строка 03 количество учащихся не соответствует количеству классов Раздел 4 графа 20 строка 03",null,null,{"$f":"IF(OR(AND('Раздел 4'!AG23=0,'Раздел 4'!AH23=0),AND('Раздел 4'!AG23>0,'Раздел 4'!AH23>0)),0,1)","v":0}]
[609535,4,23,185,"Раздел 4 графа 21 строка 04 количество учащихся не соответствует количеству классов Раздел 4 графа 20 строка 04",null,null,{"$f":"IF(OR(AND('Раздел 4'!AG24=0,'Раздел 4'!AH24=0),AND('Раздел 4'!AG24>0,'Раздел 4'!AH24>0)),0,1)","v":0}]
[609535,4,23,186,"Раздел 4 графа 21 строка 05 количество учащихся не соответствует количеству классов Раздел 4 графа 20 строка 05",null,null,{"$f":"IF(OR(AND('Раздел 4'!AG25=0,'Раздел 4'!AH25=0),AND('Раздел 4'!AG25>0,'Раздел 4'!AH25>0)),0,1)","v":0}]
[609535,4,23,187,"Раздел 4 графа 21 строка 06 количество учащихся не соответствует количеству классов Раздел 4 графа 20 строка 06",null,null,{"$f":"IF(OR(AND('Раздел 4'!AG26=0,'Раздел 4'!AH26=0),AND('Раздел 4'!AG26>0,'Раздел 4'!AH26>0)),0,1)","v":0}]
[609535,4,23,188,"Раздел 4 графа 21 строка 07 количество учащихся не соответствует количеству классов Раздел 4 графа 20 строка 07",null,null,{"$f":"IF(OR(AND('Раздел 4'!AG27=0,'Раздел 4'!AH27=0),AND('Раздел 4'!AG27>0,'Раздел 4'!AH27>0)),0,1)","v":0}]
[609535,4,23,189,"Раздел 4 графа 21 строка 08 количество учащихся не соответствует количеству классов Раздел 4 графа 20 строка 08",null,null,{"$f":"IF(OR(AND('Раздел 4'!AG28=0,'Раздел 4'!AH28=0),AND('Раздел 4'!AG28>0,'Раздел 4'!AH28>0)),0,1)","v":0}]
[609535,4,23,190,"Раздел 4 графа 21 строка 09 количество учащихся не соответствует количеству классов Раздел 4 графа 20 строка 09",null,null,{"$f":"IF(OR(AND('Раздел 4'!AG29=0,'Раздел 4'!AH29=0),AND('Раздел 4'!AG29>0,'Раздел 4'!AH29>0)),0,1)","v":0}]
[609535,4,23,191,"Раздел 4 графа 21 строка 10 количество учащихся не соответствует количеству классов Раздел 4 графа 20 строка 10",null,null,{"$f":"IF(OR(AND('Раздел 4'!AG30=0,'Раздел 4'!AH30=0),AND('Раздел 4'!AG30>0,'Раздел 4'!AH30>0)),0,1)","v":0}]
[609535,4,23,192,"Раздел 4 графа 21 строка 11 количество учащихся не соответствует количеству классов Раздел 4 графа 20 строка 11",null,null,{"$f":"IF(OR(AND('Раздел 4'!AG31=0,'Раздел 4'!AH31=0),AND('Раздел 4'!AG31>0,'Раздел 4'!AH31>0)),0,1)","v":0}]
[609535,4,23,193,"Раздел 4 графа 21 строка 12 количество учащихся не соответствует количеству классов Раздел 4 графа 20 строка 12",null,null,{"$f":"IF(OR(AND('Раздел 4'!AG32=0,'Раздел 4'!AH32=0),AND('Раздел 4'!AG32>0,'Раздел 4'!AH32>0)),0,1)","v":0}]
[609535,4,23,194,"Раздел 4 графа 21 строка 13 количество учащихся не соответствует количеству классов Раздел 4 графа 20 строка 15",null,null,{"$f":"IF(OR(AND('Раздел 4'!AG33=0,'Раздел 4'!AH33=0),AND('Раздел 4'!AG33>0,'Раздел 4'!AH33>0)),0,1)","v":0}]
[609535,4,23,195,"Раздел 4 графа 21 строка 14 количество учащихся не соответствует количеству классов Раздел 4 графа 20 строка 14",null,null,{"$f":"IF(OR(AND('Раздел 4'!AG34=0,'Раздел 4'!AH34=0),AND('Раздел 4'!AG34>0,'Раздел 4'!AH34>0)),0,1)","v":0}]
[609535,4,23,196,"Раздел 4 графа 21 строка 15 количество учащихся не соответствует количеству классов Раздел 4 графа 20 строка 15",null,null,{"$f":"IF(OR(AND('Раздел 4'!AG35=0,'Раздел 4'!AH35=0),AND('Раздел 4'!AG35>0,'Раздел 4'!AH35>0)),0,1)","v":0}]
[609535,4,24,197,"Раздел 4 графа 23 строка 01 количество учащихся не соответствует количеству классов Раздел 4 графа 22 строка 01",null,null,{"$f":"IF(OR(AND('Раздел 4'!AI21=0,'Раздел 4'!AJ21=0),AND('Раздел 4'!AI21>0,'Раздел 4'!AJ21>0)),0,1)","v":0}]
[609535,4,24,198,"Раздел 4 графа 23 строка 02 количество учащихся не соответствует количеству классов Раздел 4 графа 22 строка 02",null,null,{"$f":"IF(OR(AND('Раздел 4'!AI22=0,'Раздел 4'!AJ22=0),AND('Раздел 4'!AI22>0,'Раздел 4'!AJ22>0)),0,1)","v":0}]
[609535,4,24,199,"Раздел 4 графа 23 строка 03 количество учащихся не соответствует количеству классов Раздел 4 графа 22 строка 03",null,null,{"$f":"IF(OR(AND('Раздел 4'!AI23=0,'Раздел 4'!AJ23=0),AND('Раздел 4'!AI23>0,'Раздел 4'!AJ23>0)),0,1)","v":0}]
[609535,4,24,200,"Раздел 4 графа 23 строка 04 количество учащихся не соответствует количеству классов Раздел 4 графа 22 строка 04",null,null,{"$f":"IF(OR(AND('Раздел 4'!AI24=0,'Раздел 4'!AJ24=0),AND('Раздел 4'!AI24>0,'Раздел 4'!AJ24>0)),0,1)","v":0}]
[609535,4,24,201,"Раздел 4 графа 23 строка 05 количество учащихся не соответствует количеству классов Раздел 4 графа 22 строка 05",null,null,{"$f":"IF(OR(AND('Раздел 4'!AI25=0,'Раздел 4'!AJ25=0),AND('Раздел 4'!AI25>0,'Раздел 4'!AJ25>0)),0,1)","v":0}]
[609535,4,24,202,"Раздел 4 графа 23 строка 06 количество учащихся не соответствует количеству классов Раздел 4 графа 22 строка 06",null,null,{"$f":"IF(OR(AND('Раздел 4'!AI26=0,'Раздел 4'!AJ26=0),AND('Раздел 4'!AI26>0,'Раздел 4'!AJ26>0)),0,1)","v":0}]
[609535,4,24,203,"Раздел 4 графа 23 строка 07 количество учащихся не соответствует количеству классов Раздел 4 графа 22 строка 07",null,null,{"$f":"IF(OR(AND('Раздел 4'!AI27=0,'Раздел 4'!AJ27=0),AND('Раздел 4'!AI27>0,'Раздел 4'!AJ27>0)),0,1)","v":0}]
[609535,4,24,204,"Раздел 4 графа 23 строка 08 количество учащихся не соответствует количеству классов Раздел 4 графа 22 строка 08",null,null,{"$f":"IF(OR(AND('Раздел 4'!AI28=0,'Раздел 4'!AJ28=0),AND('Раздел 4'!AI28>0,'Раздел 4'!AJ28>0)),0,1)","v":0}]
[609535,4,24,205,"Раздел 4 графа 23 строка 09 количество учащихся не соответствует количеству классов Раздел 4 графа 22 строка 09",null,null,{"$f":"IF(OR(AND('Раздел 4'!AI29=0,'Раздел 4'!AJ29=0),AND('Раздел 4'!AI29>0,'Раздел 4'!AJ29>0)),0,1)","v":0}]
[609535,4,24,206,"Раздел 4 графа 23 строка 10 количество учащихся не соответствует количеству классов Раздел 4 графа 22 строка 10",null,null,{"$f":"IF(OR(AND('Раздел 4'!AI30=0,'Раздел 4'!AJ30=0),AND('Раздел 4'!AI30>0,'Раздел 4'!AJ30>0)),0,1)","v":0}]
[609535,4,24,207,"Раздел 4 графа 23 строка 11 количество учащихся не соответствует количеству классов Раздел 4 графа 22 строка 11",null,null,{"$f":"IF(OR(AND('Раздел 4'!AI31=0,'Раздел 4'!AJ31=0),AND('Раздел 4'!AI31>0,'Раздел 4'!AJ31>0)),0,1)","v":0}]
[609535,4,24,208,"Раздел 4 графа 23 строка 12 количество учащихся не соответствует количеству классов Раздел 4 графа 22 строка 12",null,null,{"$f":"IF(OR(AND('Раздел 4'!AI32=0,'Раздел 4'!AJ32=0),AND('Раздел 4'!AI32>0,'Раздел 4'!AJ32>0)),0,1)","v":0}]
[609535,4,24,209,"Раздел 4 графа 23 строка 13 количество учащихся не соответствует количеству классов Раздел 4 графа 22 строка 15",null,null,{"$f":"IF(OR(AND('Раздел 4'!AI33=0,'Раздел 4'!AJ33=0),AND('Раздел 4'!AI33>0,'Раздел 4'!AJ33>0)),0,1)","v":0}]
[609535,4,24,210,"Раздел 4 графа 23 строка 14 количество учащихся не соответствует количеству классов Раздел 4 графа 22 строка 14",null,null,{"$f":"IF(OR(AND('Раздел 4'!AI34=0,'Раздел 4'!AJ34=0),AND('Раздел 4'!AI34>0,'Раздел 4'!AJ34>0)),0,1)","v":0}]
[609535,4,24,211,"Раздел 4 графа 23 строка 15 количество учащихся не соответствует количеству классов Раздел 4 графа 22 строка 15",null,null,{"$f":"IF(OR(AND('Раздел 4'!AI35=0,'Раздел 4'!AJ35=0),AND('Раздел 4'!AI35>0,'Раздел 4'!AJ35>0)),0,1)","v":0}]
[609535,5,0,0,{"$f":"CONCATENATE(\"Количество ошибок в разделе 5: \",H246)","v":"Количество ошибок в разделе 5: 0"},null,null,{"$f":"SUM(H247:H373)","v":0}]
[609535,5,1,1,"Раздел 5 строка 20 графа 03 = Раздел 5 сумма строк с 01 по 19 по графе 03 ",null,null,{"$f":"IF('Раздел 5'!P40=SUM('Раздел 5'!P21:P39),0,1)","v":0}]
[609535,5,2,2,"Раздел 5 строка 20 графа 04 = Раздел 5 сумма строк с 01 по 19 по графе 04",null,null,{"$f":"IF('Раздел 5'!Q40=SUM('Раздел 5'!Q21:Q39),0,1)","v":0}]
[609535,5,3,3,"Раздел 5 строка 20 графа 05 = Раздел 5 сумма строк с 01 по 19 по графе 05",null,null,{"$f":"IF('Раздел 5'!R40=SUM('Раздел 5'!R21:R39),0,1)","v":0}]
[609535,5,4,4,"Раздел 5 строка 20 графа 06 = Раздел 5 сумма строк с 01 по 19 по графе 06",null,null,{"$f":"IF('Раздел 5'!S40=SUM('Раздел 5'!S21:S39),0,1)","v":0}]
[609535,5,5,5,"Раздел 5 строка 20 графа 07 = Раздел 5 сумма строк с 01 по 19 по графе 07",null,null,{"$f":"IF('Раздел 5'!T40=SUM('Раздел 5'!T21:T39),0,1)","v":0}]
[609535,5,6,6,"Раздел 5 строка 20 графа 08 = Раздел 5 сумма строк с 01 по 19 по графе 08",null,null,{"$f":"IF('Раздел 5'!U40=SUM('Раздел 5'!U21:U39),0,1)","v":0}]
[609535,5,7,7,"Раздел 5 строка 20 графа 09 = Раздел 5 сумма строк с 01 по 19 по графе 09",null,null,{"$f":"IF('Раздел 5'!V40=SUM('Раздел 5'!V21:V39),0,1)","v":0}]
[609535,5,8,8,"Раздел 5 строка 01 графа 4 <= Раздел 5 строка 01 графа 3",null,null,{"$f":"IF('Раздел 5'!Q21<='Раздел 5'!P21,0,1)","v":0}]
[609535,5,9,9,"Раздел 5 строка 02 графа 4 <= Раздел 5 строка 02 графа 3",null,null,{"$f":"IF('Раздел 5'!Q22<='Раздел 5'!P22,0,1)","v":0}]
[609535,5,10,10,"Раздел 5 строка 03 графа 4 <= Раздел 5 строка 03 графа 3",null,null,{"$f":"IF('Раздел 5'!Q23<='Раздел 5'!P23,0,1)","v":0}]
[609535,5,11,11,"Раздел 5 строка 04 графа 4 <= Раздел 5 строка 04 графа 3",null,null,{"$f":"IF('Раздел 5'!Q24<='Раздел 5'!P24,0,1)","v":0}]
[609535,5,12,12,"Раздел 5 строка 05 графа 4 <= Раздел 5 строка 05 графа 3",null,null,{"$f":"IF('Раздел 5'!Q25<='Раздел 5'!P25,0,1)","v":0}]
[{"$f":"P_3","v":609535},5,13,13,"Раздел 5 строка 06 графа 4 <= Раздел 5 строка 06 графа 3",null,null,{"$f":"IF('Раздел 5'!Q26<='Раздел 5'!P26,0,1)","v":0}]
[609535,5,14,14,"Раздел 5 строка 07 графа 4 <= Раздел 5 строка 07 графа 3",null,null,{"$f":"IF('Раздел 5'!Q27<='Раздел 5'!P27,0,1)","v":0}]
[609535,5,15,15,"Раздел 5 строка 08 графа 4 <= Раздел 5 строка 08 графа 3",null,null,{"$f":"IF('Раздел 5'!Q28<='Раздел 5'!P28,0,1)","v":0}]
[609535,5,16,16,"Раздел 5 строка 09 графа 4 <= Раздел 5 строка 09 графа 3",null,null,{"$f":"IF('Раздел 5'!Q29<='Раздел 5'!P29,0,1)","v":0}]
[609535,5,17,17,"Раздел 5 строка 10 графа 4 <= Раздел 5 строка 10 графа 3",null,null,{"$f":"IF('Раздел 5'!Q30<='Раздел 5'!P30,0,1)","v":0}]
[609535,5,18,18,"Раздел 5 строка 11 графа 4 <= Раздел 5 строка 11 графа 3",null,null,{"$f":"IF('Раздел 5'!Q31<='Раздел 5'!P31,0,1)","v":0}]
[609535,5,19,19,"Раздел 5 строка 12 графа 4 <= Раздел 5 строка 12 графа 3",null,null,{"$f":"IF('Раздел 5'!Q32<='Раздел 5'!P32,0,1)","v":0}]
[609535,5,20,20,"Раздел 5 строка 13 графа 4 <= Раздел 5 строка 13 графа 3",null,null,{"$f":"IF('Раздел 5'!Q33<='Раздел 5'!P33,0,1)","v":0}]
[609535,5,21,21,"Раздел 5 строка 14 графа 4 <= Раздел 5 строка 14 графа 3",null,null,{"$f":"IF('Раздел 5'!Q34<='Раздел 5'!P34,0,1)","v":0}]
[609535,5,22,22,"Раздел 5 строка 15 графа 4 <= Раздел 5 строка 15 графа 3",null,null,{"$f":"IF('Раздел 5'!Q35<='Раздел 5'!P35,0,1)","v":0}]
[609535,5,23,23,"Раздел 5 строка 16 графа 4 <= Раздел 5 строка 16 графа 3",null,null,{"$f":"IF('Раздел 5'!Q36<='Раздел 5'!P36,0,1)","v":0}]
[609535,5,24,24,"Раздел 5 строка 17 графа 4 <= Раздел 5 строка 17 графа 3",null,null,{"$f":"IF('Раздел 5'!Q37<='Раздел 5'!P37,0,1)","v":0}]
[609535,5,25,25,"Раздел 5 строка 18 графа 4 <= Раздел 5 строка 18 графа 3",null,null,{"$f":"IF('Раздел 5'!Q38<='Раздел 5'!P38,0,1)","v":0}]
[609535,5,26,26,"Раздел 5 строка 19 графа 4 <= Раздел 5 строка 19 графа 3",null,null,{"$f":"IF('Раздел 5'!Q39<='Раздел 5'!P39,0,1)","v":0}]
[609535,5,27,27,"Раздел 5 строка 20 графа 4 <= Раздел 5 строка 20 графа 3",null,null,{"$f":"IF('Раздел 5'!Q40<='Раздел 5'!P40,0,1)","v":0}]
[609535,5,28,28,"Раздел 5 строка 01 графа 5 <= Раздел 5 строка 01 графа 3",null,null,{"$f":"IF('Раздел 5'!R21<='Раздел 5'!P21,0,1)","v":0}]
[609535,5,29,29,"Раздел 5 строка 02 графа 5 <= Раздел 5 строка 02 графа 3",null,null,{"$f":"IF('Раздел 5'!R22<='Раздел 5'!P22,0,1)","v":0}]
[609535,5,30,30,"Раздел 5 строка 03 графа 5 <= Раздел 5 строка 03 графа 3",null,null,{"$f":"IF('Раздел 5'!R23<='Раздел 5'!P23,0,1)","v":0}]
[609535,5,31,31,"Раздел 5 строка 04 графа 5 <= Раздел 5 строка 04 графа 3",null,null,{"$f":"IF('Раздел 5'!R24<='Раздел 5'!P24,0,1)","v":0}]
[609535,5,32,32,"Раздел 5 строка 05 графа 5 <= Раздел 5 строка 05 графа 3",null,null,{"$f":"IF('Раздел 5'!R25<='Раздел 5'!P25,0,1)","v":0}]
[609535,5,33,33,"Раздел 5 строка 06 графа 5 <= Раздел 5 строка 06 графа 3",null,null,{"$f":"IF('Раздел 5'!R26<='Раздел 5'!P26,0,1)","v":0}]
[609535,5,34,34,"Раздел 5 строка 07 графа 5 <= Раздел 5 строка 07 графа 3",null,null,{"$f":"IF('Раздел 5'!R27<='Раздел 5'!P27,0,1)","v":0}]
[609535,5,35,35,"Раздел 5 строка 08 графа 5 <= Раздел 5 строка 08 графа 3",null,null,{"$f":"IF('Раздел 5'!R28<='Раздел 5'!P28,0,1)","v":0}]
[609535,5,36,36,"Раздел 5 строка 09 графа 5 <= Раздел 5 строка 09 графа 3",null,null,{"$f":"IF('Раздел 5'!R29<='Раздел 5'!P29,0,1)","v":0}]
[609535,5,37,37,"Раздел 5 строка 10 графа 5 <= Раздел 5 строка 10 графа 3",null,null,{"$f":"IF('Раздел 5'!R30<='Раздел 5'!P30,0,1)","v":0}]
[609535,5,38,38,"Раздел 5 строка 11 графа 5 <= Раздел 5 строка 11 графа 3",null,null,{"$f":"IF('Раздел 5'!R31<='Раздел 5'!P31,0,1)","v":0}]
[609535,5,39,39,"Раздел 5 строка 12 графа 5 <= Раздел 5 строка 12 графа 3",null,null,{"$f":"IF('Раздел 5'!R32<='Раздел 5'!P32,0,1)","v":0}]
[609535,5,40,40,"Раздел 5 строка 13 графа 5 <= Раздел 5 строка 13 графа 3",null,null,{"$f":"IF('Раздел 5'!R33<='Раздел 5'!P33,0,1)","v":0}]
[609535,5,41,41,"Раздел 5 строка 14 графа 5 <= Раздел 5 строка 14 графа 3",null,null,{"$f":"IF('Раздел 5'!R34<='Раздел 5'!P34,0,1)","v":0}]
[609535,5,42,42,"Раздел 5 строка 15 графа 5 <= Раздел 5 строка 15 графа 3",null,null,{"$f":"IF('Раздел 5'!R35<='Раздел 5'!P35,0,1)","v":0}]
[609535,5,43,43,"Раздел 5 строка 16 графа 5 <= Раздел 5 строка 16 графа 3",null,null,{"$f":"IF('Раздел 5'!R36<='Раздел 5'!P36,0,1)","v":0}]
[609535,5,44,44,"Раздел 5 строка 17 графа 5 <= Раздел 5 строка 17 графа 3",null,null,{"$f":"IF('Раздел 5'!R37<='Раздел 5'!P37,0,1)","v":0}]
[609535,5,45,45,"Раздел 5 строка 18 графа 5 <= Раздел 5 строка 18 графа 3",null,null,{"$f":"IF('Раздел 5'!R38<='Раздел 5'!P38,0,1)","v":0}]
[609535,5,46,46,"Раздел 5 строка 19 графа 5 <= Раздел 5 строка 19 графа 3",null,null,{"$f":"IF('Раздел 5'!R39<='Раздел 5'!P39,0,1)","v":0}]
[609535,5,47,47,"Раздел 5 строка 20 графа 5 <= Раздел 5 строка 20 графа 3",null,null,{"$f":"IF('Раздел 5'!R40<='Раздел 5'!P40,0,1)","v":0}]
[609535,5,48,48,"Раздел 5 строка 01 графа 6 <= Раздел 5 строка 01 графа 3",null,null,{"$f":"IF('Раздел 5'!S21<='Раздел 5'!P21,0,1)","v":0}]
[609535,5,49,49,"Раздел 5 строка 02 графа 6 <= Раздел 5 строка 02 графа 3",null,null,{"$f":"IF('Раздел 5'!S22<='Раздел 5'!P22,0,1)","v":0}]
[609535,5,50,50,"Раздел 5 строка 03 графа 6 <= Раздел 5 строка 03 графа 3",null,null,{"$f":"IF('Раздел 5'!S23<='Раздел 5'!P23,0,1)","v":0}]
[609535,5,51,51,"Раздел 5 строка 04 графа 6 <= Раздел 5 строка 04 графа 3",null,null,{"$f":"IF('Раздел 5'!S24<='Раздел 5'!P24,0,1)","v":0}]
[609535,5,52,52,"Раздел 5 строка 05 графа 6 <= Раздел 5 строка 05 графа 3",null,null,{"$f":"IF('Раздел 5'!S25<='Раздел 5'!P25,0,1)","v":0}]
[609535,5,53,53,"Раздел 5 строка 06 графа 6 <= Раздел 5 строка 06 графа 3",null,null,{"$f":"IF('Раздел 5'!S26<='Раздел 5'!P26,0,1)","v":0}]
[609535,5,54,54,"Раздел 5 строка 07 графа 6 <= Раздел 5 строка 07 графа 3",null,null,{"$f":"IF('Раздел 5'!S27<='Раздел 5'!P27,0,1)","v":0}]
[609535,5,55,55,"Раздел 5 строка 08 графа 6 <= Раздел 5 строка 08 графа 3",null,null,{"$f":"IF('Раздел 5'!S28<='Раздел 5'!P28,0,1)","v":0}]
[609535,5,56,56,"Раздел 5 строка 09 графа 6 <= Раздел 5 строка 09 графа 3",null,null,{"$f":"IF('Раздел 5'!S29<='Раздел 5'!P29,0,1)","v":0}]
[609535,5,57,57,"Раздел 5 строка 10 графа 6 <= Раздел 5 строка 10 графа 3",null,null,{"$f":"IF('Раздел 5'!S30<='Раздел 5'!P30,0,1)","v":0}]
[609535,5,58,58,"Раздел 5 строка 11 графа 6 <= Раздел 5 строка 11 графа 3",null,null,{"$f":"IF('Раздел 5'!S31<='Раздел 5'!P31,0,1)","v":0}]
[609535,5,59,59,"Раздел 5 строка 12 графа 6 <= Раздел 5 строка 12 графа 3",null,null,{"$f":"IF('Раздел 5'!S32<='Раздел 5'!P32,0,1)","v":0}]
[609535,5,60,60,"Раздел 5 строка 13 графа 6 <= Раздел 5 строка 13 графа 3",null,null,{"$f":"IF('Раздел 5'!S33<='Раздел 5'!P33,0,1)","v":0}]
[609535,5,61,61,"Раздел 5 строка 14 графа 6 <= Раздел 5 строка 14 графа 3",null,null,{"$f":"IF('Раздел 5'!S34<='Раздел 5'!P34,0,1)","v":0}]
[609535,5,62,62,"Раздел 5 строка 15 графа 6 <= Раздел 5 строка 15 графа 3",null,null,{"$f":"IF('Раздел 5'!S35<='Раздел 5'!P35,0,1)","v":0}]
[609535,5,63,63,"Раздел 5 строка 16 графа 6 <= Раздел 5 строка 16 графа 3",null,null,{"$f":"IF('Раздел 5'!S36<='Раздел 5'!P36,0,1)","v":0}]
[609535,5,64,64,"Раздел 5 строка 17 графа 6 <= Раздел 5 строка 17 графа 3",null,null,{"$f":"IF('Раздел 5'!S37<='Раздел 5'!P37,0,1)","v":0}]
[609535,5,65,65,"Раздел 5 строка 18 графа 6 <= Раздел 5 строка 18 графа 3",null,null,{"$f":"IF('Раздел 5'!S38<='Раздел 5'!P38,0,1)","v":0}]
[609535,5,66,66,"Раздел 5 строка 19 графа 6 <= Раздел 5 строка 19 графа 3",null,null,{"$f":"IF('Раздел 5'!S39<='Раздел 5'!P39,0,1)","v":0}]
[609535,5,67,67,"Раздел 5 строка 20 графа 6 <= Раздел 5 строка 20 графа 3",null,null,{"$f":"IF('Раздел 5'!S40<='Раздел 5'!P40,0,1)","v":0}]
[609535,5,68,68,"Раздел 5 строка 01 графа 7 <= Раздел 5 строка 01 графа 3",null,null,{"$f":"IF('Раздел 5'!T21<='Раздел 5'!P21,0,1)","v":0}]
[609535,5,69,69,"Раздел 5 строка 02 графа 7 <= Раздел 5 строка 02 графа 3",null,null,{"$f":"IF('Раздел 5'!T22<='Раздел 5'!P22,0,1)","v":0}]
[609535,5,70,70,"Раздел 5 строка 03 графа 7 <= Раздел 5 строка 03 графа 3",null,null,{"$f":"IF('Раздел 5'!T23<='Раздел 5'!P23,0,1)","v":0}]
[609535,5,71,71,"Раздел 5 строка 04 графа 7 <= Раздел 5 строка 04 графа 3",null,null,{"$f":"IF('Раздел 5'!T24<='Раздел 5'!P24,0,1)","v":0}]
[609535,5,72,72,"Раздел 5 строка 05 графа 7 <= Раздел 5 строка 05 графа 3",null,null,{"$f":"IF('Раздел 5'!T25<='Раздел 5'!P25,0,1)","v":0}]
[609535,5,73,73,"Раздел 5 строка 06 графа 7 <= Раздел 5 строка 06 графа 3",null,null,{"$f":"IF('Раздел 5'!T26<='Раздел 5'!P26,0,1)","v":0}]
[609535,5,74,74,"Раздел 5 строка 07 графа 7 <= Раздел 5 строка 07 графа 3",null,null,{"$f":"IF('Раздел 5'!T27<='Раздел 5'!P27,0,1)","v":0}]
[609535,5,75,75,"Раздел 5 строка 08 графа 7 <= Раздел 5 строка 08 графа 3",null,null,{"$f":"IF('Раздел 5'!T28<='Раздел 5'!P28,0,1)","v":0}]
[609535,5,76,76,"Раздел 5 строка 09 графа 7 <= Раздел 5 строка 09 графа 3",null,null,{"$f":"IF('Раздел 5'!T29<='Раздел 5'!P29,0,1)","v":0}]
[{"$f":"P_3","v":609535},5,77,77,"Раздел 5 строка 10 графа 7 <= Раздел 5 строка 10 графа 3",null,null,{"$f":"IF('Раздел 5'!T30<='Раздел 5'!P30,0,1)","v":0}]
[609535,5,78,78,"Раздел 5 строка 11 графа 7 <= Раздел 5 строка 11 графа 3",null,null,{"$f":"IF('Раздел 5'!T31<='Раздел 5'!P31,0,1)","v":0}]
[609535,5,79,79,"Раздел 5 строка 12 графа 7 <= Раздел 5 строка 12 графа 3",null,null,{"$f":"IF('Раздел 5'!T32<='Раздел 5'!P32,0,1)","v":0}]
[609535,5,80,80,"Раздел 5 строка 13 графа 7 <= Раздел 5 строка 13 графа 3",null,null,{"$f":"IF('Раздел 5'!T33<='Раздел 5'!P33,0,1)","v":0}]
[609535,5,81,81,"Раздел 5 строка 14 графа 7 <= Раздел 5 строка 14 графа 3",null,null,{"$f":"IF('Раздел 5'!T34<='Раздел 5'!P34,0,1)","v":0}]
[609535,5,82,82,"Раздел 5 строка 15 графа 7 <= Раздел 5 строка 15 графа 3",null,null,{"$f":"IF('Раздел 5'!T35<='Раздел 5'!P35,0,1)","v":0}]
[609535,5,83,83,"Раздел 5 строка 16 графа 7 <= Раздел 5 строка 16 графа 3",null,null,{"$f":"IF('Раздел 5'!T36<='Раздел 5'!P36,0,1)","v":0}]
[609535,5,84,84,"Раздел 5 строка 17 графа 7 <= Раздел 5 строка 17 графа 3",null,null,{"$f":"IF('Раздел 5'!T37<='Раздел 5'!P37,0,1)","v":0}]
[609535,5,85,85,"Раздел 5 строка 18 графа 7 <= Раздел 5 строка 18 графа 3",null,null,{"$f":"IF('Раздел 5'!T38<='Раздел 5'!P38,0,1)","v":0}]
[609535,5,86,86,"Раздел 5 строка 19 графа 7 <= Раздел 5 строка 19 графа 3",null,null,{"$f":"IF('Раздел 5'!T39<='Раздел 5'!P39,0,1)","v":0}]
[609535,5,87,87,"Раздел 5 строка 20 графа 7 <= Раздел 5 строка 20 графа 3",null,null,{"$f":"IF('Раздел 5'!T40<='Раздел 5'!P40,0,1)","v":0}]
[609535,5,88,88,"Раздел 5 строка 01 графа 8 <= Раздел 5 строка 01 графа 3",null,null,{"$f":"IF('Раздел 5'!U21<='Раздел 5'!P21,0,1)","v":0}]
[609535,5,89,89,"Раздел 5 строка 02 графа 8 <= Раздел 5 строка 02 графа 3",null,null,{"$f":"IF('Раздел 5'!U22<='Раздел 5'!P22,0,1)","v":0}]
[609535,5,90,90,"Раздел 5 строка 03 графа 8 <= Раздел 5 строка 03 графа 3",null,null,{"$f":"IF('Раздел 5'!U23<='Раздел 5'!P23,0,1)","v":0}]
[609535,5,91,91,"Раздел 5 строка 04 графа 8 <= Раздел 5 строка 04 графа 3",null,null,{"$f":"IF('Раздел 5'!U24<='Раздел 5'!P24,0,1)","v":0}]
[609535,5,92,92,"Раздел 5 строка 05 графа 8 <= Раздел 5 строка 05 графа 3",null,null,{"$f":"IF('Раздел 5'!U25<='Раздел 5'!P25,0,1)","v":0}]
[609535,5,93,93,"Раздел 5 строка 06 графа 8 <= Раздел 5 строка 06 графа 3",null,null,{"$f":"IF('Раздел 5'!U26<='Раздел 5'!P26,0,1)","v":0}]
[609535,5,94,94,"Раздел 5 строка 07 графа 8 <= Раздел 5 строка 07 графа 3",null,null,{"$f":"IF('Раздел 5'!U27<='Раздел 5'!P27,0,1)","v":0}]
[609535,5,95,95,"Раздел 5 строка 08 графа 8 <= Раздел 5 строка 08 графа 3",null,null,{"$f":"IF('Раздел 5'!U28<='Раздел 5'!P28,0,1)","v":0}]
[609535,5,96,96,"Раздел 5 строка 09 графа 8 <= Раздел 5 строка 09 графа 3",null,null,{"$f":"IF('Раздел 5'!U29<='Раздел 5'!P29,0,1)","v":0}]
[609535,5,97,97,"Раздел 5 строка 10 графа 8 <= Раздел 5 строка 10 графа 3",null,null,{"$f":"IF('Раздел 5'!U30<='Раздел 5'!P30,0,1)","v":0}]
[609535,5,98,98,"Раздел 5 строка 11 графа 8 <= Раздел 5 строка 11 графа 3",null,null,{"$f":"IF('Раздел 5'!U31<='Раздел 5'!P31,0,1)","v":0}]
[609535,5,99,99,"Раздел 5 строка 12 графа 8 <= Раздел 5 строка 12 графа 3",null,null,{"$f":"IF('Раздел 5'!U32<='Раздел 5'!P32,0,1)","v":0}]
[609535,5,100,100,"Раздел 5 строка 13 графа 8 <= Раздел 5 строка 13 графа 3",null,null,{"$f":"IF('Раздел 5'!U33<='Раздел 5'!P33,0,1)","v":0}]
[609535,5,101,101,"Раздел 5 строка 14 графа 8 <= Раздел 5 строка 14 графа 3",null,null,{"$f":"IF('Раздел 5'!U34<='Раздел 5'!P34,0,1)","v":0}]
[609535,5,102,102,"Раздел 5 строка 15 графа 8 <= Раздел 5 строка 15 графа 3",null,null,{"$f":"IF('Раздел 5'!U35<='Раздел 5'!P35,0,1)","v":0}]
[609535,5,103,103,"Раздел 5 строка 16 графа 8 <= Раздел 5 строка 16 графа 3",null,null,{"$f":"IF('Раздел 5'!U36<='Раздел 5'!P36,0,1)","v":0}]
[609535,5,104,104,"Раздел 5 строка 17 графа 8 <= Раздел 5 строка 17 графа 3",null,null,{"$f":"IF('Раздел 5'!U37<='Раздел 5'!P37,0,1)","v":0}]
[609535,5,105,105,"Раздел 5 строка 18 графа 8 <= Раздел 5 строка 18 графа 3",null,null,{"$f":"IF('Раздел 5'!U38<='Раздел 5'!P38,0,1)","v":0}]
[609535,5,106,106,"Раздел 5 строка 19 графа 8 <= Раздел 5 строка 19 графа 3",null,null,{"$f":"IF('Раздел 5'!U39<='Раздел 5'!P39,0,1)","v":0}]
[609535,5,107,107,"Раздел 5 строка 20 графа 8 <= Раздел 5 строка 20 графа 3",null,null,{"$f":"IF('Раздел 5'!U40<='Раздел 5'!P40,0,1)","v":0}]
[609535,5,108,108,"Раздел 5 строка 01 графа 9 <= Раздел 5 строка 01 графа 8",null,null,{"$f":"IF('Раздел 5'!V21<='Раздел 5'!U21,0,1)","v":0}]
[609535,5,109,109,"Раздел 5 строка 02 графа 9 <= Раздел 5 строка 02 графа 8",null,null,{"$f":"IF('Раздел 5'!V22<='Раздел 5'!U22,0,1)","v":0}]
[609535,5,110,110,"Раздел 5 строка 03 графа 9 <= Раздел 5 строка 03 графа 8",null,null,{"$f":"IF('Раздел 5'!V23<='Раздел 5'!U23,0,1)","v":0}]
[609535,5,111,111,"Раздел 5 строка 04 графа 9 <= Раздел 5 строка 04 графа 8",null,null,{"$f":"IF('Раздел 5'!V24<='Раздел 5'!U24,0,1)","v":0}]
[609535,5,112,112,"Раздел 5 строка 05 графа 9 <= Раздел 5 строка 05 графа 8",null,null,{"$f":"IF('Раздел 5'!V25<='Раздел 5'!U25,0,1)","v":0}]
[609535,5,113,113,"Раздел 5 строка 06 графа 9 <= Раздел 5 строка 06 графа 8",null,null,{"$f":"IF('Раздел 5'!V26<='Раздел 5'!U26,0,1)","v":0}]
[609535,5,114,114,"Раздел 5 строка 07 графа 9 <= Раздел 5 строка 07 графа 8",null,null,{"$f":"IF('Раздел 5'!V27<='Раздел 5'!U27,0,1)","v":0}]
[609535,5,115,115,"Раздел 5 строка 08 графа 9 <= Раздел 5 строка 08 графа 8",null,null,{"$f":"IF('Раздел 5'!V28<='Раздел 5'!U28,0,1)","v":0}]
[609535,5,116,116,"Раздел 5 строка 09 графа 9 <= Раздел 5 строка 09 графа 8",null,null,{"$f":"IF('Раздел 5'!V29<='Раздел 5'!U29,0,1)","v":0}]
[609535,5,117,117,"Раздел 5 строка 10 графа 9 <= Раздел 5 строка 10 графа 8",null,null,{"$f":"IF('Раздел 5'!V30<='Раздел 5'!U30,0,1)","v":0}]
[609535,5,118,118,"Раздел 5 строка 11 графа 9 <= Раздел 5 строка 11 графа 8",null,null,{"$f":"IF('Раздел 5'!V31<='Раздел 5'!U31,0,1)","v":0}]
[609535,5,119,119,"Раздел 5 строка 12 графа 9 <= Раздел 5 строка 12 графа 8",null,null,{"$f":"IF('Раздел 5'!V32<='Раздел 5'!U32,0,1)","v":0}]
[609535,5,120,120,"Раздел 5 строка 13 графа 9 <= Раздел 5 строка 13 графа 8",null,null,{"$f":"IF('Раздел 5'!V33<='Раздел 5'!U33,0,1)","v":0}]
[609535,5,121,121,"Раздел 5 строка 14 графа 9 <= Раздел 5 строка 14 графа 8",null,null,{"$f":"IF('Раздел 5'!V34<='Раздел 5'!U34,0,1)","v":0}]
[609535,5,122,122,"Раздел 5 строка 15 графа 9 <= Раздел 5 строка 15 графа 8",null,null,{"$f":"IF('Раздел 5'!V35<='Раздел 5'!U35,0,1)","v":0}]
[609535,5,123,123,"Раздел 5 строка 16 графа 9 <= Раздел 5 строка 16 графа 8",null,null,{"$f":"IF('Раздел 5'!V36<='Раздел 5'!U36,0,1)","v":0}]
[609535,5,124,124,"Раздел 5 строка 17 графа 9 <= Раздел 5 строка 17 графа 8",null,null,{"$f":"IF('Раздел 5'!V37<='Раздел 5'!U37,0,1)","v":0}]
[609535,5,125,125,"Раздел 5 строка 18 графа 9 <= Раздел 5 строка 18 графа 8",null,null,{"$f":"IF('Раздел 5'!V38<='Раздел 5'!U38,0,1)","v":0}]
[609535,5,126,126,"Раздел 5 строка 19 графа 9 <= Раздел 5 строка 19 графа 8",null,null,{"$f":"IF('Раздел 5'!V39<='Раздел 5'!U39,0,1)","v":0}]
[609535,5,127,127,"Раздел 5 строка 20 графа 9 <= Раздел 5 строка 20 графа 8",null,null,{"$f":"IF('Раздел 5'!V40<='Раздел 5'!U40,0,1)","v":0}]
[609535,6,0,0,{"$f":"CONCATENATE(\"Количество ошибок в разделе 6: \",H374)","v":"Количество ошибок в разделе 6: 0"},null,null,{"$f":"SUM(H375)","v":0}]
[609535,6,1,1,"Раздел 6 строка 02 графа 3 = Раздел 6 сумма строк с 03 по 10  графа 3",null,null,{"$f":"IF('Раздел 6'!P22=SUM('Раздел 6'!P23:P30),0,1)","v":0}]
[609535,8,0,0,{"$f":"CONCATENATE(\"Количество ошибок в разделе 8: \",H376)","v":"Количество ошибок в разделе 8: 0"},null,null,{"$f":"SUM(H377:H379)","v":0}]
[609535,8,1,1,"Раздел 8 графа 03 строка 03 >= Раздел 8 графа 03 строка 04",null,null,{"$f":"IF('Раздел 8'!P23>='Раздел 8'!P24,0,1)","v":0}]
[609535,8,2,2,"Раздел 8 графа 03 строка 01 >= Раздел 8 графа 03 строка 02",null,null,{"$f":"IF('Раздел 8'!P21>='Раздел 8'!P22,0,1)","v":0}]
[609535,8,3,3,"Раздел 8 строка 06 количество воспитанников не соответствует наличию интерната Раздел 8 строка 05",null,null,{"$f":"IF(OR(AND('Раздел 8'!P25=0,'Раздел 8'!P26=0),AND('Раздел 8'!P25>0,'Раздел 8'!P26>0)),0,1)","v":0}]
[609535,11,0,0,{"$f":"CONCATENATE(\"Количество ошибок в разделе 10: \",H380)","v":"Количество ошибок в разделе 10: 0"},null,null,{"$f":"SUM(H381:H382)","v":0}]
[609535,11,1,1,"Раздел 10 строка 03 численность занимающихся не соответствует наличию логопедического пункта Раздел 10 строка 01",null,null,{"$f":"IF(OR(AND('Раздел 10'!P23=0,'Раздел 10'!P21=0),AND('Раздел 10'!P23>0,'Раздел 10'!P21>0)),0,1)","v":0}]
[609535,11,2,2,"Раздел 10 строка 04 численность занимающихся не соответствует наличию логопедического кабинета Раздел 10 строка 02",null,null,{"$f":"IF(OR(AND('Раздел 10'!P24=0,'Раздел 10'!P22=0),AND('Раздел 10'!P24>0,'Раздел 10'!P22>0)),0,1)","v":0}]
[609535,11,0,0,{"$f":"CONCATENATE(\"Количество ошибок в разделе 11: \",H383)","v":"Количество ошибок в разделе 11: 0"},null,null,{"$f":"SUM(H384)","v":0}]
[609535,11,1,1,"Раздел 11 строка 02 графа 3 <= Раздел 11 строка 01 графа 3 ",null,null,{"$f":"IF('Раздел 11'!P22<='Раздел 11'!P21,0,1)","v":0}]
[609535,12,0,0,{"$f":"CONCATENATE(\"Количество ошибок в разделе 12: \",H385)","v":"Количество ошибок в разделе 12: 0"},null,null,{"$f":"SUM(H386)","v":0}]
[609535,12,1,1,"Раздел 12 строки 02+03 численность обучающихся не соответствует наличию платных образовательных услуг  Раздел 12 строка 01",null,null,{"$f":"IF(OR(AND(('Раздел 12'!P22+'Раздел 12'!P23)=0,'Раздел 12'!P21=0),AND(('Раздел 12'!P22+'Раздел 12'!P23)>0,'Раздел 12'!P21>0)),0,1)","v":0}]
[{"$f":"P_3","v":609535},13,0,0,{"$f":"CONCATENATE(\"Количество ошибок в разделе 13: \",H387)","v":"Количество ошибок в разделе 13: 2"},null,null,{"$f":"SUM(H388:H414)","v":2}]
[609535,13,2,2,"Раздел 13 строка 16 графа 3 >= Раздел 13 строка 17 графа 3 ",null,null,{"$f":"IF('Раздел 13'!P36>='Раздел 13'!P37,0,1)","v":0}]
[609535,13,3,3,"Раздел 13 строка 20 графа 3 >= Раздел 13 строка 21 графа 3 ",null,null,{"$f":"IF('Раздел 13'!P40>='Раздел 13'!P41,0,1)","v":0}]
[609535,13,4,4,"Раздел 13 строка 36 графа 3 >= Раздел 13 строка 37 графа 3 ",null,null,{"$f":"IF('Раздел 13'!P56>='Раздел 13'!P57,0,1)","v":0}]
[609535,13,5,5,"Раздел 13 строка 36 графа 3 >= Раздел 13 строка 38 графа 3 ",null,null,{"$f":"IF('Раздел 13'!P56>='Раздел 13'!P58,0,1)","v":0}]
[609535,13,6,6,"Раздел 13 строка 36 графа 3 >= Раздел 13 строка 39 графа 3 ",null,null,{"$f":"IF('Раздел 13'!P56>='Раздел 13'!P59,0,1)","v":0}]
[609535,13,7,7,"Раздел 13 строка 39 графа 3 >= Раздел 13 строка 40 графа 3 ",null,null,{"$f":"IF('Раздел 13'!P59>='Раздел 13'!P60,0,1)","v":0}]
[609535,13,8,8,"Раздел 13 строка 36 графа 3 >= Раздел 13 строка 41 графа 3 ",null,null,{"$f":"IF('Раздел 13'!P56>='Раздел 13'!P61,0,1)","v":0}]
[609535,13,9,9,"Раздел 13 строка 41 графа 3 >= Раздел 13 строка 42 графа 3 ",null,null,{"$f":"IF('Раздел 13'!P61>='Раздел 13'!P62,0,1)","v":0}]
[609535,13,10,10,"Раздел 13 строка 36 графа 3 >= Раздел 13 строка 51 графа 3 ",null,null,{"$f":"IF('Раздел 13'!P56>='Раздел 13'!P71,0,1)","v":0}]
[609535,13,11,11,"Раздел 13 строка 51 графа 3 >= Раздел 13 строка 52 графа 3 ",null,null,{"$f":"IF('Раздел 13'!P71>='Раздел 13'!P72,0,1)","v":0}]
[609535,13,12,12,"Раздел 13 строка 02 графа 3 >= Раздел 13 строка 01 графа 3",null,null,{"$f":"IF('Раздел 13'!P22>='Раздел 13'!P21,0,1)","v":0}]
[609535,14,13,13,"Раздел 13 строка 02 графа 3 Не проставлено число зданий или их площадь Раздел 13 строка 01 графа 3",null,null,{"$f":"IF(OR(AND('Раздел 13'!P21=0,'Раздел 13'!P22=0),AND('Раздел 13'!P21>0,'Раздел 13'!P22>0)),0,1)","v":0}]
[609535,15,14,14,"Раздел 13 строка 04 графа 3 >= Раздел 13 строка 03 графа 3",null,null,{"$f":"IF('Раздел 13'!P24>='Раздел 13'!P23,0,1)","v":0}]
[609535,16,15,15,"Раздел 13 строка 04 графа 3 Не проставлено число классных комнат или их площадь Раздел 13 строка 03 графа 3",null,null,{"$f":"IF(OR(AND('Раздел 13'!P23=0,'Раздел 13'!P24=0),AND('Раздел 13'!P23>0,'Раздел 13'!P24>0)),0,1)","v":0}]
[609535,17,16,16,"Раздел 13 строка 14 графа 3 >= Раздел 13 строка 15 графа 3",null,null,{"$f":"IF('Раздел 13'!P34>='Раздел 13'!P35,0,1)","v":0}]
[609535,18,17,17,"Раздел 13 строка 23 графа 3 >= Раздел 13 строка 22 графа 3",null,null,{"$f":"IF('Раздел 13'!P43>='Раздел 13'!P42,0,1)","v":0}]
[609535,13,19,19,"Раздел 13 строка 25 графа 3 >= Раздел 13 строка 24 графа 3",null,null,{"$f":"IF('Раздел 13'!P45>='Раздел 13'!P44,0,1)","v":0}]
[609535,13,21,21,"Раздел 13 строка 06 графа 03 Количество рабочих мест не соответствует количеству мастерских Раздел 13 строка 05 графа 03",null,null,{"$f":"IF(OR(AND('Раздел 13'!P25=0,'Раздел 13'!P26=0),AND('Раздел 13'!P25>0,'Раздел 13'!P26>0)),0,1)","v":0}]
[609535,13,22,22,"Раздел 13 строка 22 графа 3  Не проставлено число учреждений или зданий, требующих капитального ремонта Раздел 13 строка 23 графа 3",null,null,{"$f":"IF(OR(AND('Раздел 13'!P42=0,'Раздел 13'!P43=0),AND('Раздел 13'!P42>0,'Раздел 13'!P43>0)),0,1)","v":1}]
[609535,13,23,23,"Раздел 13 строка 24 графа 3  Не проставлено число учреждений или зданий, находящихся в аварийном состоянии Раздел 13 строка 25 графа 3",null,null,{"$f":"IF(OR(AND('Раздел 13'!P44=0,'Раздел 13'!P45=0),AND('Раздел 13'!P44>0,'Раздел 13'!P45>0)),0,1)","v":0}]
[609535,13,24,24,"Если имеются все виды благоустройств (строка 26=’да’), тогда все строки 27, 28, 29 = ’да’",null,null,{"$f":"IF(OR(AND('Раздел 13'!P46=1,SUM('Раздел 13'!P47:'Раздел 13'!P49)=3),AND('Раздел 13'!P46=0,SUM('Раздел 13'!P47:'Раздел 13'!P49)<3)),0,1)","v":0}]
[609535,13,25,25,"Раздел 13 строка 32 графа 03 Количество пассажирских мест не соответствует количеству автотранспортных средств Раздел 13 строка 31 графа 03",null,null,{"$f":"IF(OR(AND('Раздел 13'!P52=0,'Раздел 13'!P51=0),AND('Раздел 13'!P52>0,'Раздел 13'!P51>0)),0,1)","v":0}]
[609535,13,26,26,"Раздел 13 строка 35 графа 03 Количество рабочих мест с ЭВМ не соответствует количеству кабинетов информатики Раздел 13 строка 34 графа 03",null,null,{"$f":"IF(OR(AND('Раздел 13'!P55=0,'Раздел 13'!P54=0),AND('Раздел 13'!P55>0,'Раздел 13'!P54>0)),0,1)","v":0}]
[609535,13,27,27,"Раздел 13 строки 44, 45, 46 графа 3  Не выбран тип подключения к сети Интернет / Нет подключения к сети Интернет  Раздел 13 строка 43 графа 3",null,null,{"$f":"IF(OR(AND('Раздел 13'!P63=0,SUM('Раздел 13'!P64:P66)=0),AND('Раздел 13'!P63=1,SUM('Раздел 13'!P64:P66)>0)),0,1)","v":0}]
[609535,13,28,28,"Раздел 13 строки 47, 48, 49, 50 графа 3  Выбрана скорость подключения к сети Интернет / Нет подключения к сети Интернет  Раздел 13 строка 43 графа 3",null,null,{"$f":"IF(OR(AND('Раздел 13'!P63=0,SUM('Раздел 13'!P67:P70)=0),AND('Раздел 13'!P63=1,SUM('Раздел 13'!P67:P70)>0)),0,1)","v":0}]
[609535,13,29,29,"Раздел 13 строка 51 графа 3  Отсутствуют персональные ЭВМ, подключенные к сети Интернет / Нет подключения к сети Интернет  Раздел 13 строка 43 графа 3",null,null,{"$f":"IF(OR(AND('Раздел 13'!P63=0,'Раздел 13'!P71=0),AND('Раздел 13'!P63>0,'Раздел 13'!P71>0)),0,1)","v":1}]
[609535,13,30,30,"Раздел 13 строка 66 графа 3  Отсутствует собственный сайт в сети Интернет Раздел 13 строка 54 графа 3 = 0",null,null,{"$f":"IF(AND('Раздел 13'!P74=0,'Раздел 13'!P86>0),1,0)","v":0}]
[609535,14,0,0,{"$f":"CONCATENATE(\"Количество ошибок в разделе 14: \",H415)","v":"Количество ошибок в разделе 14: 0"},null,null,{"$f":"SUM(H416:H450)","v":0}]
[609535,14,1,1,"Раздел 14 строка 01 графа 03 >= Раздел 14 строка 01 графа 04",null,null,{"$f":"IF('Раздел 14'!$P$21>='Раздел 14'!$Q$21,0,1)","v":0}]
[609535,14,2,2,"Раздел 14 строка 02 графа 03 >= Раздел 14 строка 02 графа 04",null,null,{"$f":"IF('Раздел 14'!$P$22>='Раздел 14'!$Q$22,0,1)","v":0}]
[609535,14,3,3,"Раздел 14 строка 03 графа 03 >= Раздел 14 строка 03 графа 04",null,null,{"$f":"IF('Раздел 14'!$P$23>='Раздел 14'!$Q$23,0,1)","v":0}]
[609535,14,4,4,"Раздел 14 строка 04 графа 03 >= Раздел 14 строка 04 графа 04",null,null,{"$f":"IF('Раздел 14'!$P$24>='Раздел 14'!$Q$24,0,1)","v":0}]
[609535,14,5,5,"Раздел 14 строка 05 графа 03 >= Раздел 14 строка 05 графа 04",null,null,{"$f":"IF('Раздел 14'!$P$25>='Раздел 14'!$Q$25,0,1)","v":0}]
[609535,14,6,6,"Раздел 14 строка 06 графа 03 >= Раздел 14 строка 06 графа 04",null,null,{"$f":"IF('Раздел 14'!$P$26>='Раздел 14'!$Q$26,0,1)","v":0}]
[609535,14,7,7,"Раздел 14 строка 07 графа 03 >= Раздел 14 строка 07 графа 04",null,null,{"$f":"IF('Раздел 14'!$P$27>='Раздел 14'!$Q$27,0,1)","v":0}]
[609535,14,8,8,"Раздел 14 строка 01 графа 05 >= Раздел 14 строка 01 графа 06",null,null,{"$f":"IF('Раздел 14'!$R$21>='Раздел 14'!$S$21,0,1)","v":0}]
[609535,14,9,9,"Раздел 14 строка 02 графа 05 >= Раздел 14 строка 02 графа 06",null,null,{"$f":"IF('Раздел 14'!$R$22>='Раздел 14'!$S$22,0,1)","v":0}]
[609535,14,10,10,"Раздел 14 строка 03 графа 05 >= Раздел 14 строка 03 графа 06",null,null,{"$f":"IF('Раздел 14'!$R$23>='Раздел 14'!$S$23,0,1)","v":0}]
[609535,14,11,11,"Раздел 14 строка 04 графа 05 >= Раздел 14 строка 04 графа 06",null,null,{"$f":"IF('Раздел 14'!$R$24>='Раздел 14'!$S$24,0,1)","v":0}]
[609535,14,12,12,"Раздел 14 строка 05 графа 05 >= Раздел 14 строка 05 графа 06",null,null,{"$f":"IF('Раздел 14'!$R$25>='Раздел 14'!$S$25,0,1)","v":0}]
[609535,14,13,13,"Раздел 14 строка 06 графа 05 >= Раздел 14 строка 06 графа 06",null,null,{"$f":"IF('Раздел 14'!$R$26>='Раздел 14'!$S$26,0,1)","v":0}]
[609535,14,14,14,"Раздел 14 строка 07 графа 05 >= Раздел 14 строка 07 графа 06",null,null,{"$f":"IF('Раздел 14'!$R$27>='Раздел 14'!$S$27,0,1)","v":0}]
[609535,14,15,15,"Раздел 14 строка 08 графа 05 >= Раздел 14 строка 08 графа 06",null,null,{"$f":"IF('Раздел 14'!$R$28>='Раздел 14'!$S$28,0,1)","v":0}]
[609535,14,16,16,"Раздел 14 строка 07 графа 03 = Раздел 14 сумма строк 01 + 02 + 03 + 04 + 05 + 06 графа 03",null,null,{"$f":"IF('Раздел 14'!$P$27=SUM('Раздел 14'!$P$21:$P$26),0,1)","v":0}]
[609535,14,17,17,"Раздел 14 строка 07 графа 04 = Раздел 14 сумма строк 01 + 02 + 03 + 04 + 05 + 06 графа 04",null,null,{"$f":"IF('Раздел 14'!$Q$27=SUM('Раздел 14'!$Q$21:$Q$26),0,1)","v":0}]
[609535,14,18,18,"Раздел 14 строка 07 графа 05 = Раздел 14 сумма строк 01 + 02 + 03 + 04 + 05 + 06 графа 05",null,null,{"$f":"IF('Раздел 14'!$R$27=SUM('Раздел 14'!$R$21:$R$26),0,1)","v":0}]
[609535,14,19,19,"Раздел 14 строка 07 графа 06 = Раздел 14 сумма строк 01 + 02 + 03 + 04 + 05 + 06 графа 06",null,null,{"$f":"IF('Раздел 14'!$S$27=SUM('Раздел 14'!$S$21:$S$26),0,1)","v":0}]
[609535,14,20,20,"Раздел 14 строка 07 графа 05 >= Раздел 14 строка 08 графа 05",null,null,{"$f":"IF('Раздел 14'!$R$27>='Раздел 14'!$R$28,0,1)","v":0}]
[609535,14,21,21,"Раздел 14 строка 07 графа 06 >= Раздел 14 строка 08 графа 06",null,null,{"$f":"IF('Раздел 14'!$S$27>='Раздел 14'!$S$28,0,1)","v":0}]
[609535,14,22,22,"Раздел 14 графа 5 количество обучающихся не соответствует числу кружков Раздел 14 графа 3 по строке 01",null,null,{"$f":"IF(OR(AND('Раздел 14'!R21=0,'Раздел 14'!P21=0),AND('Раздел 14'!R21>0,'Раздел 14'!P21>0)),0,1)","v":0}]
[609535,14,23,23,"Раздел 14 графа 5 количество обучающихся не соответствует числу кружков Раздел 14 графа 3 по строке 02",null,null,{"$f":"IF(OR(AND('Раздел 14'!R22=0,'Раздел 14'!P22=0),AND('Раздел 14'!R22>0,'Раздел 14'!P22>0)),0,1)","v":0}]
[609535,14,24,24,"Раздел 14 графа 5 количество обучающихся не соответствует числу кружков Раздел 14 графа 3 по строке 03",null,null,{"$f":"IF(OR(AND('Раздел 14'!R23=0,'Раздел 14'!P23=0),AND('Раздел 14'!R23>0,'Раздел 14'!P23>0)),0,1)","v":0}]
[609535,14,25,25,"Раздел 14 графа 5 количество обучающихся не соответствует числу кружков Раздел 14 графа 3 по строке 04",null,null,{"$f":"IF(OR(AND('Раздел 14'!R24=0,'Раздел 14'!P24=0),AND('Раздел 14'!R24>0,'Раздел 14'!P24>0)),0,1)","v":0}]
[609535,14,26,26,"Раздел 14 графа 5 количество обучающихся не соответствует числу кружков Раздел 14 графа 3 по строке 05",null,null,{"$f":"IF(OR(AND('Раздел 14'!R25=0,'Раздел 14'!P25=0),AND('Раздел 14'!R25>0,'Раздел 14'!P25>0)),0,1)","v":0}]
[609535,14,27,27,"Раздел 14 графа 5 количество обучающихся не соответствует числу кружков Раздел 14 графа 3 по строке 06",null,null,{"$f":"IF(OR(AND('Раздел 14'!R26=0,'Раздел 14'!P26=0),AND('Раздел 14'!R26>0,'Раздел 14'!P26>0)),0,1)","v":0}]
[609535,14,28,28,"Раздел 14 графа 5 количество обучающихся не соответствует числу кружков Раздел 14 графа 3 по строке 07",null,null,{"$f":"IF(OR(AND('Раздел 14'!R27=0,'Раздел 14'!P27=0),AND('Раздел 14'!R27>0,'Раздел 14'!P27>0)),0,1)","v":0}]
[609535,14,29,29,"Раздел 14 графа 6 количество обучающихся не соответствует числу кружков Раздел 14 графа 4 по строке 01",null,null,{"$f":"IF(OR(AND('Раздел 14'!S21=0,'Раздел 14'!Q21=0),AND('Раздел 14'!S21>0,'Раздел 14'!Q21>0)),0,1)","v":0}]
[609535,14,30,30,"Раздел 14 графа 6 количество обучающихся не соответствует числу кружков Раздел 14 графа 4 по строке 02",null,null,{"$f":"IF(OR(AND('Раздел 14'!S22=0,'Раздел 14'!Q22=0),AND('Раздел 14'!S22>0,'Раздел 14'!Q22>0)),0,1)","v":0}]
[609535,14,31,31,"Раздел 14 графа 6 количество обучающихся не соответствует числу кружков Раздел 14 графа 4 по строке 03",null,null,{"$f":"IF(OR(AND('Раздел 14'!S23=0,'Раздел 14'!Q23=0),AND('Раздел 14'!S23>0,'Раздел 14'!Q23>0)),0,1)","v":0}]
[609535,14,32,32,"Раздел 14 графа 6 количество обучающихся не соответствует числу кружков Раздел 14 графа 4 по строке 04",null,null,{"$f":"IF(OR(AND('Раздел 14'!S24=0,'Раздел 14'!Q24=0),AND('Раздел 14'!S24>0,'Раздел 14'!Q24>0)),0,1)","v":0}]
[609535,14,33,33,"Раздел 14 графа 6 количество обучающихся не соответствует числу кружков Раздел 14 графа 4 по строке 05",null,null,{"$f":"IF(OR(AND('Раздел 14'!S25=0,'Раздел 14'!Q25=0),AND('Раздел 14'!S25>0,'Раздел 14'!Q25>0)),0,1)","v":0}]
[609535,14,34,34,"Раздел 14 графа 6 количество обучающихся не соответствует числу кружков Раздел 14 графа 4 по строке 06",null,null,{"$f":"IF(OR(AND('Раздел 14'!S26=0,'Раздел 14'!Q26=0),AND('Раздел 14'!S26>0,'Раздел 14'!Q26>0)),0,1)","v":0}]
[609535,14,35,35,"Раздел 14 графа 6 количество обучающихся не соответствует числу кружков Раздел 14 графа 4 по строке 07",null,null,{"$f":"IF(OR(AND('Раздел 14'!S27=0,'Раздел 14'!Q27=0),AND('Раздел 14'!S27>0,'Раздел 14'!Q27>0)),0,1)","v":0}]
[{"$f":"P_3","v":609535},15,0,0,{"$f":"CONCATENATE(\"Количество ошибок в разделе 15: \",H451)","v":"Количество ошибок в разделе 15: 0"},null,null,{"$f":"SUM(H452:H457)","v":0}]
[609535,15,1,1,"Раздел 15 строка 01 графа 03 = Раздел 15 сумма строк  02 + 03 + 04 + 05 + 06 + 08 + 09 + 10 + 11 + 12 + 13 + 14 + 15 + 16 графа 03",null,null,{"$f":"IF('Раздел 15'!$P$21=SUM('Раздел 15'!$P$22:$P$26,'Раздел 15'!$P$28:$P$36),0,1)","v":0}]
[609535,15,1,2,"Раздел 15 строка 01 графа 04 = Раздел 15 сумма строк  02 + 03 + 04 + 05 + 06 + 08 + 09 + 10 + 11 + 12 + 13 + 14 + 15 + 16 графа 04",null,null,{"$f":"IF('Раздел 15'!$Q$21=SUM('Раздел 15'!$Q$22:$Q$26,'Раздел 15'!$Q$28:$Q$36),0,1)","v":0}]
[609535,15,1,3,"Раздел 15 строка 01 графа 05 = Раздел 15 сумма строк  02 + 03 + 04 + 05 + 06 + 08 + 09 + 10 + 11 + 12 + 13 + 14 + 15 + 16 графа 05",null,null,{"$f":"IF('Раздел 15'!$R$21=SUM('Раздел 15'!$R$22:$R$26,'Раздел 15'!$R$28:$R$36),0,1)","v":0}]
[609535,15,2,4,"Раздел 15 строка 06 графа 03 >= Раздел 15 строка 07 графа 03",null,null,{"$f":"IF('Раздел 15'!$P$26>='Раздел 15'!$P$27,0,1)","v":0}]
[609535,15,2,5,"Раздел 15 строка 06 графа 04 >= Раздел 15 строка 07 графа 04",null,null,{"$f":"IF('Раздел 15'!$Q$26>='Раздел 15'!$Q$27,0,1)","v":0}]
[609535,15,2,6,"Раздел 15 строка 06 графа 05 >= Раздел 15 строка 07 графа 05",null,null,{"$f":"IF('Раздел 15'!$R$26>='Раздел 15'!$R$27,0,1)","v":0}]
[609535,16,0,0,{"$f":"CONCATENATE(\"Количество ошибок в разделе 16: \",H458)","v":"Количество ошибок в разделе 16: 0"},null,null,{"$f":"SUM(H459:H530)","v":0}]
[609535,16,1,1,"Раздел 16 строка 04 графа 03 = Раздел 16 сумма строк 01 + 02 + 03 графа 03",null,null,{"$f":"IF('Раздел 16'!P24=SUM('Раздел 16'!P21:P23),0,1)","v":0}]
[609535,16,2,2,"Раздел 16 строка 04 графа 04 = Раздел 16 сумма строк 01 + 02 + 03 графа 04",null,null,{"$f":"IF('Раздел 16'!Q24=SUM('Раздел 16'!Q21:Q23),0,1)","v":0}]
[609535,16,3,3,"Раздел 16 строка 04 графа 05 = Раздел 16 сумма строк 01 + 02 + 03 графа 05",null,null,{"$f":"IF('Раздел 16'!R24=SUM('Раздел 16'!R21:R23),0,1)","v":0}]
[609535,16,4,4,"Раздел 16 строка 04 графа 06 = Раздел 16 сумма строк 01 + 02 + 03 графа 06",null,null,{"$f":"IF('Раздел 16'!S24=SUM('Раздел 16'!S21:S23),0,1)","v":0}]
[609535,16,5,5,"Раздел 16 строка 04 графа 07 = Раздел 16 сумма строк 01 + 02 + 03 графа 07",null,null,{"$f":"IF('Раздел 16'!T24=SUM('Раздел 16'!T21:T23),0,1)","v":0}]
[609535,16,6,6,"Раздел 16 строка 04 графа 08 = Раздел 16 сумма строк 01 + 02 + 03 графа 08",null,null,{"$f":"IF('Раздел 16'!U24=SUM('Раздел 16'!U21:U23),0,1)","v":0}]
[609535,16,7,7,"Раздел 16 строка 04 графа 09 = Раздел 16 сумма строк 01 + 02 + 03 графа 09",null,null,{"$f":"IF('Раздел 16'!V24=SUM('Раздел 16'!V21:V23),0,1)","v":0}]
[609535,16,8,8,"Раздел 16 строка 04 графа 10 = Раздел 16 сумма строк 01 + 02 + 03 графа 10",null,null,{"$f":"IF('Раздел 16'!W24=SUM('Раздел 16'!W21:W23),0,1)","v":0}]
[609535,16,9,9,"Раздел 16 строка 04 графа 11 = Раздел 16 сумма строк 01 + 02 + 03 графа 11",null,null,{"$f":"IF('Раздел 16'!X24=SUM('Раздел 16'!X21:X23),0,1)","v":0}]
[609535,16,10,10,"Раздел 16 строка 04 графа 12 = Раздел 16 сумма строк 01 + 02 + 03 графа 12",null,null,{"$f":"IF('Раздел 16'!Y24=SUM('Раздел 16'!Y21:Y23),0,1)","v":0}]
[609535,16,11,11,"Раздел 16 строка 04 графа 13 = Раздел 16 сумма строк 01 + 02 + 03 графа 13",null,null,{"$f":"IF('Раздел 16'!Z24=SUM('Раздел 16'!Z21:Z23),0,1)","v":0}]
[609535,16,12,12,"Раздел 16 строка 04 графа 14 = Раздел 16 сумма строк 01 + 02 + 03 графа 14",null,null,{"$f":"IF('Раздел 16'!AA24=SUM('Раздел 16'!AA21:AA23),0,1)","v":0}]
[609535,16,13,13,"Раздел 16 строка 04 графа 15 = Раздел 16 сумма строк 01 + 02 + 03 графа 15",null,null,{"$f":"IF('Раздел 16'!AB24=SUM('Раздел 16'!AB21:AB23),0,1)","v":0}]
[609535,16,14,14,"Раздел 16 строка 04 графа 16 = Раздел 16 сумма строк 01 + 02 + 03 графа 16",null,null,{"$f":"IF('Раздел 16'!AC24=SUM('Раздел 16'!AC21:AC23),0,1)","v":0}]
[609535,16,15,15,"Раздел 16 строка 04 графа 17 = Раздел 16 сумма строк 01 + 02 + 03 графа 17",null,null,{"$f":"IF('Раздел 16'!AD24=SUM('Раздел 16'!AD21:AD23),0,1)","v":0}]
[609535,16,16,16,"Раздел 16 строка 04 графа 18 = Раздел 16 сумма строк 01 + 02 + 03 графа 18",null,null,{"$f":"IF('Раздел 16'!AE24=SUM('Раздел 16'!AE21:AE23),0,1)","v":0}]
[609535,16,17,17,"Раздел 16 строка 04 графа 03 >= Раздел 16 строка 05 графа 03",null,null,{"$f":"IF('Раздел 16'!P24>='Раздел 16'!P25,0,1)","v":0}]
[609535,16,18,18,"Раздел 16 строка 04 графа 04 >= Раздел 16 строка 05 графа 04",null,null,{"$f":"IF('Раздел 16'!Q24>='Раздел 16'!Q25,0,1)","v":0}]
[609535,16,19,19,"Раздел 16 строка 04 графа 05 >= Раздел 16 строка 05 графа 05",null,null,{"$f":"IF('Раздел 16'!R24>='Раздел 16'!R25,0,1)","v":0}]
[609535,16,20,20,"Раздел 16 строка 04 графа 06 >= Раздел 16 строка 05 графа 06",null,null,{"$f":"IF('Раздел 16'!S24>='Раздел 16'!S25,0,1)","v":0}]
[609535,16,21,21,"Раздел 16 строка 04 графа 07 >= Раздел 16 строка 05 графа 07",null,null,{"$f":"IF('Раздел 16'!T24>='Раздел 16'!T25,0,1)","v":0}]
[609535,16,22,22,"Раздел 16 строка 04 графа 08 >= Раздел 16 строка 05 графа 08",null,null,{"$f":"IF('Раздел 16'!U24>='Раздел 16'!U25,0,1)","v":0}]
[609535,16,23,23,"Раздел 16 строка 04 графа 09 >= Раздел 16 строка 05 графа 09",null,null,{"$f":"IF('Раздел 16'!V24>='Раздел 16'!V25,0,1)","v":0}]
[609535,16,24,24,"Раздел 16 строка 04 графа 10 >= Раздел 16 строка 05 графа 10",null,null,{"$f":"IF('Раздел 16'!W24>='Раздел 16'!W25,0,1)","v":0}]
[609535,16,25,25,"Раздел 16 строка 04 графа 11 >= Раздел 16 строка 05 графа 11",null,null,{"$f":"IF('Раздел 16'!X24>='Раздел 16'!X25,0,1)","v":0}]
[609535,16,26,26,"Раздел 16 строка 04 графа 12 >= Раздел 16 строка 05 графа 12",null,null,{"$f":"IF('Раздел 16'!Y24>='Раздел 16'!Y25,0,1)","v":0}]
[609535,16,27,27,"Раздел 16 строка 04 графа 13 >= Раздел 16 строка 05 графа 13",null,null,{"$f":"IF('Раздел 16'!Z24>='Раздел 16'!Z25,0,1)","v":0}]
[609535,16,28,28,"Раздел 16 строка 04 графа 14 >= Раздел 16 строка 05 графа 14",null,null,{"$f":"IF('Раздел 16'!AA24>='Раздел 16'!AA25,0,1)","v":0}]
[609535,16,29,29,"Раздел 16 строка 04 графа 15 >= Раздел 16 строка 05 графа 15",null,null,{"$f":"IF('Раздел 16'!AB24>='Раздел 16'!AB25,0,1)","v":0}]
[609535,16,30,30,"Раздел 16 строка 04 графа 16 >= Раздел 16 строка 05 графа 16",null,null,{"$f":"IF('Раздел 16'!AC24>='Раздел 16'!AC25,0,1)","v":0}]
[609535,16,31,31,"Раздел 16 строка 04 графа 17 >= Раздел 16 строка 05 графа 17",null,null,{"$f":"IF('Раздел 16'!AD24>='Раздел 16'!AD25,0,1)","v":0}]
[609535,16,32,32,"Раздел 16 строка 04 графа 18 >= Раздел 16 строка 05 графа 18",null,null,{"$f":"IF('Раздел 16'!AE24>='Раздел 16'!AE25,0,1)","v":0}]
[609535,16,33,33,"Раздел 16 графа 4 количество обучающихся не соответствует числу классов Раздел 16 графа 3 по строке 01",null,null,{"$f":"IF(OR(AND('Раздел 16'!Q21=0,'Раздел 16'!P21=0),AND('Раздел 16'!Q21>0,'Раздел 16'!P21>0)),0,1)","v":0}]
[609535,16,34,34,"Раздел 16 графа 4 количество обучающихся не соответствует числу классов Раздел 16 графа 3 по строке 02",null,null,{"$f":"IF(OR(AND('Раздел 16'!Q22=0,'Раздел 16'!P22=0),AND('Раздел 16'!Q22>0,'Раздел 16'!P22>0)),0,1)","v":0}]
[609535,16,35,35,"Раздел 16 графа 4 количество обучающихся не соответствует числу классов Раздел 16 графа 3 по строке 03",null,null,{"$f":"IF(OR(AND('Раздел 16'!Q23=0,'Раздел 16'!P23=0),AND('Раздел 16'!Q23>0,'Раздел 16'!P23>0)),0,1)","v":0}]
[609535,16,36,36,"Раздел 16 графа 4 количество обучающихся не соответствует числу классов Раздел 16 графа 3 по строке 04",null,null,{"$f":"IF(OR(AND('Раздел 16'!Q24=0,'Раздел 16'!P24=0),AND('Раздел 16'!Q24>0,'Раздел 16'!P24>0)),0,1)","v":0}]
[609535,16,37,37,"Раздел 16 графа 4 количество обучающихся не соответствует числу классов Раздел 16 графа 3 по строке 05",null,null,{"$f":"IF(OR(AND('Раздел 16'!Q25=0,'Раздел 16'!P25=0),AND('Раздел 16'!Q25>0,'Раздел 16'!P25>0)),0,1)","v":0}]
[609535,16,38,38,"Раздел 16 графа 6 количество обучающихся не соответствует числу классов Раздел 16 графа 5 по строке 01",null,null,{"$f":"IF(OR(AND('Раздел 16'!S21=0,'Раздел 16'!R21=0),AND('Раздел 16'!S21>0,'Раздел 16'!R21>0)),0,1)","v":0}]
[609535,16,39,39,"Раздел 16 графа 6 количество обучающихся не соответствует числу классов Раздел 16 графа 5 по строке 02",null,null,{"$f":"IF(OR(AND('Раздел 16'!S22=0,'Раздел 16'!R22=0),AND('Раздел 16'!S22>0,'Раздел 16'!R22>0)),0,1)","v":0}]
[609535,16,40,40,"Раздел 16 графа 6 количество обучающихся не соответствует числу классов Раздел 16 графа 5 по строке 03",null,null,{"$f":"IF(OR(AND('Раздел 16'!S23=0,'Раздел 16'!R23=0),AND('Раздел 16'!S23>0,'Раздел 16'!R23>0)),0,1)","v":0}]
[609535,16,41,41,"Раздел 16 графа 6 количество обучающихся не соответствует числу классов Раздел 16 графа 5 по строке 04",null,null,{"$f":"IF(OR(AND('Раздел 16'!S24=0,'Раздел 16'!R24=0),AND('Раздел 16'!S24>0,'Раздел 16'!R24>0)),0,1)","v":0}]
[609535,16,42,42,"Раздел 16 графа 6 количество обучающихся не соответствует числу классов Раздел 16 графа 5 по строке 05",null,null,{"$f":"IF(OR(AND('Раздел 16'!S25=0,'Раздел 16'!R25=0),AND('Раздел 16'!S25>0,'Раздел 16'!R25>0)),0,1)","v":0}]
[609535,16,43,43,"Раздел 16 графа 8 количество обучающихся не соответствует числу классов Раздел 16 графа 7 по строке 01",null,null,{"$f":"IF(OR(AND('Раздел 16'!U21=0,'Раздел 16'!T21=0),AND('Раздел 16'!U21>0,'Раздел 16'!T21>0)),0,1)","v":0}]
[609535,16,44,44,"Раздел 16 графа 8 количество обучающихся не соответствует числу классов Раздел 16 графа 7 по строке 02",null,null,{"$f":"IF(OR(AND('Раздел 16'!U22=0,'Раздел 16'!T22=0),AND('Раздел 16'!U22>0,'Раздел 16'!T22>0)),0,1)","v":0}]
[609535,16,45,45,"Раздел 16 графа 8 количество обучающихся не соответствует числу классов Раздел 16 графа 7 по строке 03",null,null,{"$f":"IF(OR(AND('Раздел 16'!U23=0,'Раздел 16'!T23=0),AND('Раздел 16'!U23>0,'Раздел 16'!T23>0)),0,1)","v":0}]
[609535,16,46,46,"Раздел 16 графа 8 количество обучающихся не соответствует числу классов Раздел 16 графа 7 по строке 04",null,null,{"$f":"IF(OR(AND('Раздел 16'!U24=0,'Раздел 16'!T24=0),AND('Раздел 16'!U24>0,'Раздел 16'!T24>0)),0,1)","v":0}]
[609535,16,47,47,"Раздел 16 графа 8 количество обучающихся не соответствует числу классов Раздел 16 графа 7 по строке 05",null,null,{"$f":"IF(OR(AND('Раздел 16'!U25=0,'Раздел 16'!T25=0),AND('Раздел 16'!U25>0,'Раздел 16'!T25>0)),0,1)","v":0}]
[609535,16,48,48,"Раздел 16 графа 10 количество обучающихся не соответствует числу классов Раздел 16 графа 9 по строке 01",null,null,{"$f":"IF(OR(AND('Раздел 16'!W21=0,'Раздел 16'!V21=0),AND('Раздел 16'!W21>0,'Раздел 16'!V21>0)),0,1)","v":0}]
[609535,16,49,49,"Раздел 16 графа 10 количество обучающихся не соответствует числу классов Раздел 16 графа 9 по строке 02",null,null,{"$f":"IF(OR(AND('Раздел 16'!W22=0,'Раздел 16'!V22=0),AND('Раздел 16'!W22>0,'Раздел 16'!V22>0)),0,1)","v":0}]
[609535,16,50,50,"Раздел 16 графа 10 количество обучающихся не соответствует числу классов Раздел 16 графа 9 по строке 03",null,null,{"$f":"IF(OR(AND('Раздел 16'!W23=0,'Раздел 16'!V23=0),AND('Раздел 16'!W23>0,'Раздел 16'!V23>0)),0,1)","v":0}]
[609535,16,51,51,"Раздел 16 графа 10 количество обучающихся не соответствует числу классов Раздел 16 графа 9 по строке 04",null,null,{"$f":"IF(OR(AND('Раздел 16'!W24=0,'Раздел 16'!V24=0),AND('Раздел 16'!W24>0,'Раздел 16'!V24>0)),0,1)","v":0}]
[609535,16,52,52,"Раздел 16 графа 10 количество обучающихся не соответствует числу классов Раздел 16 графа 9 по строке 05",null,null,{"$f":"IF(OR(AND('Раздел 16'!W25=0,'Раздел 16'!V25=0),AND('Раздел 16'!W25>0,'Раздел 16'!V25>0)),0,1)","v":0}]
[609535,16,53,53,"Раздел 16 графа 12 количество обучающихся не соответствует числу классов Раздел 16 графа 11 по строке 01",null,null,{"$f":"IF(OR(AND('Раздел 16'!Y21=0,'Раздел 16'!X21=0),AND('Раздел 16'!Y21>0,'Раздел 16'!X21>0)),0,1)","v":0}]
[609535,16,54,54,"Раздел 16 графа 12 количество обучающихся не соответствует числу классов Раздел 16 графа 11 по строке 02",null,null,{"$f":"IF(OR(AND('Раздел 16'!Y22=0,'Раздел 16'!X22=0),AND('Раздел 16'!Y22>0,'Раздел 16'!X22>0)),0,1)","v":0}]
[609535,16,55,55,"Раздел 16 графа 12 количество обучающихся не соответствует числу классов Раздел 16 графа 11 по строке 03",null,null,{"$f":"IF(OR(AND('Раздел 16'!Y23=0,'Раздел 16'!X23=0),AND('Раздел 16'!Y23>0,'Раздел 16'!X23>0)),0,1)","v":0}]
[609535,16,56,56,"Раздел 16 графа 12 количество обучающихся не соответствует числу классов Раздел 16 графа 11 по строке 04",null,null,{"$f":"IF(OR(AND('Раздел 16'!Y24=0,'Раздел 16'!X24=0),AND('Раздел 16'!Y24>0,'Раздел 16'!X24>0)),0,1)","v":0}]
[{"$f":"P_3","v":609535},16,57,57,"Раздел 16 графа 12 количество обучающихся не соответствует числу классов Раздел 16 графа 11 по строке 05",null,null,{"$f":"IF(OR(AND('Раздел 16'!Y25=0,'Раздел 16'!X25=0),AND('Раздел 16'!Y25>0,'Раздел 16'!X25>0)),0,1)","v":0}]
[609535,16,58,58,"Раздел 16 графа 14 количество обучающихся не соответствует числу классов Раздел 16 графа 13 по строке 01",null,null,{"$f":"IF(OR(AND('Раздел 16'!AA21=0,'Раздел 16'!Z21=0),AND('Раздел 16'!AA21>0,'Раздел 16'!Z21>0)),0,1)","v":0}]
[609535,16,59,59,"Раздел 16 графа 14 количество обучающихся не соответствует числу классов Раздел 16 графа 13 по строке 02",null,null,{"$f":"IF(OR(AND('Раздел 16'!AA22=0,'Раздел 16'!Z22=0),AND('Раздел 16'!AA22>0,'Раздел 16'!Z22>0)),0,1)","v":0}]
[609535,16,60,60,"Раздел 16 графа 14 количество обучающихся не соответствует числу классов Раздел 16 графа 13 по строке 03",null,null,{"$f":"IF(OR(AND('Раздел 16'!AA23=0,'Раздел 16'!Z23=0),AND('Раздел 16'!AA23>0,'Раздел 16'!Z23>0)),0,1)","v":0}]
[609535,16,61,61,"Раздел 16 графа 14 количество обучающихся не соответствует числу классов Раздел 16 графа 13 по строке 04",null,null,{"$f":"IF(OR(AND('Раздел 16'!AA24=0,'Раздел 16'!Z24=0),AND('Раздел 16'!AA24>0,'Раздел 16'!Z24>0)),0,1)","v":0}]
[609535,16,62,62,"Раздел 16 графа 14 количество обучающихся не соответствует числу классов Раздел 16 графа 13 по строке 05",null,null,{"$f":"IF(OR(AND('Раздел 16'!AA25=0,'Раздел 16'!Z25=0),AND('Раздел 16'!AA25>0,'Раздел 16'!Z25>0)),0,1)","v":0}]
[609535,16,63,63,"Раздел 16 графа 16 количество обучающихся не соответствует числу классов Раздел 16 графа 15 по строке 01",null,null,{"$f":"IF(OR(AND('Раздел 16'!AC21=0,'Раздел 16'!AB21=0),AND('Раздел 16'!AC21>0,'Раздел 16'!AB21>0)),0,1)","v":0}]
[609535,16,64,64,"Раздел 16 графа 16 количество обучающихся не соответствует числу классов Раздел 16 графа 15 по строке 02",null,null,{"$f":"IF(OR(AND('Раздел 16'!AC22=0,'Раздел 16'!AB22=0),AND('Раздел 16'!AC22>0,'Раздел 16'!AB22>0)),0,1)","v":0}]
[609535,16,65,65,"Раздел 16 графа 16 количество обучающихся не соответствует числу классов Раздел 16 графа 15 по строке 03",null,null,{"$f":"IF(OR(AND('Раздел 16'!AC23=0,'Раздел 16'!AB23=0),AND('Раздел 16'!AC23>0,'Раздел 16'!AB23>0)),0,1)","v":0}]
[609535,16,66,66,"Раздел 16 графа 16 количество обучающихся не соответствует числу классов Раздел 16 графа 15 по строке 04",null,null,{"$f":"IF(OR(AND('Раздел 16'!AC24=0,'Раздел 16'!AB24=0),AND('Раздел 16'!AC24>0,'Раздел 16'!AB24>0)),0,1)","v":0}]
[609535,16,67,67,"Раздел 16 графа 16 количество обучающихся не соответствует числу классов Раздел 16 графа 15 по строке 05",null,null,{"$f":"IF(OR(AND('Раздел 16'!AC25=0,'Раздел 16'!AB25=0),AND('Раздел 16'!AC25>0,'Раздел 16'!AB25>0)),0,1)","v":0}]
[609535,16,68,68,"Раздел 16 графа 18 количество обучающихся не соответствует числу классов Раздел 16 графа 17 по строке 01",null,null,{"$f":"IF(OR(AND('Раздел 16'!AE21=0,'Раздел 16'!AD21=0),AND('Раздел 16'!AE21>0,'Раздел 16'!AD21>0)),0,1)","v":0}]
[609535,16,69,69,"Раздел 16 графа 18 количество обучающихся не соответствует числу классов Раздел 16 графа 17 по строке 02",null,null,{"$f":"IF(OR(AND('Раздел 16'!AE22=0,'Раздел 16'!AD22=0),AND('Раздел 16'!AE22>0,'Раздел 16'!AD22>0)),0,1)","v":0}]
[609535,16,70,70,"Раздел 16 графа 18 количество обучающихся не соответствует числу классов Раздел 16 графа 17 по строке 03",null,null,{"$f":"IF(OR(AND('Раздел 16'!AE23=0,'Раздел 16'!AD23=0),AND('Раздел 16'!AE23>0,'Раздел 16'!AD23>0)),0,1)","v":0}]
[609535,16,71,71,"Раздел 16 графа 18 количество обучающихся не соответствует числу классов Раздел 16 графа 17 по строке 04",null,null,{"$f":"IF(OR(AND('Раздел 16'!AE24=0,'Раздел 16'!AD24=0),AND('Раздел 16'!AE24>0,'Раздел 16'!AD24>0)),0,1)","v":0}]
[609535,16,72,72,"Раздел 16 графа 18 количество обучающихся не соответствует числу классов Раздел 16 графа 17 по строке 05",null,null,{"$f":"IF(OR(AND('Раздел 16'!AE25=0,'Раздел 16'!AD25=0),AND('Раздел 16'!AE25>0,'Раздел 16'!AD25>0)),0,1)","v":0}]
[609535,17,0,0,{"$f":"CONCATENATE(\"Количество ошибок в разделе 17: \",H531)","v":"Количество ошибок в разделе 17: 0"},null,null,{"$f":"SUM(H532:H599)","v":0}]
[609535,17,1,1,"Раздел 17 строка 01 графа 03 >= Раздел 17 сумма строк  02 + 03 + 04 + 05 + 06 графа 03",null,null,{"$f":"IF('Раздел 17'!$P$21>=SUM('Раздел 17'!$P$22:$P$26),0,1)","v":0}]
[609535,17,2,2,"Раздел 17 строка 01 графа 04 >= Раздел 17 сумма строк  02 + 03 + 04 + 05 + 06 графа 04",null,null,{"$f":"IF('Раздел 17'!$Q$21>=SUM('Раздел 17'!$Q$22:$Q$26),0,1)","v":0}]
[609535,17,3,3,"Раздел 17 строка 01 графа 05 >= Раздел 17 сумма строк  02 + 03 + 04 + 05 + 06 графа 05",null,null,{"$f":"IF('Раздел 17'!$R$21>=SUM('Раздел 17'!$R$22:$R$26),0,1)","v":0}]
[609535,17,4,4,"Раздел 17 строка 01 графа 06 >= Раздел 17 сумма строк  02 + 03 + 04 + 05 + 06 графа 06",null,null,{"$f":"IF('Раздел 17'!$S$21>=SUM('Раздел 17'!$S$22:$S$26),0,1)","v":0}]
[609535,17,5,5,"Раздел 17 строка 01 графа 07 >= Раздел 17 сумма строк  02 + 03 + 04 + 05 + 06 графа 07",null,null,{"$f":"IF('Раздел 17'!$T$21>=SUM('Раздел 17'!$T$22:$T$26),0,1)","v":0}]
[609535,17,6,6,"Раздел 17 строка 01 графа 08 >= Раздел 17 сумма строк  02 + 03 + 04 + 05 + 06 графа 08",null,null,{"$f":"IF('Раздел 17'!$U$21>=SUM('Раздел 17'!$U$22:$U$26),0,1)","v":0}]
[609535,17,7,7,"Раздел 17 строка 01 графа 09 >= Раздел 17 сумма строк  02 + 03 + 04 + 05 + 06 графа 09",null,null,{"$f":"IF('Раздел 17'!$V$21>=SUM('Раздел 17'!$V$22:$V$26),0,1)","v":0}]
[609535,17,8,8,"Раздел 17 строка 01 графа 10 >= Раздел 17 сумма строк  02 + 03 + 04 + 05 + 06 графа 10",null,null,{"$f":"IF('Раздел 17'!$W$21>=SUM('Раздел 17'!$W$22:$W$26),0,1)","v":0}]
[609535,17,9,9,"Раздел 17 строка 01 графа 06 = Раздел 17 строка 01 сумма по графам 03 + 04 + 05",null,null,{"$f":"IF('Раздел 17'!$S$21=SUM('Раздел 17'!$P$21:$R$21),0,1)","v":0}]
[609535,17,10,10,"Раздел 17 строка 02 графа 06 = Раздел 17 строка 02 сумма по графам 03 + 04 + 05",null,null,{"$f":"IF('Раздел 17'!$S$22=SUM('Раздел 17'!$P$22:$R$22),0,1)","v":0}]
[609535,17,11,11,"Раздел 17 строка 03 графа 06 = Раздел 17 строка 03 сумма по графам 03 + 04 + 05",null,null,{"$f":"IF('Раздел 17'!$S$23=SUM('Раздел 17'!$P$23:$R$23),0,1)","v":0}]
[609535,17,12,12,"Раздел 17 строка 04 графа 06 = Раздел 17 строка 04 сумма по графам 03 + 04 + 05",null,null,{"$f":"IF('Раздел 17'!$S$24=SUM('Раздел 17'!$P$24:$R$24),0,1)","v":0}]
[609535,17,13,13,"Раздел 17 строка 05 графа 06 = Раздел 17 строка 05 сумма по графам 03 + 04 + 05",null,null,{"$f":"IF('Раздел 17'!$S$25=SUM('Раздел 17'!$P$25:$R$25),0,1)","v":0}]
[609535,17,14,14,"Раздел 17 строка 06 графа 06 = Раздел 17 строка 06 сумма по графам 03 + 04 + 05",null,null,{"$f":"IF('Раздел 17'!$S$26=SUM('Раздел 17'!$P$26:$R$26),0,1)","v":0}]
[609535,17,15,15,"Раздел 17 строка 07 графа 06 = Раздел 17 строка 07 сумма по графам 03 + 04 + 05",null,null,{"$f":"IF('Раздел 17'!$S$27=SUM('Раздел 17'!$P$27:$R$27),0,1)","v":0}]
[609535,17,16,16,"Раздел 17 строка 08 графа 06 = Раздел 17 строка 08 сумма по графам 03 + 04 + 05",null,null,{"$f":"IF('Раздел 17'!$S$28=SUM('Раздел 17'!$P$28:$R$28),0,1)","v":0}]
[609535,17,17,17,"Раздел 17 строка 09 графа 06 = Раздел 17 строка 09 сумма по графам 03 + 04 + 05",null,null,{"$f":"IF('Раздел 17'!$S$29=SUM('Раздел 17'!$P$29:$R$29),0,1)","v":0}]
[609535,17,18,18,"Раздел 17 строка 10 графа 06 = Раздел 17 строка 10 сумма по графам 03 + 04 + 05",null,null,{"$f":"IF('Раздел 17'!$S$30=SUM('Раздел 17'!$P$30:$R$30),0,1)","v":0}]
[609535,17,19,19,"Раздел 17 строка 01 графа 10 = Раздел 17 строка 01 сумма по графам 07 + 08 + 09",null,null,{"$f":"IF('Раздел 17'!$W$21=SUM('Раздел 17'!$T$21:$V$21),0,1)","v":0}]
[609535,17,20,20,"Раздел 17 строка 02 графа 10 = Раздел 17 строка 02 сумма по графам 07 + 08 + 09",null,null,{"$f":"IF('Раздел 17'!$W$22=SUM('Раздел 17'!$T$22:$V$22),0,1)","v":0}]
[609535,17,21,21,"Раздел 17 строка 03 графа 10 = Раздел 17 строка 03 сумма по графам 07 + 08 + 09",null,null,{"$f":"IF('Раздел 17'!$W$23=SUM('Раздел 17'!$T$23:$V$23),0,1)","v":0}]
[609535,17,22,22,"Раздел 17 строка 04 графа 10 = Раздел 17 строка 04 сумма по графам 07 + 08 + 09",null,null,{"$f":"IF('Раздел 17'!$W$24=SUM('Раздел 17'!$T$24:$V$24),0,1)","v":0}]
[609535,17,23,23,"Раздел 17 строка 05 графа 10 = Раздел 17 строка 05 сумма по графам 07 + 08 + 09",null,null,{"$f":"IF('Раздел 17'!$W$25=SUM('Раздел 17'!$T$25:$V$25),0,1)","v":0}]
[609535,17,24,24,"Раздел 17 строка 06 графа 10 = Раздел 17 строка 06 сумма по графам 07 + 08 + 09",null,null,{"$f":"IF('Раздел 17'!$W$26=SUM('Раздел 17'!$T$26:$V$26),0,1)","v":0}]
[609535,17,25,25,"Раздел 17 строка 07 графа 10 = Раздел 17 строка 07 сумма по графам 07 + 08 + 09",null,null,{"$f":"IF('Раздел 17'!$W$27=SUM('Раздел 17'!$T$27:$V$27),0,1)","v":0}]
[609535,17,26,26,"Раздел 17 строка 08 графа 10 = Раздел 17 строка 08 сумма по графам 07 + 08 + 09",null,null,{"$f":"IF('Раздел 17'!$W$28=SUM('Раздел 17'!$T$28:$V$28),0,1)","v":0}]
[609535,17,27,27,"Раздел 17 строка 09 графа 10 = Раздел 17 строка 09 сумма по графам 07 + 08 + 09",null,null,{"$f":"IF('Раздел 17'!$W$29=SUM('Раздел 17'!$T$29:$V$29),0,1)","v":0}]
[609535,17,28,28,"Раздел 17 строка 10 графа 10 = Раздел 17 строка 10 сумма по графам 07 + 08 + 09",null,null,{"$f":"IF('Раздел 17'!$W$30=SUM('Раздел 17'!$T$30:$V$30),0,1)","v":0}]
[609535,17,29,29,"Раздел 17 графа 07 строка 01 количество учащихся не соответствует количеству классов Раздел 17 графа 03 строка 01",null,null,{"$f":"IF(OR(AND('Раздел 17'!$P$21=0,'Раздел 17'!$T$21=0),AND('Раздел 17'!$P$21>0,'Раздел 17'!$T$21>0)),0,1)","v":0}]
[609535,17,30,30,"Раздел 17 графа 07 строка 02 количество учащихся не соответствует количеству классов Раздел 17 графа 03 строка 02",null,null,{"$f":"IF(OR(AND('Раздел 17'!$P$22=0,'Раздел 17'!$T$22=0),AND('Раздел 17'!$P$22>0,'Раздел 17'!$T$22>0)),0,1)","v":0}]
[609535,17,31,31,"Раздел 17 графа 07 строка 03 количество учащихся не соответствует количеству классов Раздел 17 графа 03 строка 03",null,null,{"$f":"IF(OR(AND('Раздел 17'!$P$23=0,'Раздел 17'!$T$23=0),AND('Раздел 17'!$P$23>0,'Раздел 17'!$T$23>0)),0,1)","v":0}]
[609535,17,32,32,"Раздел 17 графа 07 строка 04 количество учащихся не соответствует количеству классов Раздел 17 графа 03 строка 04",null,null,{"$f":"IF(OR(AND('Раздел 17'!$P$24=0,'Раздел 17'!$T$24=0),AND('Раздел 17'!$P$24>0,'Раздел 17'!$T$24>0)),0,1)","v":0}]
[609535,17,33,33,"Раздел 17 графа 07 строка 05 количество учащихся не соответствует количеству классов Раздел 17 графа 03 строка 05",null,null,{"$f":"IF(OR(AND('Раздел 17'!$P$25=0,'Раздел 17'!$T$25=0),AND('Раздел 17'!$P$25>0,'Раздел 17'!$T$25>0)),0,1)","v":0}]
[609535,17,34,34,"Раздел 17 графа 07 строка 06 количество учащихся не соответствует количеству классов Раздел 17 графа 03 строка 06",null,null,{"$f":"IF(OR(AND('Раздел 17'!$P$26=0,'Раздел 17'!$T$26=0),AND('Раздел 17'!$P$26>0,'Раздел 17'!$T$26>0)),0,1)","v":0}]
[609535,17,35,35,"Раздел 17 графа 07 строка 07 количество учащихся не соответствует количеству классов Раздел 17 графа 03 строка 07",null,null,{"$f":"IF(OR(AND('Раздел 17'!$P$27=0,'Раздел 17'!$T$27=0),AND('Раздел 17'!$P$27>0,'Раздел 17'!$T$27>0)),0,1)","v":0}]
[609535,17,36,36,"Раздел 17 графа 07 строка 08 количество учащихся не соответствует количеству классов Раздел 17 графа 03 строка 08",null,null,{"$f":"IF(OR(AND('Раздел 17'!$P$28=0,'Раздел 17'!$T$28=0),AND('Раздел 17'!$P$28>0,'Раздел 17'!$T$28>0)),0,1)","v":0}]
[609535,17,37,37,"Раздел 17 графа 07 строка 09 количество учащихся не соответствует количеству классов Раздел 17 графа 03 строка 09",null,null,{"$f":"IF(OR(AND('Раздел 17'!$P$29=0,'Раздел 17'!$T$29=0),AND('Раздел 17'!$P$29>0,'Раздел 17'!$T$29>0)),0,1)","v":0}]
[609535,17,38,38,"Раздел 17 графа 07 строка 10 количество учащихся не соответствует количеству классов Раздел 17 графа 03 строка 10",null,null,{"$f":"IF(OR(AND('Раздел 17'!$P$30=0,'Раздел 17'!$T$30=0),AND('Раздел 17'!$P$30>0,'Раздел 17'!$T$30>0)),0,1)","v":0}]
[609535,17,39,39,"Раздел 17 графа 08 строка 01 количество учащихся не соответствует количеству классов Раздел 17 графа 04 строка 01",null,null,{"$f":"IF(OR(AND('Раздел 17'!$Q$21=0,'Раздел 17'!$U$21=0),AND('Раздел 17'!$Q$21>0,'Раздел 17'!$U$21>0)),0,1)","v":0}]
[609535,17,40,40,"Раздел 17 графа 08 строка 02 количество учащихся не соответствует количеству классов Раздел 17 графа 04 строка 02",null,null,{"$f":"IF(OR(AND('Раздел 17'!$Q$22=0,'Раздел 17'!$U$22=0),AND('Раздел 17'!$Q$22>0,'Раздел 17'!$U$22>0)),0,1)","v":0}]
[609535,17,41,41,"Раздел 17 графа 08 строка 03 количество учащихся не соответствует количеству классов Раздел 17 графа 04 строка 03",null,null,{"$f":"IF(OR(AND('Раздел 17'!$Q$23=0,'Раздел 17'!$U$23=0),AND('Раздел 17'!$Q$23>0,'Раздел 17'!$U$23>0)),0,1)","v":0}]
[609535,17,42,42,"Раздел 17 графа 08 строка 04 количество учащихся не соответствует количеству классов Раздел 17 графа 04 строка 04",null,null,{"$f":"IF(OR(AND('Раздел 17'!$Q$24=0,'Раздел 17'!$U$24=0),AND('Раздел 17'!$Q$24>0,'Раздел 17'!$U$24>0)),0,1)","v":0}]
[609535,17,43,43,"Раздел 17 графа 08 строка 05 количество учащихся не соответствует количеству классов Раздел 17 графа 04 строка 05",null,null,{"$f":"IF(OR(AND('Раздел 17'!$Q$25=0,'Раздел 17'!$U$25=0),AND('Раздел 17'!$Q$25>0,'Раздел 17'!$U$25>0)),0,1)","v":0}]
[609535,17,44,44,"Раздел 17 графа 08 строка 06 количество учащихся не соответствует количеству классов Раздел 17 графа 04 строка 06",null,null,{"$f":"IF(OR(AND('Раздел 17'!$Q$26=0,'Раздел 17'!$U$26=0),AND('Раздел 17'!$Q$26>0,'Раздел 17'!$U$26>0)),0,1)","v":0}]
[609535,17,45,45,"Раздел 17 графа 08 строка 07 количество учащихся не соответствует количеству классов Раздел 17 графа 04 строка 07",null,null,{"$f":"IF(OR(AND('Раздел 17'!$Q$27=0,'Раздел 17'!$U$27=0),AND('Раздел 17'!$Q$27>0,'Раздел 17'!$U$27>0)),0,1)","v":0}]
[609535,17,46,46,"Раздел 17 графа 08 строка 08 количество учащихся не соответствует количеству классов Раздел 17 графа 04 строка 08",null,null,{"$f":"IF(OR(AND('Раздел 17'!$Q$28=0,'Раздел 17'!$U$28=0),AND('Раздел 17'!$Q$28>0,'Раздел 17'!$U$28>0)),0,1)","v":0}]
[609535,17,47,47,"Раздел 17 графа 08 строка 09 количество учащихся не соответствует количеству классов Раздел 17 графа 04 строка 09",null,null,{"$f":"IF(OR(AND('Раздел 17'!$Q$29=0,'Раздел 17'!$U$29=0),AND('Раздел 17'!$Q$29>0,'Раздел 17'!$U$29>0)),0,1)","v":0}]
[{"$f":"P_3","v":609535},17,48,48,"Раздел 17 графа 08 строка 10 количество учащихся не соответствует количеству классов Раздел 17 графа 04 строка 10",null,null,{"$f":"IF(OR(AND('Раздел 17'!$Q$30=0,'Раздел 17'!$U$30=0),AND('Раздел 17'!$Q$30>0,'Раздел 17'!$U$30>0)),0,1)","v":0}]
[609535,17,49,49,"Раздел 17 графа 09 строка 01 количество учащихся не соответствует количеству классов Раздел 17 графа 05 строка 01",null,null,{"$f":"IF(OR(AND('Раздел 17'!$R$21=0,'Раздел 17'!$V$21=0),AND('Раздел 17'!$R$21>0,'Раздел 17'!$V$21>0)),0,1)","v":0}]
[609535,17,50,50,"Раздел 17 графа 09 строка 02 количество учащихся не соответствует количеству классов Раздел 17 графа 05 строка 02",null,null,{"$f":"IF(OR(AND('Раздел 17'!$R$22=0,'Раздел 17'!$V$22=0),AND('Раздел 17'!$R$22>0,'Раздел 17'!$V$22>0)),0,1)","v":0}]
[609535,17,51,51,"Раздел 17 графа 09 строка 03 количество учащихся не соответствует количеству классов Раздел 17 графа 05 строка 03",null,null,{"$f":"IF(OR(AND('Раздел 17'!$R$23=0,'Раздел 17'!$V$23=0),AND('Раздел 17'!$R$23>0,'Раздел 17'!$V$23>0)),0,1)","v":0}]
[609535,17,52,52,"Раздел 17 графа 09 строка 04 количество учащихся не соответствует количеству классов Раздел 17 графа 05 строка 04",null,null,{"$f":"IF(OR(AND('Раздел 17'!$R$24=0,'Раздел 17'!$V$24=0),AND('Раздел 17'!$R$24>0,'Раздел 17'!$V$24>0)),0,1)","v":0}]
[609535,17,53,53,"Раздел 17 графа 09 строка 05 количество учащихся не соответствует количеству классов Раздел 17 графа 05 строка 05",null,null,{"$f":"IF(OR(AND('Раздел 17'!$R$25=0,'Раздел 17'!$V$25=0),AND('Раздел 17'!$R$25>0,'Раздел 17'!$V$25>0)),0,1)","v":0}]
[609535,17,54,54,"Раздел 17 графа 09 строка 06 количество учащихся не соответствует количеству классов Раздел 17 графа 05 строка 06",null,null,{"$f":"IF(OR(AND('Раздел 17'!$R$26=0,'Раздел 17'!$V$26=0),AND('Раздел 17'!$R$26>0,'Раздел 17'!$V$26>0)),0,1)","v":0}]
[609535,17,55,55,"Раздел 17 графа 09 строка 07 количество учащихся не соответствует количеству классов Раздел 17 графа 05 строка 07",null,null,{"$f":"IF(OR(AND('Раздел 17'!$R$27=0,'Раздел 17'!$V$27=0),AND('Раздел 17'!$R$27>0,'Раздел 17'!$V$27>0)),0,1)","v":0}]
[609535,17,56,56,"Раздел 17 графа 09 строка 08 количество учащихся не соответствует количеству классов Раздел 17 графа 05 строка 08",null,null,{"$f":"IF(OR(AND('Раздел 17'!$R$28=0,'Раздел 17'!$V$28=0),AND('Раздел 17'!$R$28>0,'Раздел 17'!$V$28>0)),0,1)","v":0}]
[609535,17,57,57,"Раздел 17 графа 09 строка 09 количество учащихся не соответствует количеству классов Раздел 17 графа 05 строка 09",null,null,{"$f":"IF(OR(AND('Раздел 17'!$R$29=0,'Раздел 17'!$V$29=0),AND('Раздел 17'!$R$29>0,'Раздел 17'!$V$29>0)),0,1)","v":0}]
[609535,17,58,58,"Раздел 17 графа 09 строка 10 количество учащихся не соответствует количеству классов Раздел 17 графа 05 строка 10",null,null,{"$f":"IF(OR(AND('Раздел 17'!$R$30=0,'Раздел 17'!$V$30=0),AND('Раздел 17'!$R$30>0,'Раздел 17'!$V$30>0)),0,1)","v":0}]
[609535,17,59,59,"Раздел 17 графа 10 строка 01 количество учащихся не соответствует количеству классов Раздел 17 графа 06 строка 01",null,null,{"$f":"IF(OR(AND('Раздел 17'!$S$21=0,'Раздел 17'!$W$21=0),AND('Раздел 17'!$S$21>0,'Раздел 17'!$W$21>0)),0,1)","v":0}]
[609535,17,60,60,"Раздел 17 графа 10 строка 02 количество учащихся не соответствует количеству классов Раздел 17 графа 06 строка 02",null,null,{"$f":"IF(OR(AND('Раздел 17'!$S$22=0,'Раздел 17'!$W$22=0),AND('Раздел 17'!$S$22>0,'Раздел 17'!$W$22>0)),0,1)","v":0}]
[609535,17,61,61,"Раздел 17 графа 10 строка 03 количество учащихся не соответствует количеству классов Раздел 17 графа 06 строка 03",null,null,{"$f":"IF(OR(AND('Раздел 17'!$S$23=0,'Раздел 17'!$W$23=0),AND('Раздел 17'!$S$23>0,'Раздел 17'!$W$23>0)),0,1)","v":0}]
[609535,17,62,62,"Раздел 17 графа 10 строка 04 количество учащихся не соответствует количеству классов Раздел 17 графа 06 строка 04",null,null,{"$f":"IF(OR(AND('Раздел 17'!$S$24=0,'Раздел 17'!$W$24=0),AND('Раздел 17'!$S$24>0,'Раздел 17'!$W$24>0)),0,1)","v":0}]
[609535,17,63,63,"Раздел 17 графа 10 строка 05 количество учащихся не соответствует количеству классов Раздел 17 графа 06 строка 05",null,null,{"$f":"IF(OR(AND('Раздел 17'!$S$25=0,'Раздел 17'!$W$25=0),AND('Раздел 17'!$S$25>0,'Раздел 17'!$W$25>0)),0,1)","v":0}]
[609535,17,64,64,"Раздел 17 графа 10 строка 06 количество учащихся не соответствует количеству классов Раздел 17 графа 06 строка 06",null,null,{"$f":"IF(OR(AND('Раздел 17'!$S$26=0,'Раздел 17'!$W$26=0),AND('Раздел 17'!$S$26>0,'Раздел 17'!$W$26>0)),0,1)","v":0}]
[609535,17,65,65,"Раздел 17 графа 10 строка 07 количество учащихся не соответствует количеству классов Раздел 17 графа 06 строка 07",null,null,{"$f":"IF(OR(AND('Раздел 17'!$S$27=0,'Раздел 17'!$W$27=0),AND('Раздел 17'!$S$27>0,'Раздел 17'!$W$27>0)),0,1)","v":0}]
[609535,17,66,66,"Раздел 17 графа 10 строка 08 количество учащихся не соответствует коилчеству классов Раздел 17 графа 06 строка 08",null,null,{"$f":"IF(OR(AND('Раздел 17'!$S$28=0,'Раздел 17'!$W$28=0),AND('Раздел 17'!$S$28>0,'Раздел 17'!$W$28>0)),0,1)","v":0}]
[609535,17,67,67,"Раздел 17 графа 10 строка 09 количество учащихся не соответствует количеству классов Раздел 17 графа 06 строка 09",null,null,{"$f":"IF(OR(AND('Раздел 17'!$S$29=0,'Раздел 17'!$W$29=0),AND('Раздел 17'!$S$29>0,'Раздел 17'!$W$29>0)),0,1)","v":0}]
[609535,17,68,68,"Раздел 17 графа 10 строка 10 количество учащихся не соответствует количеству классов Раздел 17 графа 06 строка 10",null,null,{"$f":"IF(OR(AND('Раздел 17'!$S$30=0,'Раздел 17'!$W$30=0),AND('Раздел 17'!$S$30>0,'Раздел 17'!$W$30>0)),0,1)","v":0}]
[609535,18,0,0,{"$f":"CONCATENATE(\"Количество ошибок в разделе 18: \",H600)","v":"Количество ошибок в разделе 18: 0"},null,null,{"$f":"SUM(H601:H621)","v":0}]
[609535,18,1,1,"Раздел 18 строка 01 графа 03 = Раздел 18 сумма  строк  02 + 07 + 08 + 09 + 10 + 11 + 12 + 13 + 14 + 15 + 16 графа 03",null,null,{"$f":"IF('Раздел 18'!$P$21=SUM('Раздел 18'!$P$22,'Раздел 18'!$P$27:$P$36),0,1)","v":0}]
[609535,18,2,2,"Раздел 18 строка 01 графа 04 = Раздел 18 сумма  строк  02 + 07 + 08 + 09 + 10 + 11 + 12 + 13 + 14 + 15 + 16 графа 04",null,null,{"$f":"IF('Раздел 18'!$Q$21=SUM('Раздел 18'!$Q$22,'Раздел 18'!$Q$27:$Q$36),0,1)","v":0}]
[609535,18,3,3,"Раздел 18 строка 02 графа 03 = Раздел 18 сумма строк  03 + 04 + 05 + 06 графа 03",null,null,{"$f":"IF('Раздел 18'!$P$22=SUM('Раздел 18'!$P$23:$P$26),0,1)","v":0}]
[609535,18,4,4,"Раздел 18 строка 02 графа 04 = Раздел 18 сумма строк  03 + 04 + 05 + 06 графа 04",null,null,{"$f":"IF('Раздел 18'!$Q$22=SUM('Раздел 18'!$Q$23:$Q$26),0,1)","v":0}]
[609535,18,5,5,"Раздел 18 графа 4 количество обучающихся не соответствует числу классов Раздел 18 графа 3 по строке 01 ",null,null,{"$f":"IF(OR(AND('Раздел 18'!Q21=0,'Раздел 18'!P21=0),AND('Раздел 18'!Q21>0,'Раздел 18'!P21>0)),0,1)","v":0}]
[609535,18,6,6,"Раздел 18 графа 4 количество обучающихся не соответствует числу классов Раздел 18 графа 3 по строке 02",null,null,{"$f":"IF(OR(AND('Раздел 18'!Q22=0,'Раздел 18'!P22=0),AND('Раздел 18'!Q22>0,'Раздел 18'!P22>0)),0,1)","v":0}]
[609535,18,7,7,"Раздел 18 графа 4 количество обучающихся не соответствует числу классов Раздел 18 графа 3 по строке 03",null,null,{"$f":"IF(OR(AND('Раздел 18'!Q23=0,'Раздел 18'!P23=0),AND('Раздел 18'!Q23>0,'Раздел 18'!P23>0)),0,1)","v":0}]
[609535,18,8,8,"Раздел 18 графа 4 количество обучающихся не соответствует числу классов Раздел 18 графа 3 по строке 04",null,null,{"$f":"IF(OR(AND('Раздел 18'!Q24=0,'Раздел 18'!P24=0),AND('Раздел 18'!Q24>0,'Раздел 18'!P24>0)),0,1)","v":0}]
[609535,18,9,9,"Раздел 18 графа 4 количество обучающихся не соответствует числу классов Раздел 18 графа 3 по строке 05",null,null,{"$f":"IF(OR(AND('Раздел 18'!Q25=0,'Раздел 18'!P25=0),AND('Раздел 18'!Q25>0,'Раздел 18'!P25>0)),0,1)","v":0}]
[609535,18,10,10,"Раздел 18 графа 4 количество обучающихся не соответствует числу классов Раздел 18 графа 3 по строке 06",null,null,{"$f":"IF(OR(AND('Раздел 18'!Q26=0,'Раздел 18'!P26=0),AND('Раздел 18'!Q26>0,'Раздел 18'!P26>0)),0,1)","v":0}]
[609535,18,11,11,"Раздел 18 графа 4 количество обучающихся не соответствует числу классов Раздел 18 графа 3 по строке 07",null,null,{"$f":"IF(OR(AND('Раздел 18'!Q27=0,'Раздел 18'!P27=0),AND('Раздел 18'!Q27>0,'Раздел 18'!P27>0)),0,1)","v":0}]
[609535,18,12,12,"Раздел 18 графа 4 количество обучающихся не соответствует числу классов Раздел 18 графа 3 по строке 08",null,null,{"$f":"IF(OR(AND('Раздел 18'!Q28=0,'Раздел 18'!P28=0),AND('Раздел 18'!Q28>0,'Раздел 18'!P28>0)),0,1)","v":0}]
[609535,18,13,13,"Раздел 18 графа 4 количество обучающихся не соответствует числу классов Раздел 18 графа 3 по строке 09",null,null,{"$f":"IF(OR(AND('Раздел 18'!Q29=0,'Раздел 18'!P29=0),AND('Раздел 18'!Q29>0,'Раздел 18'!P29>0)),0,1)","v":0}]
[609535,18,14,14,"Раздел 18 графа 4 количество обучающихся не соответствует числу классов Раздел 18 графа 3 по строке 10",null,null,{"$f":"IF(OR(AND('Раздел 18'!Q30=0,'Раздел 18'!P30=0),AND('Раздел 18'!Q30>0,'Раздел 18'!P30>0)),0,1)","v":0}]
[609535,18,15,15,"Раздел 18 графа 4 количество обучающихся не соответствует числу классов Раздел 18 графа 3 по строке 11",null,null,{"$f":"IF(OR(AND('Раздел 18'!Q31=0,'Раздел 18'!P31=0),AND('Раздел 18'!Q31>0,'Раздел 18'!P31>0)),0,1)","v":0}]
[609535,18,16,16,"Раздел 18 графа 4 количество обучающихся не соответствует числу классов Раздел 18 графа 3 по строке 12",null,null,{"$f":"IF(OR(AND('Раздел 18'!Q32=0,'Раздел 18'!P32=0),AND('Раздел 18'!Q32>0,'Раздел 18'!P32>0)),0,1)","v":0}]
[609535,18,17,17,"Раздел 18 графа 4 количество обучающихся не соответствует числу классов Раздел 18 графа 3 по строке 13",null,null,{"$f":"IF(OR(AND('Раздел 18'!Q33=0,'Раздел 18'!P33=0),AND('Раздел 18'!Q33>0,'Раздел 18'!P33>0)),0,1)","v":0}]
[609535,18,18,18,"Раздел 18 графа 4 количество обучающихся не соответствует числу классов Раздел 18 графа 3 по строке 14",null,null,{"$f":"IF(OR(AND('Раздел 18'!Q34=0,'Раздел 18'!P34=0),AND('Раздел 18'!Q34>0,'Раздел 18'!P34>0)),0,1)","v":0}]
[609535,18,19,19,"Раздел 18 графа 4 количество обучающихся не соответствует числу классов Раздел 18 графа 3 по строке 15",null,null,{"$f":"IF(OR(AND('Раздел 18'!Q35=0,'Раздел 18'!P35=0),AND('Раздел 18'!Q35>0,'Раздел 18'!P35>0)),0,1)","v":0}]
[609535,18,20,20,"Раздел 18 графа 4 количество обучающихся не соответствует числу классов Раздел 18 графа 3 по строке 16",null,null,{"$f":"IF(OR(AND('Раздел 18'!Q36=0,'Раздел 18'!P36=0),AND('Раздел 18'!Q36>0,'Раздел 18'!P36>0)),0,1)","v":0}]
[609535,18,21,21,"Раздел 18 графа 4 количество обучающихся не соответствует числу классов Раздел 18 графа 3 по строке 17",null,null,{"$f":"IF(OR(AND('Раздел 18'!Q37=0,'Раздел 18'!P37=0),AND('Раздел 18'!Q37>0,'Раздел 18'!P37>0)),0,1)","v":0}]
[609535,19,0,0,{"$f":"CONCATENATE(\"Количество ошибок в разделе 19: \",H622)","v":"Количество ошибок в разделе 19: 0"},null,null,{"$f":"SUM(H623:H626)","v":0}]
[609535,19,1,1,"Раздел 19 строка 01 графа 3 = Раздел 19 сумма строк 02 + 03 + 04 + 05 + 06 + 07 + 08 + 09 графа 3",null,null,{"$f":"IF('Раздел 19'!P21=SUM('Раздел 19'!P22:P29),0,1)","v":0}]
[609535,19,1,2,"Раздел 19 строка 01 графа 4 = Раздел 19 сумма строк 02 + 03 + 04 + 05 + 06 + 07 + 08 + 09 графа 4",null,null,{"$f":"IF('Раздел 19'!Q21=SUM('Раздел 19'!Q22:Q29),0,1)","v":0}]
[609535,19,1,3,"Раздел 19 строка 01 графа 5 = Раздел 19 сумма строк 02 + 03 + 04 + 05 + 06 + 07 + 08 + 09 графа 5",null,null,{"$f":"IF('Раздел 19'!R21=SUM('Раздел 19'!R22:R29),0,1)","v":0}]
[609535,19,1,4,"Раздел 19 строка 01 графа 6 = Раздел 19 сумма строк 02 + 03 + 04 + 05 + 06 + 07 + 08 + 09 графа 6",null,null,{"$f":"IF('Раздел 19'!S21=SUM('Раздел 19'!S22:S29),0,1)","v":0}]
[609535,20,0,0,{"$f":"CONCATENATE(\"Количество ошибок в разделе 20: \",H627)","v":"Количество ошибок в разделе 20: 0"},null,null,{"$f":"SUM(H628:H683)","v":0}]
[609535,20,1,1,"Раздел 20 строка 15 графа 03 = Раздел 20 сумма строк с 01 по 14 графа 03",null,null,{"$f":"IF('Раздел 20'!P35=SUM('Раздел 20'!P21:P34),0,1)","v":0}]
[609535,20,2,2,"Раздел 20 строка 15 графа 04 = Раздел 20 сумма строк с 01 по 14 графа 04",null,null,{"$f":"IF('Раздел 20'!Q35=SUM('Раздел 20'!Q21:Q34),0,1)","v":0}]
[609535,20,3,3,"Раздел 20 строка 15 графа 05 = Раздел 20 сумма строк с 01 по 14 графа 05",null,null,{"$f":"IF('Раздел 20'!R35=SUM('Раздел 20'!R21:R34),0,1)","v":0}]
[609535,20,4,4,"Раздел 20 строка 15 графа 06 = Раздел 20 сумма строк с 01 по 14 графа 06",null,null,{"$f":"IF('Раздел 20'!S35=SUM('Раздел 20'!S21:S34),0,1)","v":0}]
[609535,20,5,5,"Раздел 20 строка 15 графа 07 = Раздел 20 сумма строк с 01 по 14 графа 07",null,null,{"$f":"IF('Раздел 20'!T35=SUM('Раздел 20'!T21:T34),0,1)","v":0}]
[609535,20,6,6,"Раздел 20 строка 15 графа 08 = Раздел 20 сумма строк с 01 по 14 графа 08",null,null,{"$f":"IF('Раздел 20'!U35=SUM('Раздел 20'!U21:U34),0,1)","v":0}]
[609535,20,7,7,"Раздел 20 строка 15 графа 09 = Раздел 20 сумма строк с 01 по 14 графа 09",null,null,{"$f":"IF('Раздел 20'!V35=SUM('Раздел 20'!V21:V34),0,1)","v":0}]
[609535,20,8,8,"Раздел 20 строка 15 графа 10 = Раздел 20 сумма строк с 01 по 14 графа 10",null,null,{"$f":"IF('Раздел 20'!W35=SUM('Раздел 20'!W21:W34),0,1)","v":0}]
[609535,20,9,9,"Раздел 20 строка 15 графа 11 = Раздел 20 сумма строк с 01 по 14 графа 11",null,null,{"$f":"IF('Раздел 20'!X35=SUM('Раздел 20'!X21:X34),0,1)","v":0}]
[609535,20,10,10,"Раздел 20 строка 15 графа 12 = Раздел 20 сумма строк с 01 по 14 графа 12",null,null,{"$f":"IF('Раздел 20'!Y35=SUM('Раздел 20'!Y21:Y34),0,1)","v":0}]
[609535,20,11,11,"Раздел 20 строка 15 графа 13 = Раздел 20 сумма строк с 01 по 14 графа 13",null,null,{"$f":"IF('Раздел 20'!Z35=SUM('Раздел 20'!Z21:Z34),0,1)","v":0}]
[609535,20,12,12,"Раздел 20 графа 4 = Раздел 20 сумма граф с 5 по 12 по строке 01",null,null,{"$f":"IF('Раздел 20'!Q21=SUM('Раздел 20'!R21:Y21),0,1)","v":0}]
[609535,20,13,13,"Раздел 20 графа 4 = Раздел 20 сумма граф с 5 по 12 по строке 02",null,null,{"$f":"IF('Раздел 20'!Q22=SUM('Раздел 20'!R22:Y22),0,1)","v":0}]
[609535,20,14,14,"Раздел 20 графа 4 = Раздел 20 сумма граф с 5 по 12 по строке 03",null,null,{"$f":"IF('Раздел 20'!Q23=SUM('Раздел 20'!R23:Y23),0,1)","v":0}]
[609535,20,15,15,"Раздел 20 графа 4 = Раздел 20 сумма граф с 5 по 12 по строке 04",null,null,{"$f":"IF('Раздел 20'!Q24=SUM('Раздел 20'!R24:Y24),0,1)","v":0}]
[{"$f":"P_3","v":609535},20,16,16,"Раздел 20 графа 4 = Раздел 20 сумма граф с 5 по 12 по строке 05",null,null,{"$f":"IF('Раздел 20'!Q25=SUM('Раздел 20'!R25:Y25),0,1)","v":0}]
[609535,20,17,17,"Раздел 20 графа 4 = Раздел 20 сумма граф с 5 по 12 по строке 06",null,null,{"$f":"IF('Раздел 20'!Q26=SUM('Раздел 20'!R26:Y26),0,1)","v":0}]
[609535,20,18,18,"Раздел 20 графа 4 = Раздел 20 сумма граф с 5 по 12 по строке 07",null,null,{"$f":"IF('Раздел 20'!Q27=SUM('Раздел 20'!R27:Y27),0,1)","v":0}]
[609535,20,19,19,"Раздел 20 графа 4 = Раздел 20 сумма граф с 5 по 12 по строке 08",null,null,{"$f":"IF('Раздел 20'!Q28=SUM('Раздел 20'!R28:Y28),0,1)","v":0}]
[609535,20,20,20,"Раздел 20 графа 4 = Раздел 20 сумма граф с 5 по 12 по строке 09",null,null,{"$f":"IF('Раздел 20'!Q29=SUM('Раздел 20'!R29:Y29),0,1)","v":0}]
[609535,20,21,21,"Раздел 20 графа 4 = Раздел 20 сумма граф с 5 по 12 по строке 10",null,null,{"$f":"IF('Раздел 20'!Q30=SUM('Раздел 20'!R30:Y30),0,1)","v":0}]
[609535,20,22,22,"Раздел 20 графа 4 = Раздел 20 сумма граф с 5 по 12 по строке 11",null,null,{"$f":"IF('Раздел 20'!Q31=SUM('Раздел 20'!R31:Y31),0,1)","v":0}]
[609535,20,23,23,"Раздел 20 графа 4 = Раздел 20 сумма граф с 5 по 12 по строке 12",null,null,{"$f":"IF('Раздел 20'!Q32=SUM('Раздел 20'!R32:Y32),0,1)","v":0}]
[609535,20,24,24,"Раздел 20 графа 4 = Раздел 20 сумма граф с 5 по 12 по строке 13",null,null,{"$f":"IF('Раздел 20'!Q33=SUM('Раздел 20'!R33:Y33),0,1)","v":0}]
[609535,20,25,25,"Раздел 20 графа 4 = Раздел 20 сумма граф с 5 по 12 по строке 14",null,null,{"$f":"IF('Раздел 20'!Q34=SUM('Раздел 20'!R34:Y34),0,1)","v":0}]
[609535,20,26,26,"Раздел 20 графа 4 = Раздел 20 сумма граф с 5 по 12 по строке 15",null,null,{"$f":"IF('Раздел 20'!Q35=SUM('Раздел 20'!R35:Y35),0,1)","v":0}]
[609535,20,27,27,"Раздел 20 графа 4 = Раздел 20 графа 3 по строке 01",null,null,{"$f":"IF('Раздел 20'!Q21='Раздел 20'!P21,0,1)","v":0}]
[609535,20,28,28,"Раздел 20 графа 4 = Раздел 20 графа 3 по строке 02",null,null,{"$f":"IF('Раздел 20'!Q22='Раздел 20'!P22,0,1)","v":0}]
[609535,20,29,29,"Раздел 20 графа 4 = Раздел 20 графа 3 по строке 03",null,null,{"$f":"IF('Раздел 20'!Q23='Раздел 20'!P23,0,1)","v":0}]
[609535,20,30,30,"Раздел 20 графа 4 = Раздел 20 графа 3 по строке 04",null,null,{"$f":"IF('Раздел 20'!Q24='Раздел 20'!P24,0,1)","v":0}]
[609535,20,31,31,"Раздел 20 графа 4 = Раздел 20 графа 3 по строке 05",null,null,{"$f":"IF('Раздел 20'!Q25='Раздел 20'!P25,0,1)","v":0}]
[609535,20,32,32,"Раздел 20 графа 4 = Раздел 20 графа 3 по строке 06",null,null,{"$f":"IF('Раздел 20'!Q26='Раздел 20'!P26,0,1)","v":0}]
[609535,20,33,33,"Раздел 20 графа 4 = Раздел 20 графа 3 по строке 07",null,null,{"$f":"IF('Раздел 20'!Q27='Раздел 20'!P27,0,1)","v":0}]
[609535,20,34,34,"Раздел 20 графа 4 = Раздел 20 графа 3 по строке 08",null,null,{"$f":"IF('Раздел 20'!Q28='Раздел 20'!P28,0,1)","v":0}]
[609535,20,35,35,"Раздел 20 графа 4 = Раздел 20 графа 3 по строке 09",null,null,{"$f":"IF('Раздел 20'!Q29='Раздел 20'!P29,0,1)","v":0}]
[609535,20,36,36,"Раздел 20 графа 4 = Раздел 20 графа 3 по строке 10",null,null,{"$f":"IF('Раздел 20'!Q30='Раздел 20'!P30,0,1)","v":0}]
[609535,20,37,37,"Раздел 20 графа 4 = Раздел 20 графа 3 по строке 11",null,null,{"$f":"IF('Раздел 20'!Q31='Раздел 20'!P31,0,1)","v":0}]
[609535,20,38,38,"Раздел 20 графа 4 = Раздел 20 графа 3 по строке 12",null,null,{"$f":"IF('Раздел 20'!Q32='Раздел 20'!P32,0,1)","v":0}]
[609535,20,39,39,"Раздел 20 графа 4 = Раздел 20 графа 3 по строке 13",null,null,{"$f":"IF('Раздел 20'!Q33='Раздел 20'!P33,0,1)","v":0}]
[609535,20,40,40,"Раздел 20 графа 4 = Раздел 20 графа 3 по строке 14",null,null,{"$f":"IF('Раздел 20'!Q34='Раздел 20'!P34,0,1)","v":0}]
[609535,20,41,41,"Раздел 20 графа 4 = Раздел 20 графа 3 по строке 15",null,null,{"$f":"IF('Раздел 20'!Q35='Раздел 20'!P35,0,1)","v":0}]
[609535,20,42,42,"Раздел 20 графа 13 <= Раздел 20 графа 3 по строке 01",null,null,{"$f":"IF('Раздел 20'!Z21<='Раздел 20'!P21,0,1)","v":0}]
[609535,20,43,43,"Раздел 20 графа 13 <= Раздел 20 графа 3 по строке 02",null,null,{"$f":"IF('Раздел 20'!Z22<='Раздел 20'!P22,0,1)","v":0}]
[609535,20,44,44,"Раздел 20 графа 13 <= Раздел 20 графа 3 по строке 03",null,null,{"$f":"IF('Раздел 20'!Z23<='Раздел 20'!P23,0,1)","v":0}]
[609535,20,45,45,"Раздел 20 графа 13 <= Раздел 20 графа 3 по строке 04",null,null,{"$f":"IF('Раздел 20'!Z24<='Раздел 20'!P24,0,1)","v":0}]
[609535,20,46,46,"Раздел 20 графа 13 <= Раздел 20 графа 3 по строке 05",null,null,{"$f":"IF('Раздел 20'!Z25<='Раздел 20'!P25,0,1)","v":0}]
[609535,20,47,47,"Раздел 20 графа 13 <= Раздел 20 графа 3 по строке 06",null,null,{"$f":"IF('Раздел 20'!Z26<='Раздел 20'!P26,0,1)","v":0}]
[609535,20,48,48,"Раздел 20 графа 13 <= Раздел 20 графа 3 по строке 07",null,null,{"$f":"IF('Раздел 20'!Z27<='Раздел 20'!P27,0,1)","v":0}]
[609535,20,49,49,"Раздел 20 графа 13 <= Раздел 20 графа 3 по строке 08",null,null,{"$f":"IF('Раздел 20'!Z28<='Раздел 20'!P28,0,1)","v":0}]
[609535,20,50,50,"Раздел 20 графа 13 <= Раздел 20 графа 3 по строке 09",null,null,{"$f":"IF('Раздел 20'!Z29<='Раздел 20'!P29,0,1)","v":0}]
[609535,20,51,51,"Раздел 20 графа 13 <= Раздел 20 графа 3 по строке 10",null,null,{"$f":"IF('Раздел 20'!Z30<='Раздел 20'!P30,0,1)","v":0}]
[609535,20,52,52,"Раздел 20 графа 13 <= Раздел 20 графа 3 по строке 11",null,null,{"$f":"IF('Раздел 20'!Z31<='Раздел 20'!P31,0,1)","v":0}]
[609535,20,53,53,"Раздел 20 графа 13 <= Раздел 20 графа 3 по строке 12",null,null,{"$f":"IF('Раздел 20'!Z32<='Раздел 20'!P32,0,1)","v":0}]
[609535,20,54,54,"Раздел 20 графа 13 <= Раздел 20 графа 3 по строке 13",null,null,{"$f":"IF('Раздел 20'!Z33<='Раздел 20'!P33,0,1)","v":0}]
[609535,20,55,55,"Раздел 20 графа 13 <= Раздел 20 графа 3 по строке 14",null,null,{"$f":"IF('Раздел 20'!Z34<='Раздел 20'!P34,0,1)","v":0}]
[609535,20,56,56,"Раздел 20 графа 13 <= Раздел 20 графа 3 по строке 15",null,null,{"$f":"IF('Раздел 20'!Z35<='Раздел 20'!P35,0,1)","v":0}]
[609535,21,0,0,{"$f":"CONCATENATE(\"Количество ошибок в разделе 21: \",H684)","v":"Количество ошибок в разделе 21: 0"},null,null,{"$f":"SUM(H685:H740)","v":0}]
[609535,21,1,1,"Раздел 21 строка 15  графа 03 = Раздел 21 сумма строк с 01 по 14 графа 03 ",null,null,{"$f":"IF('Раздел 21'!P35=SUM('Раздел 21'!P21:P34),0,1)","v":0}]
[609535,21,2,2,"Раздел 21 строка 15  графа 03 = Раздел 21 сумма строк с 01 по 14 графа 04",null,null,{"$f":"IF('Раздел 21'!Q35=SUM('Раздел 21'!Q21:Q34),0,1)","v":0}]
[609535,21,3,3,"Раздел 21 строка 15  графа 03 = Раздел 21 сумма строк с 01 по 14 графа 05",null,null,{"$f":"IF('Раздел 21'!R35=SUM('Раздел 21'!R21:R34),0,1)","v":0}]
[609535,21,4,4,"Раздел 21 строка 15  графа 03 = Раздел 21 сумма строк с 01 по 14 графа 06",null,null,{"$f":"IF('Раздел 21'!S35=SUM('Раздел 21'!S21:S34),0,1)","v":0}]
[609535,21,5,5,"Раздел 21 строка 15  графа 03 = Раздел 21 сумма строк с 01 по 14 графа 07",null,null,{"$f":"IF('Раздел 21'!T35=SUM('Раздел 21'!T21:T34),0,1)","v":0}]
[609535,21,6,6,"Раздел 21 строка 15  графа 03 = Раздел 21 сумма строк с 01 по 14 графа 08",null,null,{"$f":"IF('Раздел 21'!U35=SUM('Раздел 21'!U21:U34),0,1)","v":0}]
[609535,21,7,7,"Раздел 21 строка 15  графа 03 = Раздел 21 сумма строк с 01 по 14 графа 09",null,null,{"$f":"IF('Раздел 21'!V35=SUM('Раздел 21'!V21:V34),0,1)","v":0}]
[609535,21,8,8,"Раздел 21 строка 15  графа 03 = Раздел 21 сумма строк с 01 по 14 графа 10",null,null,{"$f":"IF('Раздел 21'!W35=SUM('Раздел 21'!W21:W34),0,1)","v":0}]
[609535,21,9,9,"Раздел 21 строка 15  графа 03 = Раздел 21 сумма строк с 01 по 14 графа 11",null,null,{"$f":"IF('Раздел 21'!X35=SUM('Раздел 21'!X21:X34),0,1)","v":0}]
[609535,21,10,10,"Раздел 21 строка 15  графа 03 = Раздел 21 сумма строк с 01 по 14 графа 12",null,null,{"$f":"IF('Раздел 21'!Y35=SUM('Раздел 21'!Y21:Y34),0,1)","v":0}]
[609535,21,11,11,"Раздел 21 строка 15  графа 03 = Раздел 21 сумма строк с 01 по 14 графа 13",null,null,{"$f":"IF('Раздел 21'!Z35=SUM('Раздел 21'!Z21:Z34),0,1)","v":0}]
[609535,21,12,12,"Раздел 21 графа 4 = Раздел 21 сумма граф с 5 по 12 по строке 01",null,null,{"$f":"IF('Раздел 21'!Q21=SUM('Раздел 21'!R21:Y21),0,1)","v":0}]
[609535,21,13,13,"Раздел 21 графа 4 = Раздел 21 сумма граф с 5 по 12 по строке 02",null,null,{"$f":"IF('Раздел 21'!Q22=SUM('Раздел 21'!R22:Y22),0,1)","v":0}]
[609535,21,14,14,"Раздел 21 графа 4 = Раздел 21 сумма граф с 5 по 12 по строке 03",null,null,{"$f":"IF('Раздел 21'!Q23=SUM('Раздел 21'!R23:Y23),0,1)","v":0}]
[609535,21,15,15,"Раздел 21 графа 4 = Раздел 21 сумма граф с 5 по 12 по строке 04",null,null,{"$f":"IF('Раздел 21'!Q24=SUM('Раздел 21'!R24:Y24),0,1)","v":0}]
[609535,21,16,16,"Раздел 21 графа 4 = Раздел 21 сумма граф с 5 по 12 по строке 05",null,null,{"$f":"IF('Раздел 21'!Q25=SUM('Раздел 21'!R25:Y25),0,1)","v":0}]
[609535,21,17,17,"Раздел 21 графа 4 = Раздел 21 сумма граф с 5 по 12 по строке 06",null,null,{"$f":"IF('Раздел 21'!Q26=SUM('Раздел 21'!R26:Y26),0,1)","v":0}]
[609535,21,18,18,"Раздел 21 графа 4 = Раздел 21 сумма граф с 5 по 12 по строке 07",null,null,{"$f":"IF('Раздел 21'!Q27=SUM('Раздел 21'!R27:Y27),0,1)","v":0}]
[609535,21,19,19,"Раздел 21 графа 4 = Раздел 21 сумма граф с 5 по 12 по строке 08",null,null,{"$f":"IF('Раздел 21'!Q28=SUM('Раздел 21'!R28:Y28),0,1)","v":0}]
[609535,21,20,20,"Раздел 21 графа 4 = Раздел 21 сумма граф с 5 по 12 по строке 09",null,null,{"$f":"IF('Раздел 21'!Q29=SUM('Раздел 21'!R29:Y29),0,1)","v":0}]
[609535,21,21,21,"Раздел 21 графа 4 = Раздел 21 сумма граф с 5 по 12 по строке 10",null,null,{"$f":"IF('Раздел 21'!Q30=SUM('Раздел 21'!R30:Y30),0,1)","v":0}]
[609535,21,22,22,"Раздел 21 графа 4 = Раздел 21 сумма граф с 5 по 12 по строке 11",null,null,{"$f":"IF('Раздел 21'!Q31=SUM('Раздел 21'!R31:Y31),0,1)","v":0}]
[{"$f":"P_3","v":609535},21,23,23,"Раздел 21 графа 4 = Раздел 21 сумма граф с 5 по 12 по строке 12",null,null,{"$f":"IF('Раздел 21'!Q32=SUM('Раздел 21'!R32:Y32),0,1)","v":0}]
[609535,21,24,24,"Раздел 21 графа 4 = Раздел 21 сумма граф с 5 по 12 по строке 13",null,null,{"$f":"IF('Раздел 21'!Q33=SUM('Раздел 21'!R33:Y33),0,1)","v":0}]
[609535,21,25,25,"Раздел 21 графа 4 = Раздел 21 сумма граф с 5 по 12 по строке 14",null,null,{"$f":"IF('Раздел 21'!Q34=SUM('Раздел 21'!R34:Y34),0,1)","v":0}]
[609535,21,26,26,"Раздел 21 графа 4 = Раздел 21 сумма граф с 5 по 12 по строке 15",null,null,{"$f":"IF('Раздел 21'!Q35=SUM('Раздел 21'!R35:Y35),0,1)","v":0}]
[609535,21,27,27,"Раздел 21 графа 4 <= Раздел 21 графа 3 по строке 01        ",null,null,{"$f":"IF('Раздел 21'!Q21<='Раздел 21'!P21,0,1)","v":0}]
[609535,21,28,28,"Раздел 21 графа 4 <= Раздел 21 графа 3 по строке 02",null,null,{"$f":"IF('Раздел 21'!Q22<='Раздел 21'!P22,0,1)","v":0}]
[609535,21,29,29,"Раздел 21 графа 4 <= Раздел 21 графа 3 по строке 03",null,null,{"$f":"IF('Раздел 21'!Q23<='Раздел 21'!P23,0,1)","v":0}]
[609535,21,30,30,"Раздел 21 графа 4 <= Раздел 21 графа 3 по строке 04",null,null,{"$f":"IF('Раздел 21'!Q24<='Раздел 21'!P24,0,1)","v":0}]
[609535,21,31,31,"Раздел 21 графа 4 <= Раздел 21 графа 3 по строке 05",null,null,{"$f":"IF('Раздел 21'!Q25<='Раздел 21'!P25,0,1)","v":0}]
[609535,21,32,32,"Раздел 21 графа 4 <= Раздел 21 графа 3 по строке 06",null,null,{"$f":"IF('Раздел 21'!Q26<='Раздел 21'!P26,0,1)","v":0}]
[609535,21,33,33,"Раздел 21 графа 4 <= Раздел 21 графа 3 по строке 07",null,null,{"$f":"IF('Раздел 21'!Q27<='Раздел 21'!P27,0,1)","v":0}]
[609535,21,34,34,"Раздел 21 графа 4 <= Раздел 21 графа 3 по строке 08",null,null,{"$f":"IF('Раздел 21'!Q28<='Раздел 21'!P28,0,1)","v":0}]
[609535,21,35,35,"Раздел 21 графа 4 <= Раздел 21 графа 3 по строке 09",null,null,{"$f":"IF('Раздел 21'!Q29<='Раздел 21'!P29,0,1)","v":0}]
[609535,21,36,36,"Раздел 21 графа 4 <= Раздел 21 графа 3 по строке 10",null,null,{"$f":"IF('Раздел 21'!Q30<='Раздел 21'!P30,0,1)","v":0}]
[609535,21,37,37,"Раздел 21 графа 4 <= Раздел 21 графа 3 по строке 11",null,null,{"$f":"IF('Раздел 21'!Q31<='Раздел 21'!P31,0,1)","v":0}]
[609535,21,38,38,"Раздел 21 графа 4 <= Раздел 21 графа 3 по строке 12",null,null,{"$f":"IF('Раздел 21'!Q32<='Раздел 21'!P32,0,1)","v":0}]
[609535,21,39,39,"Раздел 21 графа 4 <= Раздел 21 графа 3 по строке 13",null,null,{"$f":"IF('Раздел 21'!Q33<='Раздел 21'!P33,0,1)","v":0}]
[609535,21,40,40,"Раздел 21 графа 4 <= Раздел 21 графа 3 по строке 14",null,null,{"$f":"IF('Раздел 21'!Q34<='Раздел 21'!P34,0,1)","v":0}]
[609535,21,41,41,"Раздел 21 графа 4 <= Раздел 21 графа 3 по строке 15",null,null,{"$f":"IF('Раздел 21'!Q35<='Раздел 21'!P35,0,1)","v":0}]
[609535,21,42,42,"Раздел 21 графа 13 <= Раздел 21 графа 3 по строке 01        ",null,null,{"$f":"IF('Раздел 21'!Z21<='Раздел 21'!P21,0,1)","v":0}]
[609535,21,43,43,"Раздел 21 графа 13 <= Раздел 21 графа 3 по строке 02",null,null,{"$f":"IF('Раздел 21'!Z22<='Раздел 21'!P22,0,1)","v":0}]
[609535,21,44,44,"Раздел 21 графа 13 <= Раздел 21 графа 3 по строке 03",null,null,{"$f":"IF('Раздел 21'!Z23<='Раздел 21'!P23,0,1)","v":0}]
[609535,21,45,45,"Раздел 21 графа 13 <= Раздел 21 графа 3 по строке 04",null,null,{"$f":"IF('Раздел 21'!Z24<='Раздел 21'!P24,0,1)","v":0}]
[609535,21,46,46,"Раздел 21 графа 13 <= Раздел 21 графа 3 по строке 05",null,null,{"$f":"IF('Раздел 21'!Z25<='Раздел 21'!P25,0,1)","v":0}]
[609535,21,47,47,"Раздел 21 графа 13 <= Раздел 21 графа 3 по строке 06",null,null,{"$f":"IF('Раздел 21'!Z26<='Раздел 21'!P26,0,1)","v":0}]
[609535,21,48,48,"Раздел 21 графа 13 <= Раздел 21 графа 3 по строке 07",null,null,{"$f":"IF('Раздел 21'!Z27<='Раздел 21'!P27,0,1)","v":0}]
[609535,21,49,49,"Раздел 21 графа 13 <= Раздел 21 графа 3 по строке 08",null,null,{"$f":"IF('Раздел 21'!Z28<='Раздел 21'!P28,0,1)","v":0}]
[609535,21,50,50,"Раздел 21 графа 13 <= Раздел 21 графа 3 по строке 09",null,null,{"$f":"IF('Раздел 21'!Z29<='Раздел 21'!P29,0,1)","v":0}]
[609535,21,51,51,"Раздел 21 графа 13 <= Раздел 21 графа 3 по строке 10",null,null,{"$f":"IF('Раздел 21'!Z30<='Раздел 21'!P30,0,1)","v":0}]
[609535,21,52,52,"Раздел 21 графа 13 <= Раздел 21 графа 3 по строке 11",null,null,{"$f":"IF('Раздел 21'!Z31<='Раздел 21'!P31,0,1)","v":0}]
[609535,21,53,53,"Раздел 21 графа 13 <= Раздел 21 графа 3 по строке 12",null,null,{"$f":"IF('Раздел 21'!Z32<='Раздел 21'!P32,0,1)","v":0}]
[609535,21,54,54,"Раздел 21 графа 13 <= Раздел 21 графа 3 по строке 13",null,null,{"$f":"IF('Раздел 21'!Z33<='Раздел 21'!P33,0,1)","v":0}]
[609535,21,55,55,"Раздел 21 графа 13 <= Раздел 21 графа 3 по строке 14",null,null,{"$f":"IF('Раздел 21'!Z34<='Раздел 21'!P34,0,1)","v":0}]
[609535,21,56,56,"Раздел 21 графа 13 <= Раздел 21 графа 3 по строке 15",null,null,{"$f":"IF('Раздел 21'!Z35<='Раздел 21'!P35,0,1)","v":0}]
[609535,22,0,0,{"$f":"CONCATENATE(\"Количество ошибок в разделе 22: \",H741)","v":"Количество ошибок в разделе 22: 0"},null,null,{"$f":"SUM(H742:H762)","v":0}]
[609535,22,1,1,"Раздел 22 строка 02 графа 03 <= Раздел 22 строка 01 графа 03",null,null,{"$f":"IF('Раздел 22'!P22<='Раздел 22'!P21,0,1)","v":0}]
[609535,22,2,2,"Раздел 22 строка 02 графа 04 <= Раздел 22 строка 01 графа 04",null,null,{"$f":"IF('Раздел 22'!Q22<='Раздел 22'!Q21,0,1)","v":0}]
[609535,22,3,3,"Раздел 22 строка 02 графа 05 <= Раздел 22 строка 01 графа 05",null,null,{"$f":"IF('Раздел 22'!R22<='Раздел 22'!R21,0,1)","v":0}]
[609535,22,4,4,"Раздел 22 строка 04 графа 03 <= Раздел 22 строка 03 графа 03",null,null,{"$f":"IF('Раздел 22'!P24<='Раздел 22'!P23,0,1)","v":0}]
[609535,22,5,5,"Раздел 22 строка 04 графа 04 <= Раздел 22 строка 03 графа 04",null,null,{"$f":"IF('Раздел 22'!Q24<='Раздел 22'!Q23,0,1)","v":0}]
[609535,22,6,6,"Раздел 22 строка 04 графа 05 <= Раздел 22 строка 03 графа 05",null,null,{"$f":"IF('Раздел 22'!R24<='Раздел 22'!R23,0,1)","v":0}]
[609535,22,7,7,"Раздел 22 строка 06 графа 03 <= Раздел 22 строка 05 графа 03",null,null,{"$f":"IF('Раздел 22'!P26<='Раздел 22'!P25,0,1)","v":0}]
[609535,22,8,8,"Раздел 22 строка 06 графа 04 <= Раздел 22 строка 05 графа 04",null,null,{"$f":"IF('Раздел 22'!Q26<='Раздел 22'!Q25,0,1)","v":0}]
[609535,22,9,9,"Раздел 22 строка 06 графа 05 <= Раздел 22 строка 05 графа 05",null,null,{"$f":"IF('Раздел 22'!R26<='Раздел 22'!R25,0,1)","v":0}]
[609535,22,10,10,"Раздел 22 строка 05 графа 03 <= Раздел 22 сумма строк (01+03)  графа 03 ",null,null,{"$f":"IF('Раздел 22'!P25<=SUM('Раздел 22'!P21,'Раздел 22'!P23),0,1)","v":0}]
[609535,22,11,11,"Раздел 22 строка 05 графа 04 <= Раздел 22 сумма строк (01+03)  графа 04",null,null,{"$f":"IF('Раздел 22'!Q25<=SUM('Раздел 22'!Q21,'Раздел 22'!Q23),0,1)","v":0}]
[609535,22,12,12,"Раздел 22 строка 05 графа 05 <= Раздел 22 сумма строк (01+03)  графа 05",null,null,{"$f":"IF('Раздел 22'!R25<=SUM('Раздел 22'!R21,'Раздел 22'!R23),0,1)","v":0}]
[609535,22,13,13,"Раздел 22 строка 06 графа 03 <= Раздел 22 сумма строк (02+04) графа 03",null,null,{"$f":"IF('Раздел 22'!P26<=SUM('Раздел 22'!P22,'Раздел 22'!P24),0,1)","v":0}]
[609535,22,14,14,"Раздел 22 строка 06 графа 04 <= Раздел 22 сумма строк (02+04) графа 04",null,null,{"$f":"IF('Раздел 22'!Q26<=SUM('Раздел 22'!Q22,'Раздел 22'!Q24),0,1)","v":0}]
[609535,22,15,15,"Раздел 22 строка 06 графа 05 <= Раздел 22 сумма строк (02+04) графа 05",null,null,{"$f":"IF('Раздел 22'!R26<=SUM('Раздел 22'!R22,'Раздел 22'!R24),0,1)","v":0}]
[609535,22,16,16,"Раздел 22 строка 01 графа 4 <= Раздел 22 строка 01 графа 3",null,null,{"$f":"IF('Раздел 22'!Q21<='Раздел 22'!P21,0,1)","v":0}]
[609535,22,17,17,"Раздел 22 строка 02 графа 4 <= Раздел 22 строка 02 графа 3",null,null,{"$f":"IF('Раздел 22'!Q22<='Раздел 22'!P22,0,1)","v":0}]
[609535,22,18,18,"Раздел 22 строка 03 графа 4 <= Раздел 22 строка 03 графа 3",null,null,{"$f":"IF('Раздел 22'!Q23<='Раздел 22'!P23,0,1)","v":0}]
[609535,22,19,19,"Раздел 22 строка 04 графа 4 <= Раздел 22 строка 04 графа 3",null,null,{"$f":"IF('Раздел 22'!Q24<='Раздел 22'!P24,0,1)","v":0}]
[609535,22,20,20,"Раздел 22 строка 05 графа 4 <= Раздел 22 строка 05 графа 3",null,null,{"$f":"IF('Раздел 22'!Q25<='Раздел 22'!P25,0,1)","v":0}]
[609535,22,21,21,"Раздел 22 строка 06 графа 4 <= Раздел 22 строка 06 графа 3",null,null,{"$f":"IF('Раздел 22'!Q26<='Раздел 22'!P26,0,1)","v":0}]
[609535,23,0,0,{"$f":"CONCATENATE(\"Межраздельный контроль - количество ошибок: \",H763)","v":"Межраздельный контроль - количество ошибок: 0"},null,null,{"$f":"SUM(H764:H862)","v":0}]
[609535,23,1,1,"Раздел 4 строка 01 графа 4 = Раздел 1 сумма строк 01 + 02 + 03 графа 3",null,null,{"$f":"IF('Раздел 4'!Q21=SUM('Раздел 1'!P21,'Раздел 1'!P23,'Раздел 1'!P25),0,1)","v":0}]
[609535,23,2,2,"Раздел 4 сумма строк  02 + 03 графа 4 = Раздел 1 сумма строк 01 + 02 + 03 графа 4",null,null,{"$f":"IF(SUM('Раздел 4'!Q22:Q23)=SUM('Раздел 1'!Q22,'Раздел 1'!Q24,'Раздел 1'!Q26),0,1)","v":0}]
[609535,23,3,3,"Раздел 4 строка 04 графа 4 = Раздел 1 сумма строк 01 + 02 + 03 графа 5",null,null,{"$f":"IF('Раздел 4'!Q24=SUM('Раздел 1'!R22,'Раздел 1'!R24,'Раздел 1'!R26),0,1)","v":0}]
[609535,23,4,4,"Раздел 4 строка 05 графа 4 = Раздел 1 сумма строк 01 + 02 + 03 графа 6",null,null,{"$f":"IF('Раздел 4'!Q25=SUM('Раздел 1'!S22,'Раздел 1'!S24,'Раздел 1'!S26),0,1)","v":0}]
[609535,23,5,5,"Раздел 4 строка 06 графа 4 = Раздел 1 сумма строк 01 + 02 + 03 графа 7",null,null,{"$f":"IF('Раздел 4'!Q26=SUM('Раздел 1'!T21,'Раздел 1'!T23,'Раздел 1'!T25),0,1)","v":0}]
[609535,23,6,6,"Раздел 4 сумма  строк 07 + 08 + 09 + 10 + 11 графа 4 = Раздел 1 сумма строк 01 + 02 + 03 графа 8",null,null,{"$f":"IF(SUM('Раздел 4'!Q27:Q31)=SUM('Раздел 1'!U21,'Раздел 1'!U23,'Раздел 1'!U25),0,1)","v":0}]
[609535,23,7,7,"Раздел 4 сумма строк  12 + 13 + 14 графа 4 = Раздел 1 сумма строк 01 + 02 + 03 графа 9",null,null,{"$f":"IF(SUM('Раздел 4'!Q32:Q34)=SUM('Раздел 1'!V21,'Раздел 1'!V23,'Раздел 1'!V25),0,1)","v":0}]
[{"$f":"P_3","v":609535},23,8,8,"Раздел 4 строка 15 графа 4 = Раздел 1 сумма строк 01 + 02 + 03 графа 10",null,null,{"$f":"IF('Раздел 4'!Q35=SUM('Раздел 1'!W21,'Раздел 1'!W23,'Раздел 1'!W25),0,1)","v":0}]
[609535,25,9,9,"Раздел 4 строка 27 графа 3 >= Раздел 21 строка 15 графа 4",null,null,{"$f":"IF('Раздел 4'!P47>='Раздел 21'!Q35,0,1)","v":0}]
[609535,26,10,10,"Раздел 4 строка 28 графа 3 >= Раздел 21 строка 15 графа 13",null,null,{"$f":"IF('Раздел 4'!P48>='Раздел 21'!Z35,0,1)","v":0}]
[609535,27,11,11,"Учащиеся 12 класса Раздел 2 сумма строк (13+14) Не соответствует составу обучающихся 12 класса Раздел 4 строка 14 графа 4",null,null,{"$f":"IF(OR(AND(('Раздел 2'!P33+'Раздел 2'!P34)=0,'Раздел 4'!Q34=0),AND(('Раздел 2'!P33+'Раздел 2'!P34)>0,'Раздел 4'!Q34>0)),0,1)","v":0}]
[609535,28,12,12,"Раздел 3 строка 01 графа 3 <= Раздел 4 сумма строк  01 + 02 + 03 + 04 + 05 + 06 графа 3",null,null,{"$f":"IF('Раздел 3'!P21<=SUM('Раздел 4'!P21:P26),0,1)","v":0}]
[609535,23,13,13,"Раздел 3 строка 02 графа 3 <= Раздел 4 сумма строк 07 + 08 + 09 + 10 + 11 графа 3",null,null,{"$f":"IF('Раздел 3'!P22<=SUM('Раздел 4'!P27:P31),0,1)","v":0}]
[609535,23,14,14,"Раздел 3 строка 03 графа 3 <= Раздел 4 сумма строк 12 + 13 + 14 графа 3",null,null,{"$f":"IF('Раздел 3'!P23<=SUM('Раздел 4'!P32:P34),0,1)","v":0}]
[609535,23,15,15,"Раздел 4 строка 15 графа 3 >= Раздел 3 строка 04 графа 3",null,null,{"$f":"IF('Раздел 4'!P35>='Раздел 3'!P24,0,1)","v":0}]
[609535,23,16,16,"Раздел 3 строка 01 графа 4 <= Раздел 4 сумма строк (01+02+03+04+05+06) сумма граф (8+10+12+14+16+18+20+22)",null,null,{"$f":"IF('Раздел 3'!Q21<=SUM('Раздел 4'!U21:U26,'Раздел 4'!W21:W26,'Раздел 4'!Y21:Y26,'Раздел 4'!AA21:AA26,'Раздел 4'!AC21:AC26,'Раздел 4'!AE21:AE26,'Раздел 4'!AG21:AG26,'Раздел 4'!AI21:AI26),0,1)","v":0}]
[609535,23,17,17,"Раздел 3 строка 02 графа 4 <= Раздел 4 сумма строк (07+08+09+10+11) сумма граф (8+10+12+14+16+18+20+22)",null,null,{"$f":"IF('Раздел 3'!Q22<=SUM('Раздел 4'!U27:U31,'Раздел 4'!W27:W31,'Раздел 4'!Y27:Y31,'Раздел 4'!AA27:AA31,'Раздел 4'!AC27:AC31,'Раздел 4'!AE27:AE31,'Раздел 4'!AG27:AG31,'Раздел 4'!AI27:AI31),0,1)","v":0}]
[609535,23,18,18,"Раздел 3 строка 03 графа 4 <= Раздел 4 сумма строк (12+13+14) сумма граф (8+10+12+14+16+18+20+22)",null,null,{"$f":"IF('Раздел 3'!Q23<=SUM('Раздел 4'!U32:U34,'Раздел 4'!W32:W34,'Раздел 4'!Y32:Y34,'Раздел 4'!AA32:AA34,'Раздел 4'!AC32:AC34,'Раздел 4'!AE32:AE34,'Раздел 4'!AG32:AG34,'Раздел 4'!AI32:AI34),0,1)","v":0}]
[609535,23,19,19,"Раздел 3 строка 04 графа 4 <= Раздел 4 строка 15 сумма граф (8+10+12+14+16+18+20+22)",null,null,{"$f":"IF('Раздел 3'!Q24<=SUM('Раздел 4'!U35,'Раздел 4'!W35,'Раздел 4'!Y35,'Раздел 4'!AA35,'Раздел 4'!AC35,'Раздел 4'!AE35,'Раздел 4'!AG35,'Раздел 4'!AI35),0,1)","v":0}]
[609535,23,20,20,"Раздел 4 строка 15 графа 4 = Раздел 5 строка 20 графа 3",null,null,{"$f":"IF('Раздел 4'!Q35='Раздел 5'!P40,0,1)","v":0}]
[609535,23,21,21,"Раздел 4 строка 15 графа 7 = Раздел 5 строка 20 графа 4",null,null,{"$f":"IF('Раздел 4'!T35='Раздел 5'!Q40,0,1)","v":0}]
[609535,23,22,22,"Раздел 5 строка 20 графа 5 = Раздел 4 строка  01 графа 4",null,null,{"$f":"IF('Раздел 5'!R40='Раздел 4'!Q21,0,1)","v":0}]
[609535,23,23,23,"Раздел 5 строка 20 графа 6 = Раздел 4 сумма строк (02 + 03) графа 4",null,null,{"$f":"IF('Раздел 5'!S40=SUM('Раздел 4'!Q22:Q23),0,1)","v":0}]
[609535,23,24,24,"Раздел 5 строка 20 графа 7 = Раздел 4 строка 11 графа 4",null,null,{"$f":"IF('Раздел 5'!T40='Раздел 4'!Q31,0,1)","v":0}]
[609535,23,25,25,"Раздел 5 строка 20 графа 8 = Раздел 4 сумма строк  (12 + 13 + 14) графа 4",null,null,{"$f":"IF('Раздел 5'!U40=SUM('Раздел 4'!Q32:Q34),0,1)","v":0}]
[609535,23,26,26,"Раздел 5 строка 21 графа 3 <= Раздел 4 строка  15 сумма граф (9+11+13+15+17+19+21+23)",null,null,{"$f":"IF('Раздел 5'!P41<=SUM('Раздел 4'!V35,'Раздел 4'!X35,'Раздел 4'!Z35,'Раздел 4'!AB35,'Раздел 4'!AD35,'Раздел 4'!AF35,'Раздел 4'!AH35,'Раздел 4'!AJ35),0,1)","v":0}]
[609535,23,27,27,"Раздел 12 строка 02 графа 3 <= Раздел 4 строка  15 сумма граф (4+9+11+13+15+17+19+21+23)",null,null,{"$f":"IF('Раздел 12'!P22<=SUM('Раздел 4'!Q35,'Раздел 4'!V35,'Раздел 4'!X35,'Раздел 4'!Z35,'Раздел 4'!AB35,'Раздел 4'!AD35,'Раздел 4'!AF35,'Раздел 4'!AH35,'Раздел 4'!AJ35),0,1)","v":0}]
[609535,23,28,28,"Раздел 13 строка 18 графа 3 <= Раздел 4 строка 15 сумма граф (4+9+11+13+15+17+19+21+23)",null,null,{"$f":"IF('Раздел 13'!P38<=SUM('Раздел 4'!Q35,'Раздел 4'!V35,'Раздел 4'!X35,'Раздел 4'!Z35,'Раздел 4'!AB35,'Раздел 4'!AD35,'Раздел 4'!AF35,'Раздел 4'!AH35,'Раздел 4'!AJ35),0,1)","v":0}]
[609535,23,29,29,"Раздел 19 строка 01 графа 6 = Раздел 2 строка  30 графа 3",null,null,{"$f":"IF('Раздел 19'!S21='Раздел 2'!P50,0,1)","v":0}]
[609535,23,30,30,"Раздел 19 строка 01 графа 3 = Раздел 20 строка  15 графа 13",null,null,{"$f":"IF('Раздел 19'!P21='Раздел 20'!Z35,0,1)","v":0}]
[609535,23,31,31,"Раздел 19 строка 01 графа 3 <= Раздел 20 строка 15 графа 3",null,null,{"$f":"IF('Раздел 19'!P21<='Раздел 20'!P35,0,1)","v":0}]
[609535,23,32,32,"Раздел 19 строка 01 графа 4 <= Раздел 20 строка 15 графа 3",null,null,{"$f":"IF('Раздел 19'!Q21<='Раздел 20'!P35,0,1)","v":0}]
[609535,23,33,33,"Раздел 19 строка 01 графа 5 <= Раздел 20 строка 15 графа 3",null,null,{"$f":"IF('Раздел 19'!R21<='Раздел 20'!P35,0,1)","v":0}]
[609535,23,34,34,"Раздел 20 графа 3 = Раздел 4 сумма граф (9+11+13+15+17+19+21+23) по строке 01",null,null,{"$f":"IF('Раздел 20'!P21=SUM('Раздел 4'!V21,'Раздел 4'!X21,'Раздел 4'!Z21,'Раздел 4'!AB21,'Раздел 4'!AD21,'Раздел 4'!AF21,'Раздел 4'!AH21,'Раздел 4'!AJ21),0,1)","v":0}]
[609535,23,35,35,"Раздел 20 графа 3 = Раздел 4 сумма граф (9+11+13+15+17+19+21+23) по строке 02",null,null,{"$f":"IF('Раздел 20'!P22=SUM('Раздел 4'!V22,'Раздел 4'!X22,'Раздел 4'!Z22,'Раздел 4'!AB22,'Раздел 4'!AD22,'Раздел 4'!AF22,'Раздел 4'!AH22,'Раздел 4'!AJ22),0,1)","v":0}]
[609535,23,36,36,"Раздел 20 графа 3 = Раздел 4 сумма граф (9+11+13+15+17+19+21+23) по строке 03",null,null,{"$f":"IF('Раздел 20'!P23=SUM('Раздел 4'!V23,'Раздел 4'!X23,'Раздел 4'!Z23,'Раздел 4'!AB23,'Раздел 4'!AD23,'Раздел 4'!AF23,'Раздел 4'!AH23,'Раздел 4'!AJ23),0,1)","v":0}]
[609535,23,37,37,"Раздел 20 графа 3 = Раздел 4 сумма граф (9+11+13+15+17+19+21+23) по строке 04",null,null,{"$f":"IF('Раздел 20'!P24=SUM('Раздел 4'!V24,'Раздел 4'!X24,'Раздел 4'!Z24,'Раздел 4'!AB24,'Раздел 4'!AD24,'Раздел 4'!AF24,'Раздел 4'!AH24,'Раздел 4'!AJ24),0,1)","v":0}]
[609535,23,38,38,"Раздел 20 графа 3 = Раздел 4 сумма граф (9+11+13+15+17+19+21+23) по строке 05",null,null,{"$f":"IF('Раздел 20'!P25=SUM('Раздел 4'!V25,'Раздел 4'!X25,'Раздел 4'!Z25,'Раздел 4'!AB25,'Раздел 4'!AD25,'Раздел 4'!AF25,'Раздел 4'!AH25,'Раздел 4'!AJ25),0,1)","v":0}]
[609535,23,39,39,"Раздел 20 графа 3 = Раздел 4 сумма граф (9+11+13+15+17+19+21+23) по строке 06",null,null,{"$f":"IF('Раздел 20'!P26=SUM('Раздел 4'!V26,'Раздел 4'!X26,'Раздел 4'!Z26,'Раздел 4'!AB26,'Раздел 4'!AD26,'Раздел 4'!AF26,'Раздел 4'!AH26,'Раздел 4'!AJ26),0,1)","v":0}]
[609535,23,40,40,"Раздел 20 графа 3 = Раздел 4 сумма граф (9+11+13+15+17+19+21+23) по строке 07",null,null,{"$f":"IF('Раздел 20'!P27=SUM('Раздел 4'!V27,'Раздел 4'!X27,'Раздел 4'!Z27,'Раздел 4'!AB27,'Раздел 4'!AD27,'Раздел 4'!AF27,'Раздел 4'!AH27,'Раздел 4'!AJ27),0,1)","v":0}]
[609535,23,41,41,"Раздел 20 графа 3 = Раздел 4 сумма граф (9+11+13+15+17+19+21+23) по строке 08",null,null,{"$f":"IF('Раздел 20'!P28=SUM('Раздел 4'!V28,'Раздел 4'!X28,'Раздел 4'!Z28,'Раздел 4'!AB28,'Раздел 4'!AD28,'Раздел 4'!AF28,'Раздел 4'!AH28,'Раздел 4'!AJ28),0,1)","v":0}]
[609535,23,42,42,"Раздел 20 графа 3 = Раздел 4 сумма граф (9+11+13+15+17+19+21+23) по строке 09",null,null,{"$f":"IF('Раздел 20'!P29=SUM('Раздел 4'!V29,'Раздел 4'!X29,'Раздел 4'!Z29,'Раздел 4'!AB29,'Раздел 4'!AD29,'Раздел 4'!AF29,'Раздел 4'!AH29,'Раздел 4'!AJ29),0,1)","v":0}]
[609535,23,43,43,"Раздел 20 графа 3 = Раздел 4 сумма граф (9+11+13+15+17+19+21+23) по строке 10",null,null,{"$f":"IF('Раздел 20'!P30=SUM('Раздел 4'!V30,'Раздел 4'!X30,'Раздел 4'!Z30,'Раздел 4'!AB30,'Раздел 4'!AD30,'Раздел 4'!AF30,'Раздел 4'!AH30,'Раздел 4'!AJ30),0,1)","v":0}]
[609535,23,44,44,"Раздел 20 графа 3 = Раздел 4 сумма граф (9+11+13+15+17+19+21+23) по строке 11",null,null,{"$f":"IF('Раздел 20'!P31=SUM('Раздел 4'!V31,'Раздел 4'!X31,'Раздел 4'!Z31,'Раздел 4'!AB31,'Раздел 4'!AD31,'Раздел 4'!AF31,'Раздел 4'!AH31,'Раздел 4'!AJ31),0,1)","v":0}]
[609535,23,45,45,"Раздел 20 графа 3 = Раздел 4 сумма граф (9+11+13+15+17+19+21+23) по строке 12",null,null,{"$f":"IF('Раздел 20'!P32=SUM('Раздел 4'!V32,'Раздел 4'!X32,'Раздел 4'!Z32,'Раздел 4'!AB32,'Раздел 4'!AD32,'Раздел 4'!AF32,'Раздел 4'!AH32,'Раздел 4'!AJ32),0,1)","v":0}]
[609535,23,46,46,"Раздел 20 графа 3 = Раздел 4 сумма граф (9+11+13+15+17+19+21+23) по строке 13",null,null,{"$f":"IF('Раздел 20'!P33=SUM('Раздел 4'!V33,'Раздел 4'!X33,'Раздел 4'!Z33,'Раздел 4'!AB33,'Раздел 4'!AD33,'Раздел 4'!AF33,'Раздел 4'!AH33,'Раздел 4'!AJ33),0,1)","v":0}]
[609535,23,47,47,"Раздел 20 графа 3 = Раздел 4 сумма граф (9+11+13+15+17+19+21+23) по строке 14",null,null,{"$f":"IF('Раздел 20'!P34=SUM('Раздел 4'!V34,'Раздел 4'!X34,'Раздел 4'!Z34,'Раздел 4'!AB34,'Раздел 4'!AD34,'Раздел 4'!AF34,'Раздел 4'!AH34,'Раздел 4'!AJ34),0,1)","v":0}]
[609535,23,48,48,"Раздел 20 графа 3 = Раздел 4 сумма граф (9+11+13+15+17+19+21+23) по строке 15",null,null,{"$f":"IF('Раздел 20'!P35=SUM('Раздел 4'!V35,'Раздел 4'!X35,'Раздел 4'!Z35,'Раздел 4'!AB35,'Раздел 4'!AD35,'Раздел 4'!AF35,'Раздел 4'!AH35,'Раздел 4'!AJ35),0,1)","v":0}]
[609535,23,49,49,"Раздел 22 строка 01 графа 3 <= Раздел 4 строка 20 графа 3",null,null,{"$f":"IF('Раздел 22'!P21<='Раздел 4'!P40,0,1)","v":0}]
[609535,23,50,50,"Раздел 22 строка 02 графа 3 <= Раздел 4 строка 21 графа 3",null,null,{"$f":"IF('Раздел 22'!P22<='Раздел 4'!P41,0,1)","v":0}]
[609535,23,51,51,"Раздел 22 строка 03 графа 3 <= Раздел 4 строка 22 графа 3",null,null,{"$f":"IF('Раздел 22'!P23<='Раздел 4'!P42,0,1)","v":0}]
[609535,23,52,52,"Раздел 22 строка 04 графа 3 <= Раздел 4 строка 23 графа 3",null,null,{"$f":"IF('Раздел 22'!P24<='Раздел 4'!P43,0,1)","v":0}]
[609535,23,53,53,"Раздел 22 строка 05 графа 3 <= Раздел 4 строка 24 графа 3",null,null,{"$f":"IF('Раздел 22'!P25<='Раздел 4'!P44,0,1)","v":0}]
[609535,23,54,54,"Раздел 22 строка 06 графа 3 <= Раздел 4 строка 25 графа 3",null,null,{"$f":"IF('Раздел 22'!P26<='Раздел 4'!P45,0,1)","v":0}]
[609535,23,55,55,"Раздел 22 строка 01 графа 5 <= Раздел 4 строка 20 графа 3",null,null,{"$f":"IF('Раздел 22'!R21<='Раздел 4'!P40,0,1)","v":0}]
[609535,23,56,56,"Раздел 22 строка 02 графа 5 <= Раздел 4 строка 21 графа 3",null,null,{"$f":"IF('Раздел 22'!R22<='Раздел 4'!P41,0,1)","v":0}]
[609535,23,57,57,"Раздел 22 строка 03 графа 5 <= Раздел 4 строка 22 графа 3",null,null,{"$f":"IF('Раздел 22'!R23<='Раздел 4'!P42,0,1)","v":0}]
[609535,23,58,58,"Раздел 22 строка 04 графа 5 <= Раздел 4 строка 23 графа 3",null,null,{"$f":"IF('Раздел 22'!R24<='Раздел 4'!P43,0,1)","v":0}]
[609535,23,59,59,"Раздел 22 строка 05 графа 5 <= Раздел 4 строка 24 графа 3",null,null,{"$f":"IF('Раздел 22'!R25<='Раздел 4'!P44,0,1)","v":0}]
[609535,23,60,60,"Раздел 22 строка 06 графа 5 <= Раздел 4 строка 25 графа 3",null,null,{"$f":"IF('Раздел 22'!R26<='Раздел 4'!P45,0,1)","v":0}]
[609535,23,61,61,"Раздел 19 строка 02 графа 3 <= Раздел 4 строка 15 графа 9",null,null,{"$f":"IF('Раздел 19'!P22<='Раздел 4'!V35,0,1)","v":0}]
[609535,23,62,62,"Раздел 19 строка 03 графа 3 <= Раздел 4 строка 15 графа 11",null,null,{"$f":"IF('Раздел 19'!P23<='Раздел 4'!X35,0,1)","v":0}]
[609535,23,63,63,"Раздел 19 строка 04 графа 3 <= Раздел 4 строка 15 графа 13",null,null,{"$f":"IF('Раздел 19'!P24<='Раздел 4'!Z35,0,1)","v":0}]
[609535,23,64,64,"Раздел 19 строка 05 графа 3 <= Раздел 4 строка 15 графа 15",null,null,{"$f":"IF('Раздел 19'!P25<='Раздел 4'!AB35,0,1)","v":0}]
[609535,23,65,65,"Раздел 19 строка 06 графа 3 <= Раздел 4 строка 15 графа 17",null,null,{"$f":"IF('Раздел 19'!P26<='Раздел 4'!AD35,0,1)","v":0}]
[609535,23,66,66,"Раздел 19 строка 07 графа 3 <= Раздел 4 строка 15 графа 19",null,null,{"$f":"IF('Раздел 19'!P27<='Раздел 4'!AF35,0,1)","v":0}]
[609535,23,67,67,"Раздел 19 строка 08 графа 3 <= Раздел 4 строка 15 графа 21",null,null,{"$f":"IF('Раздел 19'!P28<='Раздел 4'!AH35,0,1)","v":0}]
[609535,23,68,68,"Раздел 19 строка 09 графа 3 <= Раздел 4 строка 15 графа 23",null,null,{"$f":"IF('Раздел 19'!P29<='Раздел 4'!AJ35,0,1)","v":0}]
[609535,23,69,69,"Раздел 19 строка 02 графа 4 <= Раздел 4 строка 15 графа 9",null,null,{"$f":"IF('Раздел 19'!Q22<='Раздел 4'!V35,0,1)","v":0}]
[609535,23,70,70,"Раздел 19 строка 03 графа 4 <= Раздел 4 строка 15 графа 11",null,null,{"$f":"IF('Раздел 19'!Q23<='Раздел 4'!X35,0,1)","v":0}]
[609535,23,71,71,"Раздел 19 строка 04 графа 4 <= Раздел 4 строка 15 графа 13",null,null,{"$f":"IF('Раздел 19'!Q24<='Раздел 4'!Z35,0,1)","v":0}]
[{"$f":"P_3","v":609535},23,72,72,"Раздел 19 строка 05 графа 4 <= Раздел 4 строка 15 графа 15",null,null,{"$f":"IF('Раздел 19'!Q25<='Раздел 4'!AB35,0,1)","v":0}]
[609535,23,73,73,"Раздел 19 строка 06 графа 4 <= Раздел 4 строка 15 графа 17",null,null,{"$f":"IF('Раздел 19'!Q26<='Раздел 4'!AD35,0,1)","v":0}]
[609535,23,74,74,"Раздел 19 строка 07 графа 4 <= Раздел 4 строка 15 графа 19",null,null,{"$f":"IF('Раздел 19'!Q27<='Раздел 4'!AF35,0,1)","v":0}]
[609535,23,75,75,"Раздел 19 строка 08 графа 4 <= Раздел 4 строка 15 графа 21",null,null,{"$f":"IF('Раздел 19'!Q28<='Раздел 4'!AH35,0,1)","v":0}]
[609535,23,76,76,"Раздел 19 строка 09 графа 4 <= Раздел 4 строка 15 графа 23",null,null,{"$f":"IF('Раздел 19'!Q29<='Раздел 4'!AJ35,0,1)","v":0}]
[609535,23,77,77,"Раздел 19 строка 02 графа 5 <= Раздел 4 строка 15 графа 9",null,null,{"$f":"IF('Раздел 19'!R22<='Раздел 4'!V35,0,1)","v":0}]
[609535,23,78,78,"Раздел 19 строка 03 графа 5 <= Раздел 4 строка 15 графа 11",null,null,{"$f":"IF('Раздел 19'!R23<='Раздел 4'!X35,0,1)","v":0}]
[609535,23,79,79,"Раздел 19 строка 04 графа 5 <= Раздел 4 строка 15 графа 13",null,null,{"$f":"IF('Раздел 19'!R24<='Раздел 4'!Z35,0,1)","v":0}]
[609535,23,80,80,"Раздел 19 строка 05 графа 5 <= Раздел 4 строка 15 графа 15",null,null,{"$f":"IF('Раздел 19'!R25<='Раздел 4'!AB35,0,1)","v":0}]
[609535,23,81,81,"Раздел 19 строка 06 графа 5 <= Раздел 4 строка 15 графа 17",null,null,{"$f":"IF('Раздел 19'!R26<='Раздел 4'!AD35,0,1)","v":0}]
[609535,23,82,82,"Раздел 19 строка 07 графа 5 <= Раздел 4 строка 15 графа 19",null,null,{"$f":"IF('Раздел 19'!R27<='Раздел 4'!AF35,0,1)","v":0}]
[609535,23,83,83,"Раздел 19 строка 08 графа 5 <= Раздел 4 строка 15 графа 21",null,null,{"$f":"IF('Раздел 19'!R28<='Раздел 4'!AH35,0,1)","v":0}]
[609535,23,84,84,"Раздел 19 строка 09 графа 5 <= Раздел 4 строка 15 графа 23",null,null,{"$f":"IF('Раздел 19'!R29<='Раздел 4'!AJ35,0,1)","v":0}]
[609535,23,85,85,"Раздел 21 строка 01 графа 3  <= Раздел 4 строка 01 графа 4",null,null,{"$f":"IF('Раздел 21'!P21<='Раздел 4'!Q21,0,1)","v":0}]
[609535,23,86,86,"Раздел 21 строка 02 графа 3  <= Раздел 4 строка 02 графа 4",null,null,{"$f":"IF('Раздел 21'!P22<='Раздел 4'!Q22,0,1)","v":0}]
[609535,23,87,87,"Раздел 21 строка 03 графа 3  <= Раздел 4 строка 03 графа 4",null,null,{"$f":"IF('Раздел 21'!P23<='Раздел 4'!Q23,0,1)","v":0}]
[609535,23,88,88,"Раздел 21 строка 04 графа 3  <= Раздел 4 строка 04 графа 4",null,null,{"$f":"IF('Раздел 21'!P24<='Раздел 4'!Q24,0,1)","v":0}]
[609535,23,89,89,"Раздел 21 строка 05 графа 3  <= Раздел 4 строка 05 графа 4",null,null,{"$f":"IF('Раздел 21'!P25<='Раздел 4'!Q25,0,1)","v":0}]
[609535,23,90,90,"Раздел 21 строка 06 графа 3  <= Раздел 4 строка 06 графа 4",null,null,{"$f":"IF('Раздел 21'!P26<='Раздел 4'!Q26,0,1)","v":0}]
[609535,23,91,91,"Раздел 21 строка 07 графа 3  <= Раздел 4 строка 07 графа 4",null,null,{"$f":"IF('Раздел 21'!P27<='Раздел 4'!Q27,0,1)","v":0}]
[609535,23,92,92,"Раздел 21 строка 08 графа 3  <= Раздел 4 строка 08 графа 4",null,null,{"$f":"IF('Раздел 21'!P28<='Раздел 4'!Q28,0,1)","v":0}]
[609535,23,93,93,"Раздел 21 строка 09 графа 3  <= Раздел 4 строка 09 графа 4",null,null,{"$f":"IF('Раздел 21'!P29<='Раздел 4'!Q29,0,1)","v":0}]
[609535,23,94,94,"Раздел 21 строка 10 графа 3  <= Раздел 4 строка 10 графа 4",null,null,{"$f":"IF('Раздел 21'!P30<='Раздел 4'!Q30,0,1)","v":0}]
[609535,23,95,95,"Раздел 21 строка 11 графа 3  <= Раздел 4 строка 11 графа 4",null,null,{"$f":"IF('Раздел 21'!P31<='Раздел 4'!Q31,0,1)","v":0}]
[609535,23,96,96,"Раздел 21 строка 12 графа 3  <= Раздел 4 строка 12 графа 4",null,null,{"$f":"IF('Раздел 21'!P32<='Раздел 4'!Q32,0,1)","v":0}]
[609535,23,97,97,"Раздел 21 строка 13 графа 3  <= Раздел 4 строка 13 графа 4",null,null,{"$f":"IF('Раздел 21'!P33<='Раздел 4'!Q33,0,1)","v":0}]
[609535,23,98,98,"Раздел 21 строка 14 графа 3  <= Раздел 4 строка 14 графа 4",null,null,{"$f":"IF('Раздел 21'!P34<='Раздел 4'!Q34,0,1)","v":0}]
[609535,23,99,99,"Раздел 21 строка 15 графа 3  <= Раздел 4 строка 15 графа 4",null,null,{"$f":"IF('Раздел 21'!P35<='Раздел 4'!Q35,0,1)","v":0}]
{"$rows_empty":15}
["Конец T_Check"]

{"sheet":"Spravochnik","index":24,"n_rows":85,"n_cols":3,"rows_kept":85,"hidden":true}
[]
["Абазинский","01","001"]
["Аварский","02","003"]
["Адыгейский","03","006"]
["Азербайджанский","04","007"]
["Алтайский","05","012"]
["Армянский","06","019"]
["Балкарский","07","282"]
["Башкирский","08","026"]
["Белорусский","09","028"]
["Бурятский","10","033"]
["Вепсский","11","039"]
["Грузинский","12","049"]
["Даргинский","13","055"]
["Долганский","14","283"]
["Еврейский (идиш)","15","061"]
["Ительменский","16","071"]
["Ингушский","17","066"]
["Казахский","18","076"]
["Калмыцкий","19","078"]
["Кабардинский","20","075"]
["Карачаевский","21","085"]
["Карельский","22","086"]
["Кетский","23","089"]
["Коми","24","096"]
["Коми-пермяцкий","25","097"]
["Корейский","26","098"]
["Корякский","27","099"]
["Крымско-татарский","28","102"]
["Кумыкский","29","105"]
["Лакский","30","112"]
["Лезгинский","31","114"]
["Латышский","32","113"]
["Литовский","33","116"]
["Марийский горный","34","121"]
["Марийский луговой","35","321"]
["Мордовский мокша","36","126"]
["Мордовский эрзя","37","326"]
["Манси","38","899"]
["Нанайский","39","132"]
["Ненецкий","40","136"]
["Ногайский","41","138"]
["Немецкий","42","135"]
["Новогреческий","43","898"]
["Нивхский (на двух диалектах)","44","137"]
["Осетинский","45","146"]
["Польский","46","150"]
["Русский","47","155"]
["Рутульский","48","157"]
["Саамский","49","164"]
["Селькупский","50","168"]
["Табасаранский","51","174"]
["Татарский","52","181"]
["Татский","53","185"]
["Тофаларский","54","192"]
["Тувинский","55","196"]
["Турецкий","56","197"]
["Туркменский","57","199"]
["Удмуртский","58","202"]
["Украинский","59","206"]
["Хакасский","60","217"]
["Хантыйский (на трех диалектах)","61","219"]
["Финский","62","211"]
["Чеченский","63","238"]
["Черкесский","64","897"]
["Чувашский","65","243"]
["Чукотский","66","244"]
["Эвенский","67","262"]
["Эскимосский","68","265"]
["Эвенкийский","69","261"]
["Эстонский","70","267"]
["Юкагирский","71","271"]
["Якутский","72","275"]
["Агульский","73","005"]
["Греческий","74","048"]
["Китайский","75","092"]
["Негидальский","76","134"]
["Удэгейский","77","203"]
["Ульчский","78","207"]
["Цахурский","79","227"]
["Шорский","80","253"]
["Энецкий","81","263"]
["Орокский (Уйльта)","82","144"]
["Телеутский","83","186"]
["Сойотский","84"]